extractdate,publisheruri,publisherlabel,serviceyypeuri,servicetypelabel,Date of Transaction,LA Department incurring spend,Beneficiary,Gross Amount,Summary of Purpose of Spend,Merchant Category
09/01/2017,http://opendatacommunities.org/id/county-council/surrey,Surrey,http://id.esd.org.uk/service/1465,Council expenditure,27/08/2016,NW CP & COURT TEAM,TRAVELODGE,169,OTHER COMMUNITY CARE PRIV,TRAVELODGE
09/01/2017,http://opendatacommunities.org/id/county-council/surrey,Surrey,http://id.esd.org.uk/service/1465,Council expenditure,27/08/2016,CHEYNE WALK COMMUNITY HOME,TESCO STORE 2560,38.54,EQUIPMENT,"GROCERY STORES, SUPERMARKETS"
09/01/2017,http://opendatacommunities.org/id/county-council/surrey,Surrey,http://id.esd.org.uk/service/1465,Council expenditure,27/08/2016,WOODLANDS COMMUNITY HOME,TENPIN,11.38,REFRESHMENT COSTS,"CLUBS-CNTRY,MBRSHIP(ATHLET,REC,SPRTS,PRIVATE GOLF"
09/01/2017,http://opendatacommunities.org/id/county-council/surrey,Surrey,http://id.esd.org.uk/service/1465,Council expenditure,27/08/2016,VIRTUAL SCHOOL FOR LAC PUPIL PREMIUM,AMAZON EU,68.1,STATIONERY,DIRECT MARKETING-OTHER DIRECT MARKETERS/NOT ELSEW.
09/01/2017,http://opendatacommunities.org/id/county-council/surrey,Surrey,http://id.esd.org.uk/service/1465,Council expenditure,27/08/2016,CHEYNE WALK COMMUNITY HOME,WAITROSE 233,42.67,PURCHASE OF FOOD (RAW MATERIALS),"GROCERY STORES, SUPERMARKETS"
09/01/2017,http://opendatacommunities.org/id/county-council/surrey,Surrey,http://id.esd.org.uk/service/1465,Council expenditure,27/08/2016,WOODLANDS COMMUNITY HOME,WWW.TENPIN.CO.UK,55.95,EDUC VISITS/HOLS/CAMPS/TOYS,"CLUBS-CNTRY,MBRSHIP(ATHLET,REC,SPRTS,PRIVATE GOLF"
09/01/2017,http://opendatacommunities.org/id/county-council/surrey,Surrey,http://id.esd.org.uk/service/1465,Council expenditure,27/08/2016,CHEYNE WALK COMMUNITY HOME,WWW.DOMINOS.CO.UK,37.37,PURCHASE OF FOOD (RAW MATERIALS),"EATING PLACES, RESTAURANTS"
09/01/2017,http://opendatacommunities.org/id/county-council/surrey,Surrey,http://id.esd.org.uk/service/1465,Council expenditure,27/08/2016,FAIRCROFT COMMUNITY HOME,SAINSBURYS SACAT 0687,37.15,PURCHASE OF FOOD (RAW MATERIALS),"GROCERY STORES, SUPERMARKETS"
09/01/2017,http://opendatacommunities.org/id/county-council/surrey,Surrey,http://id.esd.org.uk/service/1465,Council expenditure,27/08/2016,CHEYNE WALK COMMUNITY HOME,MTL ONLINE RETAIL,228.5,EDUC VISITS/HOLS/CAMPS/TOYS,RECREATION SERVICES (NOT ELSEWHERE CLASSIFIED)
09/01/2017,http://opendatacommunities.org/id/county-council/surrey,Surrey,http://id.esd.org.uk/service/1465,Council expenditure,27/08/2016,LOWER MOLE COUNTRYSIDE PROJECT,POST OFFICE COUNTER,7.35,POSTAGE AND COURIER CHARGES,POSTAL SERVICES-GOVERNMENT ONLY
09/01/2017,http://opendatacommunities.org/id/county-council/surrey,Surrey,http://id.esd.org.uk/service/1465,Council expenditure,27/08/2016,16 19 EDU & SKILLS,AMAZON UK MARKETPLACE,11.1,STATIONERY,BOOK STORES
09/01/2017,http://opendatacommunities.org/id/county-council/surrey,Surrey,http://id.esd.org.uk/service/1465,Council expenditure,27/08/2016,LIBERTAS COMMUNITY HOME,SAINSBURYS 0652,52.65,PURCHASE OF FOOD (RAW MATERIALS),"GROCERY STORES, SUPERMARKETS"
09/01/2017,http://opendatacommunities.org/id/county-council/surrey,Surrey,http://id.esd.org.uk/service/1465,Council expenditure,27/08/2016,LIBERTAS COMMUNITY HOME,ALICANTE AEROPUERTO,107,EDUC VISITS/HOLS/CAMPS/TOYS,"BAR,LOUNGE,DISCO,NIGHTCLUB,TAVERN-ALCOHOLIC DRINKS"
09/01/2017,http://opendatacommunities.org/id/county-council/surrey,Surrey,http://id.esd.org.uk/service/1465,Council expenditure,27/08/2016,HILLSIDE,SAINSBURYS TO YOU 0675,16.6,PURCHASE OF FOOD (RAW MATERIALS),"GROCERY STORES, SUPERMARKETS"
09/01/2017,http://opendatacommunities.org/id/county-council/surrey,Surrey,http://id.esd.org.uk/service/1465,Council expenditure,27/08/2016,HILLSIDE,SAINSBURYS TO YOU 0675,163.25,PURCHASE OF FOOD (RAW MATERIALS),"GROCERY STORES, SUPERMARKETS"
09/01/2017,http://opendatacommunities.org/id/county-council/surrey,Surrey,http://id.esd.org.uk/service/1465,Council expenditure,27/08/2016,RUTH HOUSE,SAINSBURYS,60,PURCHASE OF FOOD (RAW MATERIALS),"GROCERY STORES, SUPERMARKETS"
09/01/2017,http://opendatacommunities.org/id/county-council/surrey,Surrey,http://id.esd.org.uk/service/1465,Council expenditure,27/08/2016,LIBERTAS COMMUNITY HOME,VICTORIA CAR HIRE,-50.64,EDUC VISITS/HOLS/CAMPS/TOYS,AUTOMOBILE RENTAL AGENCY-NOT ELSEWHERE CLASSIFIED
09/01/2017,http://opendatacommunities.org/id/county-council/surrey,Surrey,http://id.esd.org.uk/service/1465,Council expenditure,28/08/2016,IMT SUPPORT FOR FIRE & RESCUE,SCAN COMPUTERS INT LTD,254.46,COMPUTER HARDWARE,ELECTRONIC SALES
09/01/2017,http://opendatacommunities.org/id/county-council/surrey,Surrey,http://id.esd.org.uk/service/1465,Council expenditure,28/08/2016,CORONER,AMAZON UK RETAIL AMAZO,29.58,STATIONERY,MISCELLANEOUS AND SPECIALTY RETAIL STORES
09/01/2017,http://opendatacommunities.org/id/county-council/surrey,Surrey,http://id.esd.org.uk/service/1465,Council expenditure,28/08/2016,SOLD CATERING,EAST2EDEN,13,EQUIPMENT,MISCELLANEOUS HOUSE FURNISHING SPECIALTY SHOPS
09/01/2017,http://opendatacommunities.org/id/county-council/surrey,Surrey,http://id.esd.org.uk/service/1465,Council expenditure,28/08/2016,LOCAL DELIVERY GROUP,AMAZON EU,14.02,EQUIPMENT,DIRECT MARKETING-OTHER DIRECT MARKETERS/NOT ELSEW.
09/01/2017,http://opendatacommunities.org/id/county-council/surrey,Surrey,http://id.esd.org.uk/service/1465,Council expenditure,28/08/2016,CHEYNE WALK COMMUNITY HOME,WAITROSE 233,46.96,PURCHASE OF FOOD (RAW MATERIALS),"GROCERY STORES, SUPERMARKETS"
09/01/2017,http://opendatacommunities.org/id/county-council/surrey,Surrey,http://id.esd.org.uk/service/1465,Council expenditure,28/08/2016,LIBERTAS COMMUNITY HOME,LAKELAND LIMITED,28.26,EQUIPMENT,ACCESSORY AND APPAREL STORES-MISCELLANEOUS
09/01/2017,http://opendatacommunities.org/id/county-council/surrey,Surrey,http://id.esd.org.uk/service/1465,Council expenditure,28/08/2016,HOLLAND CLOSE RESIDENTIAL HOME,TESCO-STORES 6647,207.5,PURCHASE OF FOOD (RAW MATERIALS),"GROCERY STORES, SUPERMARKETS"
09/01/2017,http://opendatacommunities.org/id/county-council/surrey,Surrey,http://id.esd.org.uk/service/1465,Council expenditure,28/08/2016,CENTRAL COMMS - BUS REVIEW              ,GOOGLE  ADWS2060179426,500,PUBLICITY,DIRECT MARKETING-CONTINUITY/SUBSCRIPTION MERCHANTS
09/01/2017,http://opendatacommunities.org/id/county-council/surrey,Surrey,http://id.esd.org.uk/service/1465,Council expenditure,28/08/2016,PARK HALL RESIDENTIAL CARE,AMAZON UK MARKETPLACE,12.65,STATIONERY,BOOK STORES
09/01/2017,http://opendatacommunities.org/id/county-council/surrey,Surrey,http://id.esd.org.uk/service/1465,Council expenditure,29/08/2016,CHEYNE WALK COMMUNITY HOME,FREEPRINTS,21.55,EQUIPMENT,"PHOTO DEVELOPING, PHOTOFINISHING LABORATORIES"
09/01/2017,http://opendatacommunities.org/id/county-council/surrey,Surrey,http://id.esd.org.uk/service/1465,Council expenditure,29/08/2016,IMT PRODUCTION APPLICATIONS TEAM,RACKSPACE EMAIL & APPS,117.53,COMPUTER SERVICES,COMPUTER NETWORK/INFORMATION SERVICES
09/01/2017,http://opendatacommunities.org/id/county-council/surrey,Surrey,http://id.esd.org.uk/service/1465,Council expenditure,29/08/2016,KARIBU COMMUNITY HOME,AMAZON UK RETAIL AMAZO,9.99,BOOKS,MISCELLANEOUS AND SPECIALTY RETAIL STORES
09/01/2017,http://opendatacommunities.org/id/county-council/surrey,Surrey,http://id.esd.org.uk/service/1465,Council expenditure,29/08/2016,LOCAL DELIVERY GROUP,AMAZON UK MARKETPLACE,21.5,EQUIPMENT,BOOK STORES
09/01/2017,http://opendatacommunities.org/id/county-council/surrey,Surrey,http://id.esd.org.uk/service/1465,Council expenditure,29/08/2016,KARIBU COMMUNITY HOME,AMAZON UK RETAIL AMAZO,8.99,BOOKS,MISCELLANEOUS AND SPECIALTY RETAIL STORES
09/01/2017,http://opendatacommunities.org/id/county-council/surrey,Surrey,http://id.esd.org.uk/service/1465,Council expenditure,29/08/2016,MALLOW CRESCENT,SAINSBURYS TO YOU 0686,25,PURCHASE OF FOOD (RAW MATERIALS),"GROCERY STORES, SUPERMARKETS"
09/01/2017,http://opendatacommunities.org/id/county-council/surrey,Surrey,http://id.esd.org.uk/service/1465,Council expenditure,29/08/2016,MALLOW CRESCENT,SAINSBURYS TO YOU 0686,75.65,PURCHASE OF FOOD (RAW MATERIALS),"GROCERY STORES, SUPERMARKETS"
09/01/2017,http://opendatacommunities.org/id/county-council/surrey,Surrey,http://id.esd.org.uk/service/1465,Council expenditure,29/08/2016,MALLOW CRESCENT,SAINSBURYS TO YOU 0686,12.6,PURCHASE OF FOOD (RAW MATERIALS),"GROCERY STORES, SUPERMARKETS"
09/01/2017,http://opendatacommunities.org/id/county-council/surrey,Surrey,http://id.esd.org.uk/service/1465,Council expenditure,29/08/2016,MALLOW CRESCENT,SAINSBURYS TO YOU 0686,92.75,PURCHASE OF FOOD (RAW MATERIALS),"GROCERY STORES, SUPERMARKETS"
09/01/2017,http://opendatacommunities.org/id/county-council/surrey,Surrey,http://id.esd.org.uk/service/1465,Council expenditure,29/08/2016,MALLOW CRESCENT,SAINSBURYS TO YOU 0686,17,PURCHASE OF FOOD (RAW MATERIALS),"GROCERY STORES, SUPERMARKETS"
09/01/2017,http://opendatacommunities.org/id/county-council/surrey,Surrey,http://id.esd.org.uk/service/1465,Council expenditure,29/08/2016,MALLOW CRESCENT,SAINSBURYS TO YOU 0686,91.94,PURCHASE OF FOOD (RAW MATERIALS),"GROCERY STORES, SUPERMARKETS"
09/01/2017,http://opendatacommunities.org/id/county-council/surrey,Surrey,http://id.esd.org.uk/service/1465,Council expenditure,29/08/2016,HILLSIDE,SAINSBURYS TO YOU 0675,60.05,PURCHASE OF FOOD (RAW MATERIALS),"GROCERY STORES, SUPERMARKETS"
09/01/2017,http://opendatacommunities.org/id/county-council/surrey,Surrey,http://id.esd.org.uk/service/1465,Council expenditure,29/08/2016,MALLOW CRESCENT,TESCO STORE 2590,1.5,PURCHASE OF FOOD (RAW MATERIALS),"GROCERY STORES, SUPERMARKETS"
09/01/2017,http://opendatacommunities.org/id/county-council/surrey,Surrey,http://id.esd.org.uk/service/1465,Council expenditure,29/08/2016,MALLOW CRESCENT,TESCO STORE 2590,84.37,PURCHASE OF FOOD (RAW MATERIALS),"GROCERY STORES, SUPERMARKETS"
09/01/2017,http://opendatacommunities.org/id/county-council/surrey,Surrey,http://id.esd.org.uk/service/1465,Council expenditure,29/08/2016,COVEHAM,SAINSBURYS TO YOU 0687,18.55,PURCHASE OF FOOD (RAW MATERIALS),"GROCERY STORES, SUPERMARKETS"
09/01/2017,http://opendatacommunities.org/id/county-council/surrey,Surrey,http://id.esd.org.uk/service/1465,Council expenditure,29/08/2016,COVEHAM,SAINSBURYS TO YOU 0687,162.22,REFRESHMENT COSTS,"GROCERY STORES, SUPERMARKETS"
09/01/2017,http://opendatacommunities.org/id/county-council/surrey,Surrey,http://id.esd.org.uk/service/1465,Council expenditure,29/08/2016,IMT SUPPORT FOR FIRE & RESCUE,AMAZON UK MARKETPLACE,78.73,COMPUTER HARDWARE,BOOK STORES
09/01/2017,http://opendatacommunities.org/id/county-council/surrey,Surrey,http://id.esd.org.uk/service/1465,Council expenditure,30/08/2016,JOINT EMERGENCY CONTROL CENTRE-GT FUNDED,PREMIER INN,102.99,TRAINING EXPENSES EXTERNAL GENERAL,PREMIER INN
09/01/2017,http://opendatacommunities.org/id/county-council/surrey,Surrey,http://id.esd.org.uk/service/1465,Council expenditure,30/08/2016,IMT PRODUCTION APPLICATIONS TEAM,"INFOGRAM SOFTWARE, INC","2,780.65",COMPUTER SOFTWARE,"COMPUTERS, COMPUTER PERIPHERAL EQUIPMENT, SOFTWARE"
09/01/2017,http://opendatacommunities.org/id/county-council/surrey,Surrey,http://id.esd.org.uk/service/1465,Council expenditure,30/08/2016,CONSORT HOUSE REDHILL,TVLICENSING.CO.UK,145.5,LICENCE FEES,"CONSULTING, MANAGEMENT, AND PUBLIC RELATIONS SVCS"
09/01/2017,http://opendatacommunities.org/id/county-council/surrey,Surrey,http://id.esd.org.uk/service/1465,Council expenditure,30/08/2016,KARIBU COMMUNITY HOME,AMAZON UK RETAIL AMAZO,6.52,BOOKS,MISCELLANEOUS AND SPECIALTY RETAIL STORES
09/01/2017,http://opendatacommunities.org/id/county-council/surrey,Surrey,http://id.esd.org.uk/service/1465,Council expenditure,30/08/2016,CHEYNE WALK COMMUNITY HOME,AMAZON UK MARKETPLACE,44.76,"CLOTHING, UNIFORM AND LAUNDRY",BOOK STORES
09/01/2017,http://opendatacommunities.org/id/county-council/surrey,Surrey,http://id.esd.org.uk/service/1465,Council expenditure,30/08/2016,LIBERTAS COMMUNITY HOME,SAINSBURYS 0652,75.39,PURCHASE OF FOOD (RAW MATERIALS),"GROCERY STORES, SUPERMARKETS"
09/01/2017,http://opendatacommunities.org/id/county-council/surrey,Surrey,http://id.esd.org.uk/service/1465,Council expenditure,30/08/2016,CHEYNE WALK COMMUNITY HOME,SPICE BOYS INDIAN,27,PURCHASE OF FOOD (RAW MATERIALS),FAST FOOD RESTAURANTS
09/01/2017,http://opendatacommunities.org/id/county-council/surrey,Surrey,http://id.esd.org.uk/service/1465,Council expenditure,30/08/2016,CHEYNE WALK COMMUNITY HOME,BLUE LAKE CHINESE REST,10.8,PURCHASE OF FOOD (RAW MATERIALS),"EATING PLACES, RESTAURANTS"
09/01/2017,http://opendatacommunities.org/id/county-council/surrey,Surrey,http://id.esd.org.uk/service/1465,Council expenditure,30/08/2016,CHEYNE WALK COMMUNITY HOME,ALIBABA CHARCOAL GRILL,37.3,PURCHASE OF FOOD (RAW MATERIALS),FAST FOOD RESTAURANTS
09/01/2017,http://opendatacommunities.org/id/county-council/surrey,Surrey,http://id.esd.org.uk/service/1465,Council expenditure,30/08/2016,HARRY'S YC,HOMEBASE LTD 247,100.42,EQUIPMENT,"BUILDING MATERIALS, LUMBER STORES"
09/01/2017,http://opendatacommunities.org/id/county-council/surrey,Surrey,http://id.esd.org.uk/service/1465,Council expenditure,30/08/2016,MALLOW CRESCENT,ARGOS RETAIL GROUP,53.94,EQUIPMENT,DISCOUNT STORES
09/01/2017,http://opendatacommunities.org/id/county-council/surrey,Surrey,http://id.esd.org.uk/service/1465,Council expenditure,30/08/2016,COVEHAM,VESTA VODAFONE,10,TELECOMMUNICATION CHARGES,TELECOM INCL PREPAID/RECURRING PHONE SVCS
09/01/2017,http://opendatacommunities.org/id/county-council/surrey,Surrey,http://id.esd.org.uk/service/1465,Council expenditure,30/08/2016,REIGATE & BANSTEAD LOCAL CARE OP,TRAVELODGE,380,EQUIPMENT,TRAVELODGE
09/01/2017,http://opendatacommunities.org/id/county-council/surrey,Surrey,http://id.esd.org.uk/service/1465,Council expenditure,30/08/2016,CHEYNE WALK COMMUNITY HOME,FREEPRINTS,13.63,EQUIPMENT,"PHOTO DEVELOPING, PHOTOFINISHING LABORATORIES"
09/01/2017,http://opendatacommunities.org/id/county-council/surrey,Surrey,http://id.esd.org.uk/service/1465,Council expenditure,30/08/2016,BURBANK COMMUNITY HOME,W M MORRISONS,17.4,PURCHASE OF FOOD (RAW MATERIALS),"GROCERY STORES, SUPERMARKETS"
09/01/2017,http://opendatacommunities.org/id/county-council/surrey,Surrey,http://id.esd.org.uk/service/1465,Council expenditure,30/08/2016,LIBERTAS COMMUNITY HOME,POUNDLAND LTD 1518,14.1,PURCHASE OF FOOD (RAW MATERIALS),DISCOUNT STORES
09/01/2017,http://opendatacommunities.org/id/county-council/surrey,Surrey,http://id.esd.org.uk/service/1465,Council expenditure,30/08/2016,HARRY'S YC,J H LORIMER,4.99,EQUIPMENT,"OFFICE, SCHOOL SUPPLY, AND STATIONERY STORES"
09/01/2017,http://opendatacommunities.org/id/county-council/surrey,Surrey,http://id.esd.org.uk/service/1465,Council expenditure,30/08/2016,ADDLESTONE YC,TESCO STORES-2017,14.68,PURCHASE OF FOOD (RAW MATERIALS),"GROCERY STORES, SUPERMARKETS"
09/01/2017,http://opendatacommunities.org/id/county-council/surrey,Surrey,http://id.esd.org.uk/service/1465,Council expenditure,30/08/2016,LIBERTAS COMMUNITY HOME,C & H FABRICS,25,EQUIPMENT,"DRAPERY, UPOLSTERY, AND WINDOW COVERINGS STORES"
09/01/2017,http://opendatacommunities.org/id/county-council/surrey,Surrey,http://id.esd.org.uk/service/1465,Council expenditure,30/08/2016,CHEYNE WALK COMMUNITY HOME,FOOTWEAR SOLUTIONS,30.99,MEDICAL EXPENSES,SHOE STORES
09/01/2017,http://opendatacommunities.org/id/county-council/surrey,Surrey,http://id.esd.org.uk/service/1465,Council expenditure,30/08/2016,SOLD ESTATES MANAGEMENT,PBM - KINGSTON,10.79,DAY TO DAY MAINTENANCE,CONSTRUCTION MATERIALS NOT ELSEWHERE CLASSIFIED
09/01/2017,http://opendatacommunities.org/id/county-council/surrey,Surrey,http://id.esd.org.uk/service/1465,Council expenditure,30/08/2016,CLOSED LANDFILL,GREENHAM TRADING LTD,37.88,EQUIPMENT,INDUSTRIAL SUPPLIES NOT ELSEWHERE CLASSIFIED
09/01/2017,http://opendatacommunities.org/id/county-council/surrey,Surrey,http://id.esd.org.uk/service/1465,Council expenditure,30/08/2016,ORDER TO CASH TEAM,WWW.MONEYCLAIM.GOV,77,FEES,GOVERNMENT SERVICES-NOT ELSEWHERE CLASSIFIED
09/01/2017,http://opendatacommunities.org/id/county-council/surrey,Surrey,http://id.esd.org.uk/service/1465,Council expenditure,30/08/2016,SW CARE - LAC,TRAVELODGE,47.45,INDEPENDENT LIVING PLACEMENTS,TRAVELODGE
09/01/2017,http://opendatacommunities.org/id/county-council/surrey,Surrey,http://id.esd.org.uk/service/1465,Council expenditure,30/08/2016,SW CARE - LAC,TRAVELODGE,92.9,INDEPENDENT LIVING PLACEMENTS,TRAVELODGE
09/01/2017,http://opendatacommunities.org/id/county-council/surrey,Surrey,http://id.esd.org.uk/service/1465,Council expenditure,30/08/2016,FAIRCROFT COMMUNITY HOME,SAINSBURYS SACAT 0687,14.5,PURCHASE OF FOOD (RAW MATERIALS),"GROCERY STORES, SUPERMARKETS"
09/01/2017,http://opendatacommunities.org/id/county-council/surrey,Surrey,http://id.esd.org.uk/service/1465,Council expenditure,30/08/2016,ORDER TO CASH TEAM,WWW.MONEYCLAIM.GOV,60,FEES,GOVERNMENT SERVICES-NOT ELSEWHERE CLASSIFIED
09/01/2017,http://opendatacommunities.org/id/county-council/surrey,Surrey,http://id.esd.org.uk/service/1465,Council expenditure,30/08/2016,INSTRUMENT HIRE SHOP,BENTONS OFFICE SUPPLIE,96,FURNITURE,OFFICE AND COMMERCIAL FURNITURE
09/01/2017,http://opendatacommunities.org/id/county-council/surrey,Surrey,http://id.esd.org.uk/service/1465,Council expenditure,30/08/2016,BURBANK COMMUNITY HOME,SAINSBURYS 0686,33.55,3RD PARTY PAYMENTS PRIVATE INDIV,"GROCERY STORES, SUPERMARKETS"
09/01/2017,http://opendatacommunities.org/id/county-council/surrey,Surrey,http://id.esd.org.uk/service/1465,Council expenditure,30/08/2016,LIBERTAS COMMUNITY HOME,STARBUCKS,11.73,REFRESHMENT COSTS,FAST FOOD RESTAURANTS
09/01/2017,http://opendatacommunities.org/id/county-council/surrey,Surrey,http://id.esd.org.uk/service/1465,Council expenditure,30/08/2016,BURBANK COMMUNITY HOME,GRS SCHOOLWEAR,39.74,"CLOTHING, UNIFORM AND LAUNDRY",WOMEN'S ACCESSORY AND SPECIALTY STORES
09/01/2017,http://opendatacommunities.org/id/county-council/surrey,Surrey,http://id.esd.org.uk/service/1465,Council expenditure,30/08/2016,HOLLAND CLOSE RESIDENTIAL HOME,TIMPSON LTD,34,EDUC VISITS/HOLS/CAMPS/TOYS,"HAT CLEANING SHOPS, SHOE REPAIR SHOPS, SHOE SHINE"
09/01/2017,http://opendatacommunities.org/id/county-council/surrey,Surrey,http://id.esd.org.uk/service/1465,Council expenditure,30/08/2016,KARIBU COMMUNITY HOME,WORLDSTORES LTD,239.98,EQUIPMENT,MISCELLANEOUS HOUSE FURNISHING SPECIALTY SHOPS
09/01/2017,http://opendatacommunities.org/id/county-council/surrey,Surrey,http://id.esd.org.uk/service/1465,Council expenditure,30/08/2016,SE CARE - CP & COURT LAC,SURREY CC CARD PAY,31,CHILDREN ACT SEC 17 PAYMENTS,COMPUTER NETWORK/INFORMATION SERVICES
09/01/2017,http://opendatacommunities.org/id/county-council/surrey,Surrey,http://id.esd.org.uk/service/1465,Council expenditure,30/08/2016,COUNTY HALL,SCREWFIX DIRECT,165.42,DAY TO DAY MAINTENANCE,"BUILDING MATERIALS, LUMBER STORES"
09/01/2017,http://opendatacommunities.org/id/county-council/surrey,Surrey,http://id.esd.org.uk/service/1465,Council expenditure,30/08/2016,ACL CENTRAL EXPENDITURE,AMAZON UK MARKETPLACE,66.4,EQUIPMENT,BOOK STORES
09/01/2017,http://opendatacommunities.org/id/county-council/surrey,Surrey,http://id.esd.org.uk/service/1465,Council expenditure,30/08/2016,BURBANK COMMUNITY HOME,KIT-SHOP LTD,79.25,"CLOTHING, UNIFORM AND LAUNDRY",CHILDREN'S AND INFANT'S WEAR STORES
09/01/2017,http://opendatacommunities.org/id/county-council/surrey,Surrey,http://id.esd.org.uk/service/1465,Council expenditure,30/08/2016,LIBERTAS COMMUNITY HOME,SAINSBURYS 0652,4.75,EQUIPMENT,"GROCERY STORES, SUPERMARKETS"
09/01/2017,http://opendatacommunities.org/id/county-council/surrey,Surrey,http://id.esd.org.uk/service/1465,Council expenditure,30/08/2016,LIBERTAS COMMUNITY HOME,SAINSBURYS 0652,3.7,PURCHASE OF FOOD (RAW MATERIALS),"GROCERY STORES, SUPERMARKETS"
09/01/2017,http://opendatacommunities.org/id/county-council/surrey,Surrey,http://id.esd.org.uk/service/1465,Council expenditure,30/08/2016,LIBERTAS COMMUNITY HOME,SAINSBURYS 0652,113.05,PURCHASE OF FOOD (RAW MATERIALS),"GROCERY STORES, SUPERMARKETS"
09/01/2017,http://opendatacommunities.org/id/county-council/surrey,Surrey,http://id.esd.org.uk/service/1465,Council expenditure,30/08/2016,KARIBU COMMUNITY HOME,AMAZON UK MARKETPLACE,5.99,BOOKS,BOOK STORES
09/01/2017,http://opendatacommunities.org/id/county-council/surrey,Surrey,http://id.esd.org.uk/service/1465,Council expenditure,30/08/2016,FRIMLEY YC,WAITROSE 514,19.86,PURCHASE OF FOOD (RAW MATERIALS),"GROCERY STORES, SUPERMARKETS"
09/01/2017,http://opendatacommunities.org/id/county-council/surrey,Surrey,http://id.esd.org.uk/service/1465,Council expenditure,30/08/2016,FRIMLEY YC,WAITROSE 514,7.5,REFRESHMENT COSTS,"GROCERY STORES, SUPERMARKETS"
09/01/2017,http://opendatacommunities.org/id/county-council/surrey,Surrey,http://id.esd.org.uk/service/1465,Council expenditure,30/08/2016,PARKING TEAM,AMAZON EU,69.15,STATIONERY,DIRECT MARKETING-OTHER DIRECT MARKETERS/NOT ELSEW.
09/01/2017,http://opendatacommunities.org/id/county-council/surrey,Surrey,http://id.esd.org.uk/service/1465,Council expenditure,30/08/2016,QUADRANT COURT WOKING,PLUMBERS MATE,47.3,EQUIPMENT,"HEATING, PLUMBING, AIR CONDITIONING CONTRACTORS"
09/01/2017,http://opendatacommunities.org/id/county-council/surrey,Surrey,http://id.esd.org.uk/service/1465,Council expenditure,30/08/2016,HILLSIDE,SAINSBURYS 0675,12,PURCHASE OF FOOD (RAW MATERIALS),"GROCERY STORES, SUPERMARKETS"
09/01/2017,http://opendatacommunities.org/id/county-council/surrey,Surrey,http://id.esd.org.uk/service/1465,Council expenditure,30/08/2016,HILLSIDE,SAINSBURYS 0675,49.65,PURCHASE OF FOOD (RAW MATERIALS),"GROCERY STORES, SUPERMARKETS"
09/01/2017,http://opendatacommunities.org/id/county-council/surrey,Surrey,http://id.esd.org.uk/service/1465,Council expenditure,30/08/2016,SURREY GROWTH STRATEGY,HOUSE OF COMMONS,"1,100.00",VENUE COSTS (INCLUDING HIRE OF ROOMS),"BOOKS,PERIODICALS AND NEWSPAPERS"
09/01/2017,http://opendatacommunities.org/id/county-council/surrey,Surrey,http://id.esd.org.uk/service/1465,Council expenditure,30/08/2016,SUPERFAST BROADBAND ECONOMIC DEVELOPMENT,LAYERSHIFT,60,COMPUTER SERVICES,COMPUTER NETWORK/INFORMATION SERVICES
09/01/2017,http://opendatacommunities.org/id/county-council/surrey,Surrey,http://id.esd.org.uk/service/1465,Council expenditure,30/08/2016,PROPERTY OPERATIONS TEAM,B & Q 1029,14.62,PURCHASE OF BUILDING MATERIALS,"BUILDING MATERIALS, LUMBER STORES"
09/01/2017,http://opendatacommunities.org/id/county-council/surrey,Surrey,http://id.esd.org.uk/service/1465,Council expenditure,30/08/2016,DEPUTYSHIP TEAM,GRO HM PASSPORT OFFICE,9.25,3RD PARTY PAYMENTS PRIVATE INDIV,GOVERNMENT SERVICES-NOT ELSEWHERE CLASSIFIED
09/01/2017,http://opendatacommunities.org/id/county-council/surrey,Surrey,http://id.esd.org.uk/service/1465,Council expenditure,30/08/2016,HARRY'S YC,WAITROSE 838,1.1,REFRESHMENT COSTS,"GROCERY STORES, SUPERMARKETS"
09/01/2017,http://opendatacommunities.org/id/county-council/surrey,Surrey,http://id.esd.org.uk/service/1465,Council expenditure,30/08/2016,BURBANK COMMUNITY HOME,B & Q 1029,88.55,DAY TO DAY MAINTENANCE,"BUILDING MATERIALS, LUMBER STORES"
09/01/2017,http://opendatacommunities.org/id/county-council/surrey,Surrey,http://id.esd.org.uk/service/1465,Council expenditure,30/08/2016,IMT SUPPORT FOR FIRE & RESCUE,AMAZON UK RETAIL AMAZO,12.11,COMPUTER CONSUMABLES,MISCELLANEOUS AND SPECIALTY RETAIL STORES
09/01/2017,http://opendatacommunities.org/id/county-council/surrey,Surrey,http://id.esd.org.uk/service/1465,Council expenditure,30/08/2016,IMT SUPPORT FOR FIRE & RESCUE,AMAZON UK MARKETPLACE,12.15,COMPUTER CONSUMABLES,BOOK STORES
09/01/2017,http://opendatacommunities.org/id/county-council/surrey,Surrey,http://id.esd.org.uk/service/1465,Council expenditure,30/08/2016,IMT SUPPORT FOR FIRE & RESCUE,AMAZON EU,90.7,COMPUTER CONSUMABLES,DIRECT MARKETING-OTHER DIRECT MARKETERS/NOT ELSEW.
09/01/2017,http://opendatacommunities.org/id/county-council/surrey,Surrey,http://id.esd.org.uk/service/1465,Council expenditure,30/08/2016,KARIBU COMMUNITY HOME,AMAZON EU,8.99,BOOKS,DIRECT MARKETING-OTHER DIRECT MARKETERS/NOT ELSEW.
09/01/2017,http://opendatacommunities.org/id/county-council/surrey,Surrey,http://id.esd.org.uk/service/1465,Council expenditure,30/08/2016,RUTH HOUSE,SAINSBURYS TO YOU 0686,57.35,PURCHASE OF FOOD (RAW MATERIALS),"GROCERY STORES, SUPERMARKETS"
09/01/2017,http://opendatacommunities.org/id/county-council/surrey,Surrey,http://id.esd.org.uk/service/1465,Council expenditure,30/08/2016,RUTH HOUSE,SAINSBURYS TO YOU 0686,207.85,PURCHASE OF FOOD (RAW MATERIALS),"GROCERY STORES, SUPERMARKETS"
09/01/2017,http://opendatacommunities.org/id/county-council/surrey,Surrey,http://id.esd.org.uk/service/1465,Council expenditure,30/08/2016,APPLEWOOD,ASDA HOME SHOPPING,147.72,PURCHASE OF FOOD (RAW MATERIALS),"GROCERY STORES, SUPERMARKETS"
09/01/2017,http://opendatacommunities.org/id/county-council/surrey,Surrey,http://id.esd.org.uk/service/1465,Council expenditure,30/08/2016,APPLEWOOD,ASDA HOME SHOPPING,91.18,PURCHASE OF FOOD (RAW MATERIALS),"GROCERY STORES, SUPERMARKETS"
09/01/2017,http://opendatacommunities.org/id/county-council/surrey,Surrey,http://id.esd.org.uk/service/1465,Council expenditure,30/08/2016,APPLEWOOD,ASDA HOME SHOPPING,-7.99,PURCHASE OF FOOD (RAW MATERIALS),"GROCERY STORES, SUPERMARKETS"
09/01/2017,http://opendatacommunities.org/id/county-council/surrey,Surrey,http://id.esd.org.uk/service/1465,Council expenditure,30/08/2016,APPLEWOOD,ASDA HOME SHOPPING,1.66,PURCHASE OF FOOD (RAW MATERIALS),"GROCERY STORES, SUPERMARKETS"
09/01/2017,http://opendatacommunities.org/id/county-council/surrey,Surrey,http://id.esd.org.uk/service/1465,Council expenditure,30/08/2016,WOODLANDS COMMUNITY HOME,CURRYS SUPERSTORE 2324,-10,EQUIPMENT,ELECTRONIC SALES
09/01/2017,http://opendatacommunities.org/id/county-council/surrey,Surrey,http://id.esd.org.uk/service/1465,Council expenditure,30/08/2016,WOODLANDS COMMUNITY HOME,SAINSBURYS 0686,-20,EQUIPMENT,"GROCERY STORES, SUPERMARKETS"
09/01/2017,http://opendatacommunities.org/id/county-council/surrey,Surrey,http://id.esd.org.uk/service/1465,Council expenditure,31/08/2016,CSF - YOUR NEXT MOVE                    ,FACEBK UEWXRA6AK2,472.49,PUBLICITY,ADVERTISING SERVICES
09/01/2017,http://opendatacommunities.org/id/county-council/surrey,Surrey,http://id.esd.org.uk/service/1465,Council expenditure,31/08/2016,ACL CENTRAL EXPENDITURE,SAFETYSIGNSUP.COUK,27.36,DAY TO DAY MAINTENANCE,"COMMERCIAL ART, GRAPHICS, PHOTOGRAPHY"
09/01/2017,http://opendatacommunities.org/id/county-council/surrey,Surrey,http://id.esd.org.uk/service/1465,Council expenditure,31/08/2016,IMT CRITICAL ENVIRONMENTS,AMAZON UK RETAIL AMAZO,28.5,REFRESHMENT COSTS,MISCELLANEOUS AND SPECIALTY RETAIL STORES
09/01/2017,http://opendatacommunities.org/id/county-council/surrey,Surrey,http://id.esd.org.uk/service/1465,Council expenditure,31/08/2016,CHEYNE WALK COMMUNITY HOME,AMAZON UK RETAIL AMAZO,20.99,EQUIPMENT,MISCELLANEOUS AND SPECIALTY RETAIL STORES
09/01/2017,http://opendatacommunities.org/id/county-council/surrey,Surrey,http://id.esd.org.uk/service/1465,Council expenditure,31/08/2016,ACL CENTRAL EXPENDITURE,FACEBK L9YVC9SBB2,1.74,PUBLICITY,ADVERTISING SERVICES
09/01/2017,http://opendatacommunities.org/id/county-council/surrey,Surrey,http://id.esd.org.uk/service/1465,Council expenditure,31/08/2016,ACL CENTRAL EXPENDITURE,FACEBK K9YVC9SBB2,72.57,PUBLICITY,ADVERTISING SERVICES
09/01/2017,http://opendatacommunities.org/id/county-council/surrey,Surrey,http://id.esd.org.uk/service/1465,Council expenditure,31/08/2016,THE STREET YC,W M MORRISONS,19.98,PURCHASE OF FOOD (RAW MATERIALS),"GROCERY STORES, SUPERMARKETS"
09/01/2017,http://opendatacommunities.org/id/county-council/surrey,Surrey,http://id.esd.org.uk/service/1465,Council expenditure,31/08/2016,CHEYNE WALK COMMUNITY HOME,ASDA STORES,46.36,EQUIPMENT,"GROCERY STORES, SUPERMARKETS"
09/01/2017,http://opendatacommunities.org/id/county-council/surrey,Surrey,http://id.esd.org.uk/service/1465,Council expenditure,31/08/2016,BUSINESS AND COMPLIANCE TEAM            ,JESSOPS,349,EQUIPMENT,CAMERA AND PHOTOGRAPHIC SUPPLY STORES
09/01/2017,http://opendatacommunities.org/id/county-council/surrey,Surrey,http://id.esd.org.uk/service/1465,Council expenditure,31/08/2016,SHEPPERTON YC,SAINSBURYS SACAT (4117,8.2,REFRESHMENT COSTS,"GROCERY STORES, SUPERMARKETS"
09/01/2017,http://opendatacommunities.org/id/county-council/surrey,Surrey,http://id.esd.org.uk/service/1465,Council expenditure,31/08/2016,ARUNDEL,TESCO STORES 5999,94.07,REFRESHMENT COSTS,"GROCERY STORES, SUPERMARKETS"
09/01/2017,http://opendatacommunities.org/id/county-council/surrey,Surrey,http://id.esd.org.uk/service/1465,Council expenditure,31/08/2016,GODALMING YC,CO-OP GROUP 500340,12.43,PURCHASE OF FOOD (RAW MATERIALS),"GROCERY STORES, SUPERMARKETS"
09/01/2017,http://opendatacommunities.org/id/county-council/surrey,Surrey,http://id.esd.org.uk/service/1465,Council expenditure,31/08/2016,CRANLEIGH YC,SAINSBURYS SACAT 2115,22.35,PURCHASE OF FOOD (RAW MATERIALS),"GROCERY STORES, SUPERMARKETS"
09/01/2017,http://opendatacommunities.org/id/county-council/surrey,Surrey,http://id.esd.org.uk/service/1465,Council expenditure,31/08/2016,CRANLEIGH YC,SAINSBURYS SACAT 2115,8.7,EQUIPMENT,"GROCERY STORES, SUPERMARKETS"
09/01/2017,http://opendatacommunities.org/id/county-council/surrey,Surrey,http://id.esd.org.uk/service/1465,Council expenditure,31/08/2016,CHEYNE WALK COMMUNITY HOME,COUNTY MALL CAR PARK,2.5,NON-STAFF RELATED TRANSPORT COSTS,AUTOMOBILE PARKING LOTS AND GARAGES
09/01/2017,http://opendatacommunities.org/id/county-council/surrey,Surrey,http://id.esd.org.uk/service/1465,Council expenditure,31/08/2016,ACL CENTRAL EXPENDITURE,POST OFFICE COUNTER,36.14,PUBLICITY,POSTAL SERVICES-GOVERNMENT ONLY
09/01/2017,http://opendatacommunities.org/id/county-council/surrey,Surrey,http://id.esd.org.uk/service/1465,Council expenditure,31/08/2016,TRANSPORT,CIRRUS RESEARCH PLC,754.8,OPERATIONAL FIRE EQUIPMENT,INDUSTRIAL SUPPLIES NOT ELSEWHERE CLASSIFIED
09/01/2017,http://opendatacommunities.org/id/county-council/surrey,Surrey,http://id.esd.org.uk/service/1465,Council expenditure,31/08/2016,CHEYNE WALK COMMUNITY HOME,TOP SHOP/TOPMAN,38.05,"CLOTHING, UNIFORM AND LAUNDRY",MEN'S AND WOMEN'S CLOTHING STORES
09/01/2017,http://opendatacommunities.org/id/county-council/surrey,Surrey,http://id.esd.org.uk/service/1465,Council expenditure,31/08/2016,ADDLESTONE YC,TESCO STORES-2017,29.02,PURCHASE OF FOOD (RAW MATERIALS),"GROCERY STORES, SUPERMARKETS"
09/01/2017,http://opendatacommunities.org/id/county-council/surrey,Surrey,http://id.esd.org.uk/service/1465,Council expenditure,31/08/2016,CS BUSINESS SUPPORT EAST,AMFBOWLING.CO.UK,147.29,VENUE COSTS (INCLUDING HIRE OF ROOMS),BOWLING ALLEYS
09/01/2017,http://opendatacommunities.org/id/county-council/surrey,Surrey,http://id.esd.org.uk/service/1465,Council expenditure,31/08/2016,CHEYNE WALK COMMUNITY HOME,THREE STORE,25,TELECOMMUNICATION CHARGES,TELECOM INCL PREPAID/RECURRING PHONE SVCS
09/01/2017,http://opendatacommunities.org/id/county-council/surrey,Surrey,http://id.esd.org.uk/service/1465,Council expenditure,31/08/2016,TRANSPORT,R D O KITCHEN,70,EQUIPMENT,"OFFICE, SCHOOL SUPPLY, AND STATIONERY STORES"
09/01/2017,http://opendatacommunities.org/id/county-council/surrey,Surrey,http://id.esd.org.uk/service/1465,Council expenditure,31/08/2016,SOUTH EAST AREA TEAM,TEAM SPORT,21,EDUC VISITS/HOLS/CAMPS/TOYS,"AMUSEMENT PARKS,CARNIVALS,CIRCUS,FORTUNE TELLERS"
09/01/2017,http://opendatacommunities.org/id/county-council/surrey,Surrey,http://id.esd.org.uk/service/1465,Council expenditure,31/08/2016,IMT SUPPORT FOR FIRE & RESCUE,AMAZON UK MARKETPLACE,9.99,COMPUTER CONSUMABLES,BOOK STORES
09/01/2017,http://opendatacommunities.org/id/county-council/surrey,Surrey,http://id.esd.org.uk/service/1465,Council expenditure,31/08/2016,PARKING TEAM,MEON LTD,209.88,EQUIPMENT,BUSINESS SERVICES-NOT ELSEWHERE CLASSIFIED
09/01/2017,http://opendatacommunities.org/id/county-council/surrey,Surrey,http://id.esd.org.uk/service/1465,Council expenditure,31/08/2016,NORTH EAST AREA TEAM,HALFORDS 0731,26.98,VEHICLE RUNNING COSTS,BICYCLE SHOPS-SALES AND SERVICE
09/01/2017,http://opendatacommunities.org/id/county-council/surrey,Surrey,http://id.esd.org.uk/service/1465,Council expenditure,31/08/2016,WOODLANDS COMMUNITY HOME,SPORTSDIRECT 234,89.95,"CLOTHING, UNIFORM AND LAUNDRY",SPORTING GOODS STORES
09/01/2017,http://opendatacommunities.org/id/county-council/surrey,Surrey,http://id.esd.org.uk/service/1465,Council expenditure,31/08/2016,DEVOLUTION FUND,ELIOR@WEST SUSSEX COUN,14.11,REFRESHMENT COSTS,CATERERS
09/01/2017,http://opendatacommunities.org/id/county-council/surrey,Surrey,http://id.esd.org.uk/service/1465,Council expenditure,31/08/2016,NW CARE - NON-LAC CP & COURT,GALAXY CARS,40,NON-STAFF RELATED TRANSPORT COSTS,LIMOUSINES AND TAXICABS
09/01/2017,http://opendatacommunities.org/id/county-council/surrey,Surrey,http://id.esd.org.uk/service/1465,Council expenditure,31/08/2016,WOODLANDS COMMUNITY HOME,POST OFFICE COUNTER,37.89,POSTAGE AND COURIER CHARGES,POSTAL SERVICES-GOVERNMENT ONLY
09/01/2017,http://opendatacommunities.org/id/county-council/surrey,Surrey,http://id.esd.org.uk/service/1465,Council expenditure,31/08/2016,IMT MODERN WORKER,"CLOUD9 IDE, INC",22.83,COMPUTER SERVICES,"COMPUTERS, COMPUTER PERIPHERAL EQUIPMENT, SOFTWARE"
09/01/2017,http://opendatacommunities.org/id/county-council/surrey,Surrey,http://id.esd.org.uk/service/1465,Council expenditure,31/08/2016,HERITAGE MANAGER,AMAZON UK MARKETPLACE,7.99,STATIONERY,BOOK STORES
09/01/2017,http://opendatacommunities.org/id/county-council/surrey,Surrey,http://id.esd.org.uk/service/1465,Council expenditure,31/08/2016,MAYFORD CENTRE - BUSINESS,HORACE SMITH LOCKSMITH,56.16,EQUIPMENT,HARDWARE STORES
09/01/2017,http://opendatacommunities.org/id/county-council/surrey,Surrey,http://id.esd.org.uk/service/1465,Council expenditure,31/08/2016,CHEYNE WALK COMMUNITY HOME,TESCO STORES 2313,6,EQUIPMENT,"GROCERY STORES, SUPERMARKETS"
09/01/2017,http://opendatacommunities.org/id/county-council/surrey,Surrey,http://id.esd.org.uk/service/1465,Council expenditure,31/08/2016,IMT CRITICAL ENVIRONMENTS,AMAZON EU,16.86,REFRESHMENT COSTS,DIRECT MARKETING-OTHER DIRECT MARKETERS/NOT ELSEW.
09/01/2017,http://opendatacommunities.org/id/county-council/surrey,Surrey,http://id.esd.org.uk/service/1465,Council expenditure,31/08/2016,CHEYNE WALK COMMUNITY HOME,AMAZON UK MARKETPLACE,14.49,EQUIPMENT,BOOK STORES
09/01/2017,http://opendatacommunities.org/id/county-council/surrey,Surrey,http://id.esd.org.uk/service/1465,Council expenditure,31/08/2016,CHEYNE WALK COMMUNITY HOME,AMAZON EU,30.46,LIBRARY RESOURCES,DIRECT MARKETING-OTHER DIRECT MARKETERS/NOT ELSEW.
09/01/2017,http://opendatacommunities.org/id/county-council/surrey,Surrey,http://id.esd.org.uk/service/1465,Council expenditure,31/08/2016,CHEYNE WALK COMMUNITY HOME,AMAZON UK MARKETPLACE,27.89,EQUIPMENT,BOOK STORES
09/01/2017,http://opendatacommunities.org/id/county-council/surrey,Surrey,http://id.esd.org.uk/service/1465,Council expenditure,31/08/2016,SOLD ESTATES MANAGEMENT,SHOP.TOPBOATS.COM,82.28,EQUIPMENT,"GAME, TOY, AND HOBBY SHOPS"
09/01/2017,http://opendatacommunities.org/id/county-council/surrey,Surrey,http://id.esd.org.uk/service/1465,Council expenditure,31/08/2016,PROPERTY OPERATIONS TEAM,B & Q 1029,37.44,PURCHASE OF BUILDING MATERIALS,"BUILDING MATERIALS, LUMBER STORES"
09/01/2017,http://opendatacommunities.org/id/county-council/surrey,Surrey,http://id.esd.org.uk/service/1465,Council expenditure,31/08/2016,HOPE SERVICE - WEST,ODEON,10.5,EDUC VISITS/HOLS/CAMPS/TOYS,MOTION PICTURE THEATERS
09/01/2017,http://opendatacommunities.org/id/county-council/surrey,Surrey,http://id.esd.org.uk/service/1465,Council expenditure,31/08/2016,SOLD ESTATES MANAGEMENT,AMAZON UK MARKETPLACE,7.62,EQUIPMENT,BOOK STORES
09/01/2017,http://opendatacommunities.org/id/county-council/surrey,Surrey,http://id.esd.org.uk/service/1465,Council expenditure,31/08/2016,SOLD DAY TO DAY OPERATIONS,AMAZON UK MARKETPLACE,22.16,EQUIPMENT,BOOK STORES
09/01/2017,http://opendatacommunities.org/id/county-council/surrey,Surrey,http://id.esd.org.uk/service/1465,Council expenditure,31/08/2016,YSS YOUTH CENTRE IMPROVEMENTS,NUKEY,27.6,DAY TO DAY MAINTENANCE,DIRECT MARKETING-CATALOG MERCHANTS
09/01/2017,http://opendatacommunities.org/id/county-council/surrey,Surrey,http://id.esd.org.uk/service/1465,Council expenditure,31/08/2016,ACL CENTRAL EXPENDITURE,AMAZON UK MARKETPLACE,21.98,EQUIPMENT,BOOK STORES
09/01/2017,http://opendatacommunities.org/id/county-council/surrey,Surrey,http://id.esd.org.uk/service/1465,Council expenditure,31/08/2016,LAC CELEBRATORY AND BURSARY FUND,PC WORLD ONLINE,308.96,EQUIPMENT,ELECTRONIC SALES
09/01/2017,http://opendatacommunities.org/id/county-council/surrey,Surrey,http://id.esd.org.uk/service/1465,Council expenditure,31/08/2016,HOPE SERVICE - EAST,SAINSBURYS 0683,83.6,PURCHASE OF FOOD (RAW MATERIALS),"GROCERY STORES, SUPERMARKETS"
09/01/2017,http://opendatacommunities.org/id/county-council/surrey,Surrey,http://id.esd.org.uk/service/1465,Council expenditure,31/08/2016,BURBANK COMMUNITY HOME,W M MORRISONS,5.82,EQUIPMENT,"GROCERY STORES, SUPERMARKETS"
09/01/2017,http://opendatacommunities.org/id/county-council/surrey,Surrey,http://id.esd.org.uk/service/1465,Council expenditure,31/08/2016,WORKPLACE COMMERCIAL TEAM,GARDEN CARE SUPPLI,16.23,EQUIPMENT,LAWN AND GARDEN SUPPLY STORES
09/01/2017,http://opendatacommunities.org/id/county-council/surrey,Surrey,http://id.esd.org.uk/service/1465,Council expenditure,31/08/2016,HILLSIDE,SAINSBURYS 0675,5.75,PURCHASE OF FOOD (RAW MATERIALS),"GROCERY STORES, SUPERMARKETS"
09/01/2017,http://opendatacommunities.org/id/county-council/surrey,Surrey,http://id.esd.org.uk/service/1465,Council expenditure,31/08/2016,HILLSIDE,SAINSBURYS 0675,81.82,PURCHASE OF FOOD (RAW MATERIALS),"GROCERY STORES, SUPERMARKETS"
09/01/2017,http://opendatacommunities.org/id/county-council/surrey,Surrey,http://id.esd.org.uk/service/1465,Council expenditure,31/08/2016,EDUC CAT NORTH DISTRICT B OVERHEADS,AO RETAIL LIMITED,258.99,EQUIPMENT,HOUSEHOLD APPLIANCE STORES
09/01/2017,http://opendatacommunities.org/id/county-council/surrey,Surrey,http://id.esd.org.uk/service/1465,Council expenditure,31/08/2016,TRANSPORT,WWW.PROSOL.CO.UK,156,VEHICLE REPAIRS AND MAINTENANCE,"AUTOMOTIVE PARTS, ACCESSORIES STORES"
09/01/2017,http://opendatacommunities.org/id/county-council/surrey,Surrey,http://id.esd.org.uk/service/1465,Council expenditure,31/08/2016,ROW VOLUNTEERS EAST                     ,WH SMITH,14.98,EQUIPMENT,NEWS DEALERS AND NEWSSTANDS
09/01/2017,http://opendatacommunities.org/id/county-council/surrey,Surrey,http://id.esd.org.uk/service/1465,Council expenditure,31/08/2016,LIBERTAS COMMUNITY HOME,CHESSINGTON GARDEN CTR,11.18,PURCHASE OF FOOD (RAW MATERIALS),LAWN AND GARDEN SUPPLY STORES
09/01/2017,http://opendatacommunities.org/id/county-council/surrey,Surrey,http://id.esd.org.uk/service/1465,Council expenditure,31/08/2016,BUSINESS AND COMPLIANCE TEAM            ,AMAZON UK MARKETPLACE,13.98,EQUIPMENT,BOOK STORES
09/01/2017,http://opendatacommunities.org/id/county-council/surrey,Surrey,http://id.esd.org.uk/service/1465,Council expenditure,31/08/2016,SOUTH EAST AREA TEAM,TEAM SPORT V/T,20,EDUC VISITS/HOLS/CAMPS/TOYS,"AMUSEMENT PARKS,CARNIVALS,CIRCUS,FORTUNE TELLERS"
09/01/2017,http://opendatacommunities.org/id/county-council/surrey,Surrey,http://id.esd.org.uk/service/1465,Council expenditure,31/08/2016,TRAINING-POLICY AND PERFORMANCE TEAM,EB  SURREY COMMUNITY A,30,TRAINING EXPENSES EXTERNAL GENERAL,BUSINESS SERVICES-NOT ELSEWHERE CLASSIFIED
09/01/2017,http://opendatacommunities.org/id/county-council/surrey,Surrey,http://id.esd.org.uk/service/1465,Council expenditure,31/08/2016,FAIRCROFT COMMUNITY HOME,TESCO STORE 2160,231.47,PURCHASE OF FOOD (RAW MATERIALS),"GROCERY STORES, SUPERMARKETS"
09/01/2017,http://opendatacommunities.org/id/county-council/surrey,Surrey,http://id.esd.org.uk/service/1465,Council expenditure,31/08/2016,CORPORATE GROUP - LEGAL SERVICES,BHCC-PAYPHONEPARKING,5.3,EXPENSES,GOVERNMENT SERVICES-NOT ELSEWHERE CLASSIFIED
09/01/2017,http://opendatacommunities.org/id/county-council/surrey,Surrey,http://id.esd.org.uk/service/1465,Council expenditure,31/08/2016,KARIBU COMMUNITY HOME,TESCO STORE 2812,384.21,PURCHASE OF FOOD (RAW MATERIALS),"GROCERY STORES, SUPERMARKETS"
09/01/2017,http://opendatacommunities.org/id/county-council/surrey,Surrey,http://id.esd.org.uk/service/1465,Council expenditure,31/08/2016,CHEYNE WALK COMMUNITY HOME,SAINSBURYS TO YOU 0026,134.4,PURCHASE OF FOOD (RAW MATERIALS),"GROCERY STORES, SUPERMARKETS"
09/01/2017,http://opendatacommunities.org/id/county-council/surrey,Surrey,http://id.esd.org.uk/service/1465,Council expenditure,31/08/2016,LIBERTAS COMMUNITY HOME,SAINSBURYS TO YOU 0652,116.59,PURCHASE OF FOOD (RAW MATERIALS),"GROCERY STORES, SUPERMARKETS"
09/01/2017,http://opendatacommunities.org/id/county-council/surrey,Surrey,http://id.esd.org.uk/service/1465,Council expenditure,31/08/2016,BURBANK COMMUNITY HOME,SAINSBURYS TO YOU 0686,265.67,PURCHASE OF FOOD (RAW MATERIALS),"GROCERY STORES, SUPERMARKETS"
09/01/2017,http://opendatacommunities.org/id/county-council/surrey,Surrey,http://id.esd.org.uk/service/1465,Council expenditure,31/08/2016,CHEYNE WALK COMMUNITY HOME,AMAZON UK MARKETPLACE,22.89,EQUIPMENT,BOOK STORES
09/01/2017,http://opendatacommunities.org/id/county-council/surrey,Surrey,http://id.esd.org.uk/service/1465,Council expenditure,31/08/2016,WOODLANDS COMMUNITY HOME,SCREWFIX GUILDFORD,9.99,"CLOTHING, UNIFORM AND LAUNDRY","BUILDING MATERIALS, LUMBER STORES"
09/01/2017,http://opendatacommunities.org/id/county-council/surrey,Surrey,http://id.esd.org.uk/service/1465,Council expenditure,31/08/2016,WOODLANDS COMMUNITY HOME,SCREWFIX GUILDFORD,39.99,"CLOTHING, UNIFORM AND LAUNDRY","BUILDING MATERIALS, LUMBER STORES"
09/01/2017,http://opendatacommunities.org/id/county-council/surrey,Surrey,http://id.esd.org.uk/service/1465,Council expenditure,31/08/2016,CHEYNE WALK COMMUNITY HOME,SHREKSADVENTURE.COM,-345,EDUC VISITS/HOLS/CAMPS/TOYS,TOURIST ATTRACTIONS AND EXHIBITS
09/01/2017,http://opendatacommunities.org/id/county-council/surrey,Surrey,http://id.esd.org.uk/service/1465,Council expenditure,31/08/2016,COMMUNICATIONS TEAM,ITUNES.COM/BILL,14.98,SUBSCRIPTIONS,RECORD SHOPS
09/01/2017,http://opendatacommunities.org/id/county-council/surrey,Surrey,http://id.esd.org.uk/service/1465,Council expenditure,01/09/2016,SURREY ARTS GENERAL,TV LICENSING,145.5,FEES,"CONSULTING, MANAGEMENT, AND PUBLIC RELATIONS SVCS"
09/01/2017,http://opendatacommunities.org/id/county-council/surrey,Surrey,http://id.esd.org.uk/service/1465,Council expenditure,01/09/2016,DCLG FIRE CONTROL GRANT (CAPITAL),CPC,57.42,CE04 CAPITAL ICT,ELECTRICAL PARTS AND EQUIPMENT
09/01/2017,http://opendatacommunities.org/id/county-council/surrey,Surrey,http://id.esd.org.uk/service/1465,Council expenditure,01/09/2016,NW CARE - LAC,PREMIER INN,91.5,INDEPENDENT LIVING PLACEMENTS,PREMIER INN
09/01/2017,http://opendatacommunities.org/id/county-council/surrey,Surrey,http://id.esd.org.uk/service/1465,Council expenditure,01/09/2016,TS SERVICE MANAGEMENT,AMAZON UK RETAIL AMAZO,14.34,EQUIPMENT,MISCELLANEOUS AND SPECIALTY RETAIL STORES
09/01/2017,http://opendatacommunities.org/id/county-council/surrey,Surrey,http://id.esd.org.uk/service/1465,Council expenditure,01/09/2016,NW CARE - NON-LAC CP & COURT,WWW.BRENDAS.CO.UK,41.35,"CLOTHING, UNIFORM AND LAUNDRY",CHILDREN'S AND INFANT'S WEAR STORES
09/01/2017,http://opendatacommunities.org/id/county-council/surrey,Surrey,http://id.esd.org.uk/service/1465,Council expenditure,01/09/2016,HOLLAND CLOSE RESIDENTIAL HOME,KINDLE UNLIMITED,7.99,SUBSCRIPTIONS,RECORD SHOPS
09/01/2017,http://opendatacommunities.org/id/county-council/surrey,Surrey,http://id.esd.org.uk/service/1465,Council expenditure,01/09/2016,CONTAMINATION,GOOGLE  ADWS2060179426,500,PUBLICITY,DIRECT MARKETING-CONTINUITY/SUBSCRIPTION MERCHANTS
09/01/2017,http://opendatacommunities.org/id/county-council/surrey,Surrey,http://id.esd.org.uk/service/1465,Council expenditure,01/09/2016,WOODLANDS COMMUNITY HOME,CHIQUITO 2170,59.81,PURCHASE OF FOOD (RAW MATERIALS),"EATING PLACES, RESTAURANTS"
09/01/2017,http://opendatacommunities.org/id/county-council/surrey,Surrey,http://id.esd.org.uk/service/1465,Council expenditure,01/09/2016,FARNHAM YC,SAINSBURYS 0680,34.63,PURCHASE OF FOOD (RAW MATERIALS),"GROCERY STORES, SUPERMARKETS"
09/01/2017,http://opendatacommunities.org/id/county-council/surrey,Surrey,http://id.esd.org.uk/service/1465,Council expenditure,01/09/2016,LAKERS YC,WELCOME BREAK,5.89,REFRESHMENT COSTS,"MISC FOOD STORE-CONVENIENCE,MRKT,SPLTY,VENDNG MACS"
09/01/2017,http://opendatacommunities.org/id/county-council/surrey,Surrey,http://id.esd.org.uk/service/1465,Council expenditure,01/09/2016,LAKERS YC,WELCOME BREAK LFE BK,28.86,REFRESHMENT COSTS,"MISC FOOD STORE-CONVENIENCE,MRKT,SPLTY,VENDNG MACS"
09/01/2017,http://opendatacommunities.org/id/county-council/surrey,Surrey,http://id.esd.org.uk/service/1465,Council expenditure,01/09/2016,LINTONS YC,RYMAN 1148,31.98,EQUIPMENT,"OFFICE, SCHOOL SUPPLY, AND STATIONERY STORES"
09/01/2017,http://opendatacommunities.org/id/county-council/surrey,Surrey,http://id.esd.org.uk/service/1465,Council expenditure,01/09/2016,LAKERS YC,MOTO TODDINGTON NORTH,15.89,REFRESHMENT COSTS,"EATING PLACES, RESTAURANTS"
09/01/2017,http://opendatacommunities.org/id/county-council/surrey,Surrey,http://id.esd.org.uk/service/1465,Council expenditure,01/09/2016,HOPE SERVICE - EAST,TESCO STORES 6320,4.98,REFRESHMENT COSTS,"GROCERY STORES, SUPERMARKETS"
09/01/2017,http://opendatacommunities.org/id/county-council/surrey,Surrey,http://id.esd.org.uk/service/1465,Council expenditure,01/09/2016,CHEYNE WALK COMMUNITY HOME,COUNTY MALL CAR PARK,2.5,NON-STAFF RELATED TRANSPORT COSTS,AUTOMOBILE PARKING LOTS AND GARAGES
09/01/2017,http://opendatacommunities.org/id/county-council/surrey,Surrey,http://id.esd.org.uk/service/1465,Council expenditure,01/09/2016,CHEYNE WALK COMMUNITY HOME,THE PERFUME SHOP,16.99,EQUIPMENT,COSMETIC STORES
09/01/2017,http://opendatacommunities.org/id/county-council/surrey,Surrey,http://id.esd.org.uk/service/1465,Council expenditure,01/09/2016,CHEYNE WALK COMMUNITY HOME,TFS STORES LTD - CRAWL,10.05,EQUIPMENT,COSMETIC STORES
09/01/2017,http://opendatacommunities.org/id/county-council/surrey,Surrey,http://id.esd.org.uk/service/1465,Council expenditure,01/09/2016,CHEYNE WALK COMMUNITY HOME,ARGOS LTD,31.98,EQUIPMENT,DISCOUNT STORES
09/01/2017,http://opendatacommunities.org/id/county-council/surrey,Surrey,http://id.esd.org.uk/service/1465,Council expenditure,01/09/2016,SE SECTION 17 CARE,SURREY CC CARD PAY,50,OTHER COMMUNITY CARE VOL,COMPUTER NETWORK/INFORMATION SERVICES
09/01/2017,http://opendatacommunities.org/id/county-council/surrey,Surrey,http://id.esd.org.uk/service/1465,Council expenditure,01/09/2016,CHEYNE WALK COMMUNITY HOME,SPORTSDIRECT 91,37.99,"CLOTHING, UNIFORM AND LAUNDRY",SPORTING GOODS STORES
09/01/2017,http://opendatacommunities.org/id/county-council/surrey,Surrey,http://id.esd.org.uk/service/1465,Council expenditure,01/09/2016,CHEYNE WALK COMMUNITY HOME,SPORTSDIRECT 91,23.04,"CLOTHING, UNIFORM AND LAUNDRY",SPORTING GOODS STORES
09/01/2017,http://opendatacommunities.org/id/county-council/surrey,Surrey,http://id.esd.org.uk/service/1465,Council expenditure,01/09/2016,AD OPERATIONS HIGHWAYS AND COUNTRYSIDE,WWW.VIKING-DIRECT.CO.U,143.04,STATIONERY,STATIONERY/OFFICE SUPPLIES/PRINTING & WRITING PAP.
09/01/2017,http://opendatacommunities.org/id/county-council/surrey,Surrey,http://id.esd.org.uk/service/1465,Council expenditure,01/09/2016,CHEYNE WALK COMMUNITY HOME,J D SPORTS PLC,90.05,"CLOTHING, UNIFORM AND LAUNDRY",SPORTING GOODS STORES
09/01/2017,http://opendatacommunities.org/id/county-council/surrey,Surrey,http://id.esd.org.uk/service/1465,Council expenditure,01/09/2016,KARIBU COMMUNITY HOME,PARENTPAY.COM,90,PURCHASE OF FOOD (RAW MATERIALS),"COLLEGES, UNIV, PRO SCHOOLS, JUNIOR COLLEGES"
09/01/2017,http://opendatacommunities.org/id/county-council/surrey,Surrey,http://id.esd.org.uk/service/1465,Council expenditure,01/09/2016,STANWELL YOUTH CLUB,CREAMS,9.57,REFRESHMENT COSTS,"EATING PLACES, RESTAURANTS"
09/01/2017,http://opendatacommunities.org/id/county-council/surrey,Surrey,http://id.esd.org.uk/service/1465,Council expenditure,01/09/2016,KARIBU COMMUNITY HOME,T L C SOUTHERN LTD,79.2,EQUIPMENT,HOUSEHOLD APPLIANCE STORES
09/01/2017,http://opendatacommunities.org/id/county-council/surrey,Surrey,http://id.esd.org.uk/service/1465,Council expenditure,01/09/2016,SURREY THE GREAT WAR,EB  VOICES OF THE HOME,30,TRAINING EXPENSES EXTERNAL GENERAL,BUSINESS SERVICES-NOT ELSEWHERE CLASSIFIED
09/01/2017,http://opendatacommunities.org/id/county-council/surrey,Surrey,http://id.esd.org.uk/service/1465,Council expenditure,01/09/2016,"SW REF, ASS & INT SERVICE - HUB 1",MILK & MORE OFFLINE,144.55,REFRESHMENT COSTS,"MISC FOOD STORE-CONVENIENCE,MRKT,SPLTY,VENDNG MACS"
09/01/2017,http://opendatacommunities.org/id/county-council/surrey,Surrey,http://id.esd.org.uk/service/1465,Council expenditure,01/09/2016,ASSET PLANNING - OPERATIONS,WICKES,23.97,DAY TO DAY MAINTENANCE,"BUILDING MATERIALS, LUMBER STORES"
09/01/2017,http://opendatacommunities.org/id/county-council/surrey,Surrey,http://id.esd.org.uk/service/1465,Council expenditure,01/09/2016,BURBANK COMMUNITY HOME,ASDA STORES 4823,64,"CLOTHING, UNIFORM AND LAUNDRY","GROCERY STORES, SUPERMARKETS"
09/01/2017,http://opendatacommunities.org/id/county-council/surrey,Surrey,http://id.esd.org.uk/service/1465,Council expenditure,01/09/2016,ASSET PLANNING - OPERATIONS,POST OFFICE COUNTER,3.35,POSTAGE AND COURIER CHARGES,POSTAL SERVICES-GOVERNMENT ONLY
09/01/2017,http://opendatacommunities.org/id/county-council/surrey,Surrey,http://id.esd.org.uk/service/1465,Council expenditure,01/09/2016,INSTRUMENT HIRE SHOP,PAYPAL  PERCPLUS,41.78,EQUIPMENT,INDUSTRIAL SUPPLIES NOT ELSEWHERE CLASSIFIED
09/01/2017,http://opendatacommunities.org/id/county-council/surrey,Surrey,http://id.esd.org.uk/service/1465,Council expenditure,01/09/2016,NORTH WEST AREA TEAM,SP  SHERWOOD DIA,43.9,BOOKS,COMPUTER SOFTWARE STORES
09/01/2017,http://opendatacommunities.org/id/county-council/surrey,Surrey,http://id.esd.org.uk/service/1465,Council expenditure,01/09/2016,COVEHAM,SHOREFIELD HOLIDAY,470.96,EDUC VISITS/HOLS/CAMPS/TOYS,CAMPGROUNDS AND TRAILER PARKS
09/01/2017,http://opendatacommunities.org/id/county-council/surrey,Surrey,http://id.esd.org.uk/service/1465,Council expenditure,01/09/2016,EXTERNAL SERVICE LEAD,PRESERVATION EQUIP,709.2,EQUIPMENT,"PUBLIC WAREHOUSING-FARM, REFRIG GOODS, HHG STORAGE"
09/01/2017,http://opendatacommunities.org/id/county-council/surrey,Surrey,http://id.esd.org.uk/service/1465,Council expenditure,01/09/2016,COVEHAM,SHOREFIELD HOLIDAY,714.56,EDUC VISITS/HOLS/CAMPS/TOYS,CAMPGROUNDS AND TRAILER PARKS
09/01/2017,http://opendatacommunities.org/id/county-council/surrey,Surrey,http://id.esd.org.uk/service/1465,Council expenditure,01/09/2016,IMT SUPPORT FOR FIRE & RESCUE,PAYPAL  KAM TECH,8.99,COMPUTER CONSUMABLES,MISCELLANEOUS AND SPECIALTY RETAIL STORES
09/01/2017,http://opendatacommunities.org/id/county-council/surrey,Surrey,http://id.esd.org.uk/service/1465,Council expenditure,01/09/2016,DEMOCRATIC SERVICES TEAM,AMAZON UK MARKETPLACE,19.9,STATIONERY,BOOK STORES
09/01/2017,http://opendatacommunities.org/id/county-council/surrey,Surrey,http://id.esd.org.uk/service/1465,Council expenditure,01/09/2016,SOUTH EAST AREA TEAM,SURREY CC CARD PAY,50,EDUC VISITS/HOLS/CAMPS/TOYS,COMPUTER NETWORK/INFORMATION SERVICES
09/01/2017,http://opendatacommunities.org/id/county-council/surrey,Surrey,http://id.esd.org.uk/service/1465,Council expenditure,01/09/2016,HOPE SERVICE - WEST,ODEON,17.75,EDUC VISITS/HOLS/CAMPS/TOYS,MOTION PICTURE THEATERS
09/01/2017,http://opendatacommunities.org/id/county-council/surrey,Surrey,http://id.esd.org.uk/service/1465,Council expenditure,01/09/2016,CHEYNE WALK COMMUNITY HOME,FREEDOM LEISURE,7.6,EDUC VISITS/HOLS/CAMPS/TOYS,RECREATION SERVICES (NOT ELSEWHERE CLASSIFIED)
09/01/2017,http://opendatacommunities.org/id/county-council/surrey,Surrey,http://id.esd.org.uk/service/1465,Council expenditure,01/09/2016,SW CARE - CP & COURT LAC,POST OFFICE COUNTER,2.23,POSTAGE AND COURIER CHARGES,POSTAL SERVICES-GOVERNMENT ONLY
09/01/2017,http://opendatacommunities.org/id/county-council/surrey,Surrey,http://id.esd.org.uk/service/1465,Council expenditure,01/09/2016,NW CARE - CP & COURT LAC,POST OFFICE COUNTER,2.23,POSTAGE AND COURIER CHARGES,POSTAL SERVICES-GOVERNMENT ONLY
09/01/2017,http://opendatacommunities.org/id/county-council/surrey,Surrey,http://id.esd.org.uk/service/1465,Council expenditure,01/09/2016,NE CARE - CP & COURT LAC,POST OFFICE COUNTER,2.23,POSTAGE AND COURIER CHARGES,POSTAL SERVICES-GOVERNMENT ONLY
09/01/2017,http://opendatacommunities.org/id/county-council/surrey,Surrey,http://id.esd.org.uk/service/1465,Council expenditure,01/09/2016,SE CARE - CP & COURT LAC,POST OFFICE COUNTER,2.21,POSTAGE AND COURIER CHARGES,POSTAL SERVICES-GOVERNMENT ONLY
09/01/2017,http://opendatacommunities.org/id/county-council/surrey,Surrey,http://id.esd.org.uk/service/1465,Council expenditure,01/09/2016,CORONER,AMAZON EU,35.07,EQUIPMENT,DIRECT MARKETING-OTHER DIRECT MARKETERS/NOT ELSEW.
09/01/2017,http://opendatacommunities.org/id/county-council/surrey,Surrey,http://id.esd.org.uk/service/1465,Council expenditure,01/09/2016,SOLD DAY TO DAY OPERATIONS,AMAZON UK MARKETPLACE,14.99,DAY TO DAY MAINTENANCE,BOOK STORES
09/01/2017,http://opendatacommunities.org/id/county-council/surrey,Surrey,http://id.esd.org.uk/service/1465,Council expenditure,01/09/2016,FRIMLEY YC,SAINSBURYS SACAT 0784,4,PURCHASE OF FOOD (RAW MATERIALS),"GROCERY STORES, SUPERMARKETS"
09/01/2017,http://opendatacommunities.org/id/county-council/surrey,Surrey,http://id.esd.org.uk/service/1465,Council expenditure,01/09/2016,CHEYNE WALK COMMUNITY HOME,FREEPRINTS,5.26,EQUIPMENT,"PHOTO DEVELOPING, PHOTOFINISHING LABORATORIES"
09/01/2017,http://opendatacommunities.org/id/county-council/surrey,Surrey,http://id.esd.org.uk/service/1465,Council expenditure,01/09/2016,IMT CRITICAL ENVIRONMENTS,WWW.MILKANDMORE.CO.UK,7.8,REFRESHMENT COSTS,DIRECT MARKETING-CONTINUITY/SUBSCRIPTION MERCHANTS
09/01/2017,http://opendatacommunities.org/id/county-council/surrey,Surrey,http://id.esd.org.uk/service/1465,Council expenditure,01/09/2016,HILLSIDE,SAINSBURYS SACAT 0784,3,PURCHASE OF FOOD (RAW MATERIALS),"GROCERY STORES, SUPERMARKETS"
09/01/2017,http://opendatacommunities.org/id/county-council/surrey,Surrey,http://id.esd.org.uk/service/1465,Council expenditure,01/09/2016,HILLSIDE,SAINSBURYS SACAT 0784,4.2,PURCHASE OF FOOD (RAW MATERIALS),"GROCERY STORES, SUPERMARKETS"
09/01/2017,http://opendatacommunities.org/id/county-council/surrey,Surrey,http://id.esd.org.uk/service/1465,Council expenditure,01/09/2016,PE/CDT MAINTENANCE OVERHEADS,MARGNOR FASTENERS,153,EQUIPMENT,MISCELLANEOUS AND SPECIALTY RETAIL STORES
09/01/2017,http://opendatacommunities.org/id/county-council/surrey,Surrey,http://id.esd.org.uk/service/1465,Council expenditure,01/09/2016,ASHTEAD YC,MCDONALDS,14.35,REFRESHMENT COSTS,"EATING PLACES, RESTAURANTS"
09/01/2017,http://opendatacommunities.org/id/county-council/surrey,Surrey,http://id.esd.org.uk/service/1465,Council expenditure,01/09/2016,FRIMLEY YC,WAITROSE 514,11.55,PURCHASE OF FOOD (RAW MATERIALS),"GROCERY STORES, SUPERMARKETS"
09/01/2017,http://opendatacommunities.org/id/county-council/surrey,Surrey,http://id.esd.org.uk/service/1465,Council expenditure,01/09/2016,FRIMLEY YC,WAITROSE 514,5.8,REFRESHMENT COSTS,"GROCERY STORES, SUPERMARKETS"
09/01/2017,http://opendatacommunities.org/id/county-council/surrey,Surrey,http://id.esd.org.uk/service/1465,Council expenditure,01/09/2016,TRANSPORT,SCREWFIX DIRECT,26.97,DAY TO DAY MAINTENANCE,"BUILDING MATERIALS, LUMBER STORES"
09/01/2017,http://opendatacommunities.org/id/county-council/surrey,Surrey,http://id.esd.org.uk/service/1465,Council expenditure,01/09/2016,MALLOW CRESCENT,ARGOS RETAIL GROUP,7.99,EQUIPMENT,DISCOUNT STORES
09/01/2017,http://opendatacommunities.org/id/county-council/surrey,Surrey,http://id.esd.org.uk/service/1465,Council expenditure,01/09/2016,BANSTEAD YC,POST OFFICE COUNTER,9,POSTAGE AND COURIER CHARGES,POSTAL SERVICES-GOVERNMENT ONLY
09/01/2017,http://opendatacommunities.org/id/county-council/surrey,Surrey,http://id.esd.org.uk/service/1465,Council expenditure,01/09/2016,ACT,AMAZON UK MARKETPLACE,3.44,EQUIPMENT,BOOK STORES
09/01/2017,http://opendatacommunities.org/id/county-council/surrey,Surrey,http://id.esd.org.uk/service/1465,Council expenditure,01/09/2016,ARUNDEL,ASDA SUPERSTORE,13.45,REFRESHMENT COSTS,"GROCERY STORES, SUPERMARKETS"
09/01/2017,http://opendatacommunities.org/id/county-council/surrey,Surrey,http://id.esd.org.uk/service/1465,Council expenditure,01/09/2016,ARUNDEL,ASDA SUPERSTORE,2.9,REFRESHMENT COSTS,"GROCERY STORES, SUPERMARKETS"
09/01/2017,http://opendatacommunities.org/id/county-council/surrey,Surrey,http://id.esd.org.uk/service/1465,Council expenditure,01/09/2016,ARUNDEL,ASDA SUPERSTORE,4,CLEANING MATERIALS,"GROCERY STORES, SUPERMARKETS"
09/01/2017,http://opendatacommunities.org/id/county-council/surrey,Surrey,http://id.esd.org.uk/service/1465,Council expenditure,01/09/2016,FAIRCROFT COMMUNITY HOME,FARRANTS,37.58,EQUIPMENT,STATIONERY/OFFICE SUPPLIES/PRINTING & WRITING PAP.
09/01/2017,http://opendatacommunities.org/id/county-council/surrey,Surrey,http://id.esd.org.uk/service/1465,Council expenditure,01/09/2016,IMT CRITICAL ENVIRONMENTS,AMAZON UK MARKETPLACE,60.49,EQUIPMENT,BOOK STORES
09/01/2017,http://opendatacommunities.org/id/county-council/surrey,Surrey,http://id.esd.org.uk/service/1465,Council expenditure,01/09/2016,SOUTH EAST AREA TEAM,SWOTS,50.94,"CLOTHING, UNIFORM AND LAUNDRY","CLOTHING RENTAL-COSTUMES,UNIFORMS,FORMAL WEAR"
09/01/2017,http://opendatacommunities.org/id/county-council/surrey,Surrey,http://id.esd.org.uk/service/1465,Council expenditure,01/09/2016,SOLD ESTATES MANAGEMENT,SMB CANOPIES,24.8,DAY TO DAY MAINTENANCE,MISCELLANEOUS AND SPECIALTY RETAIL STORES
09/01/2017,http://opendatacommunities.org/id/county-council/surrey,Surrey,http://id.esd.org.uk/service/1465,Council expenditure,01/09/2016,MALLOW CRESCENT,SAINSBURYS TO YOU 0686,9.3,PURCHASE OF FOOD (RAW MATERIALS),"GROCERY STORES, SUPERMARKETS"
09/01/2017,http://opendatacommunities.org/id/county-council/surrey,Surrey,http://id.esd.org.uk/service/1465,Council expenditure,01/09/2016,MALLOW CRESCENT,SAINSBURYS TO YOU 0686,101.21,PURCHASE OF FOOD (RAW MATERIALS),"GROCERY STORES, SUPERMARKETS"
09/01/2017,http://opendatacommunities.org/id/county-council/surrey,Surrey,http://id.esd.org.uk/service/1465,Council expenditure,01/09/2016,ACL CENTRAL EXPENDITURE,AMAZON UK MARKETPLACE,89.09,EQUIPMENT,BOOK STORES
09/01/2017,http://opendatacommunities.org/id/county-council/surrey,Surrey,http://id.esd.org.uk/service/1465,Council expenditure,01/09/2016,HOPE SERVICE - EAST,MCDONALDS,2.28,REFRESHMENT COSTS,"EATING PLACES, RESTAURANTS"
09/01/2017,http://opendatacommunities.org/id/county-council/surrey,Surrey,http://id.esd.org.uk/service/1465,Council expenditure,01/09/2016,ACL CENTRAL EXPENDITURE,AMAZON UK MARKETPLACE,70.28,EQUIPMENT,BOOK STORES
09/01/2017,http://opendatacommunities.org/id/county-council/surrey,Surrey,http://id.esd.org.uk/service/1465,Council expenditure,01/09/2016,HILLSIDE,SAINSBURYS 0675,65.85,PURCHASE OF FOOD (RAW MATERIALS),"GROCERY STORES, SUPERMARKETS"
09/01/2017,http://opendatacommunities.org/id/county-council/surrey,Surrey,http://id.esd.org.uk/service/1465,Council expenditure,01/09/2016,COUNTY HALL,TLC (SOUTHERN) LTD,67.78,DAY TO DAY MAINTENANCE,HOUSEHOLD APPLIANCE STORES
09/01/2017,http://opendatacommunities.org/id/county-council/surrey,Surrey,http://id.esd.org.uk/service/1465,Council expenditure,01/09/2016,MALLOW CRESCENT,AMAZON UK RETAIL AMAZO,14.77,EQUIPMENT,MISCELLANEOUS AND SPECIALTY RETAIL STORES
09/01/2017,http://opendatacommunities.org/id/county-council/surrey,Surrey,http://id.esd.org.uk/service/1465,Council expenditure,01/09/2016,STUDENT FARECARD,SURREY CC CARD PAY,25,STUDENT FARE CARD (STUDENTFARECARDRAIL),COMPUTER NETWORK/INFORMATION SERVICES
09/01/2017,http://opendatacommunities.org/id/county-council/surrey,Surrey,http://id.esd.org.uk/service/1465,Council expenditure,01/09/2016,STUDENT FARECARD,SURREY CC CARD PAY,25,STUDENT FARE CARD (STUDENTFARECARDRAIL),COMPUTER NETWORK/INFORMATION SERVICES
09/01/2017,http://opendatacommunities.org/id/county-council/surrey,Surrey,http://id.esd.org.uk/service/1465,Council expenditure,01/09/2016,LAKERS YC,SAINSBURYS 0686,19.8,PURCHASE OF FOOD (RAW MATERIALS),"GROCERY STORES, SUPERMARKETS"
09/01/2017,http://opendatacommunities.org/id/county-council/surrey,Surrey,http://id.esd.org.uk/service/1465,Council expenditure,01/09/2016,IMT SUPPORT FOR FIRE & RESCUE,PAYPAL  JAMESRICKER,46,COMPUTER CONSUMABLES,MISCELLANEOUS AND SPECIALTY RETAIL STORES
09/01/2017,http://opendatacommunities.org/id/county-council/surrey,Surrey,http://id.esd.org.uk/service/1465,Council expenditure,01/09/2016,FAIRCROFT COMMUNITY HOME,TESCO STORE 2160,195.7,PURCHASE OF FOOD (RAW MATERIALS),"GROCERY STORES, SUPERMARKETS"
09/01/2017,http://opendatacommunities.org/id/county-council/surrey,Surrey,http://id.esd.org.uk/service/1465,Council expenditure,01/09/2016,DCLG FIRE CONTROL GRANT (CAPITAL),DEBENHAMSELECTRIC,"1,790.00",CE04 CAPITAL ICT,COMPUTER SOFTWARE STORES
09/01/2017,http://opendatacommunities.org/id/county-council/surrey,Surrey,http://id.esd.org.uk/service/1465,Council expenditure,01/09/2016,BURBANK COMMUNITY HOME,WWW.UKFLAIR.COM,53.96,EDUC VISITS/HOLS/CAMPS/TOYS,"SPORTS APPAREL, RIDING APPAREL STORES"
09/01/2017,http://opendatacommunities.org/id/county-council/surrey,Surrey,http://id.esd.org.uk/service/1465,Council expenditure,01/09/2016,IMT SUPPORT FOR FIRE & RESCUE,ASHBURY,115.2,TELECOMMUNICATION CHARGES,TELECOMMUNICATION EQUIPMENT INCL TELEPHONE SALES
09/01/2017,http://opendatacommunities.org/id/county-council/surrey,Surrey,http://id.esd.org.uk/service/1465,Council expenditure,01/09/2016,NORTH EAST AREA TEAM,MCDONALDS,9.17,REFRESHMENT COSTS,"EATING PLACES, RESTAURANTS"
09/01/2017,http://opendatacommunities.org/id/county-council/surrey,Surrey,http://id.esd.org.uk/service/1465,Council expenditure,01/09/2016,STUDENT FARECARD,SURREY CC CARD PAY,-25,STUDENT FARE CARD (STUDENTFARECARDRAIL),COMPUTER NETWORK/INFORMATION SERVICES
09/01/2017,http://opendatacommunities.org/id/county-council/surrey,Surrey,http://id.esd.org.uk/service/1465,Council expenditure,01/09/2016,STUDENT FARECARD,SURREY CC CARD PAY,-25,STUDENT FARE CARD (STUDENTFARECARDRAIL),COMPUTER NETWORK/INFORMATION SERVICES
09/01/2017,http://opendatacommunities.org/id/county-council/surrey,Surrey,http://id.esd.org.uk/service/1465,Council expenditure,01/09/2016,MALLOW CRESCENT,SAINSBURYS TO YOU 0686,-1.25,PURCHASE OF FOOD (RAW MATERIALS),"GROCERY STORES, SUPERMARKETS"
09/01/2017,http://opendatacommunities.org/id/county-council/surrey,Surrey,http://id.esd.org.uk/service/1465,Council expenditure,02/09/2016,APPLEWOOD,ASDA HOME SHOPPING,-4.51,PURCHASE OF FOOD (RAW MATERIALS),"GROCERY STORES, SUPERMARKETS"
09/01/2017,http://opendatacommunities.org/id/county-council/surrey,Surrey,http://id.esd.org.uk/service/1465,Council expenditure,02/09/2016,APPLEWOOD,ASDA HOME SHOPPING,77.72,PURCHASE OF FOOD (RAW MATERIALS),"GROCERY STORES, SUPERMARKETS"
09/01/2017,http://opendatacommunities.org/id/county-council/surrey,Surrey,http://id.esd.org.uk/service/1465,Council expenditure,02/09/2016,COMMUNICATIONS TEAM,TIMES NEWSPAPERS LTD,34.67,SUBSCRIPTIONS,"BOOKS,PERIODICALS AND NEWSPAPERS"
09/01/2017,http://opendatacommunities.org/id/county-council/surrey,Surrey,http://id.esd.org.uk/service/1465,Council expenditure,02/09/2016,STANWELL YOUTH CLUB,AMAZON UK MARKETPLACE,11.96,EQUIPMENT,BOOK STORES
09/01/2017,http://opendatacommunities.org/id/county-council/surrey,Surrey,http://id.esd.org.uk/service/1465,Council expenditure,02/09/2016,SHEPPERTON YC,AMAZON UK MARKETPLACE,8.99,EQUIPMENT,BOOK STORES
09/01/2017,http://opendatacommunities.org/id/county-council/surrey,Surrey,http://id.esd.org.uk/service/1465,Council expenditure,02/09/2016,SHEPPERTON YC,AMAZON UK MARKETPLACE,32.3,EQUIPMENT,BOOK STORES
09/01/2017,http://opendatacommunities.org/id/county-council/surrey,Surrey,http://id.esd.org.uk/service/1465,Council expenditure,02/09/2016,STANWELL YOUTH CLUB,AMAZON UK MARKETPLACE,1.62,EQUIPMENT,BOOK STORES
09/01/2017,http://opendatacommunities.org/id/county-council/surrey,Surrey,http://id.esd.org.uk/service/1465,Council expenditure,02/09/2016,CHEYNE WALK COMMUNITY HOME,FOOTASYLUM LTD,44.98,"CLOTHING, UNIFORM AND LAUNDRY",SPORTING GOODS STORES
09/01/2017,http://opendatacommunities.org/id/county-council/surrey,Surrey,http://id.esd.org.uk/service/1465,Council expenditure,02/09/2016,CHEYNE WALK COMMUNITY HOME,BURGER KING BLUEWATER,16.16,REFRESHMENT COSTS,FAST FOOD RESTAURANTS
09/01/2017,http://opendatacommunities.org/id/county-council/surrey,Surrey,http://id.esd.org.uk/service/1465,Council expenditure,02/09/2016,CHEYNE WALK COMMUNITY HOME,J D SPORTS 131,55.05,"CLOTHING, UNIFORM AND LAUNDRY",SPORTING GOODS STORES
09/01/2017,http://opendatacommunities.org/id/county-council/surrey,Surrey,http://id.esd.org.uk/service/1465,Council expenditure,02/09/2016,CHEYNE WALK COMMUNITY HOME,TFS STORES LTD - BLUEW,23.05,"CLOTHING, UNIFORM AND LAUNDRY",COSMETIC STORES
09/01/2017,http://opendatacommunities.org/id/county-council/surrey,Surrey,http://id.esd.org.uk/service/1465,Council expenditure,02/09/2016,THE BRIDGE YC,AMAZON UK MARKETPLACE,29.97,EQUIPMENT,BOOK STORES
09/01/2017,http://opendatacommunities.org/id/county-council/surrey,Surrey,http://id.esd.org.uk/service/1465,Council expenditure,02/09/2016,SHEERWATER YC,ASDA  STORES 4775,11.47,PURCHASE OF FOOD (RAW MATERIALS),"GROCERY STORES, SUPERMARKETS"
09/01/2017,http://opendatacommunities.org/id/county-council/surrey,Surrey,http://id.esd.org.uk/service/1465,Council expenditure,02/09/2016,ARUNDEL,TESCO STORES 5999,174.24,REFRESHMENT COSTS,"GROCERY STORES, SUPERMARKETS"
09/01/2017,http://opendatacommunities.org/id/county-council/surrey,Surrey,http://id.esd.org.uk/service/1465,Council expenditure,02/09/2016,RBDM - GENERAL,AMAZON UK MARKETPLACE,12.88,STATIONERY,BOOK STORES
09/01/2017,http://opendatacommunities.org/id/county-council/surrey,Surrey,http://id.esd.org.uk/service/1465,Council expenditure,02/09/2016,RUTH HOUSE,THE FARM SHOP-,500,PURCHASE OF FOOD (RAW MATERIALS),"CLOCK, JEWELRY, WATCH, AND SILVERWARE STORE"
09/01/2017,http://opendatacommunities.org/id/county-council/surrey,Surrey,http://id.esd.org.uk/service/1465,Council expenditure,02/09/2016,RUTH HOUSE,THE FARM SHOP-,500,PURCHASE OF FOOD (RAW MATERIALS),"CLOCK, JEWELRY, WATCH, AND SILVERWARE STORE"
09/01/2017,http://opendatacommunities.org/id/county-council/surrey,Surrey,http://id.esd.org.uk/service/1465,Council expenditure,02/09/2016,RUTH HOUSE,AMAZON UK MARKETPLACE,58.77,EQUIPMENT,BOOK STORES
09/01/2017,http://opendatacommunities.org/id/county-council/surrey,Surrey,http://id.esd.org.uk/service/1465,Council expenditure,02/09/2016,RUTH HOUSE,AMAZON UK MARKETPLACE,9.92,FURNITURE,BOOK STORES
09/01/2017,http://opendatacommunities.org/id/county-council/surrey,Surrey,http://id.esd.org.uk/service/1465,Council expenditure,02/09/2016,SW NIL RECOURSE TO PUBLIC FUNDS CARE,TRAVELODGE,821.35,INDEPENDENT LIVING PLACEMENTS,TRAVELODGE
09/01/2017,http://opendatacommunities.org/id/county-council/surrey,Surrey,http://id.esd.org.uk/service/1465,Council expenditure,02/09/2016,ARUNDEL,ASDA STORES,60,CLEANING MATERIALS,"GROCERY STORES, SUPERMARKETS"
09/01/2017,http://opendatacommunities.org/id/county-council/surrey,Surrey,http://id.esd.org.uk/service/1465,Council expenditure,02/09/2016,RUTH HOUSE,WWW.IWANTWALLPAPER,44.95,PURCHASE OF BUILDING MATERIALS,"GLASS, PAINT, WALLPAPER STORES"
09/01/2017,http://opendatacommunities.org/id/county-council/surrey,Surrey,http://id.esd.org.uk/service/1465,Council expenditure,02/09/2016,SOLD DAY TO DAY OPERATIONS,AMAZON EU,14.37,EQUIPMENT,DIRECT MARKETING-OTHER DIRECT MARKETERS/NOT ELSEW.
09/01/2017,http://opendatacommunities.org/id/county-council/surrey,Surrey,http://id.esd.org.uk/service/1465,Council expenditure,02/09/2016,NORTH EAST AREA TEAM,COSTA,4.75,REFRESHMENT COSTS,"EATING PLACES, RESTAURANTS"
09/01/2017,http://opendatacommunities.org/id/county-council/surrey,Surrey,http://id.esd.org.uk/service/1465,Council expenditure,02/09/2016,ASSET PLANNING - OPERATIONS,BRITISH STANDARDS,700.8,BOOKS,BUSINESS SERVICES-NOT ELSEWHERE CLASSIFIED
09/01/2017,http://opendatacommunities.org/id/county-council/surrey,Surrey,http://id.esd.org.uk/service/1465,Council expenditure,02/09/2016,ASSET PLANNING - OPERATIONS,BRITISH STANDARDS,513.6,BOOKS,BUSINESS SERVICES-NOT ELSEWHERE CLASSIFIED
09/01/2017,http://opendatacommunities.org/id/county-council/surrey,Surrey,http://id.esd.org.uk/service/1465,Council expenditure,02/09/2016,SUPERFAST BROADBAND ECONOMIC DEVELOPMENT,GOOGLE  SVCSAPPS_SUPER,16.5,COMPUTER SERVICES,DIRECT MARKETING-CONTINUITY/SUBSCRIPTION MERCHANTS
09/01/2017,http://opendatacommunities.org/id/county-council/surrey,Surrey,http://id.esd.org.uk/service/1465,Council expenditure,02/09/2016,LIBERTAS COMMUNITY HOME,GUILFORD SCHOOLS & SPO,54,"CLOTHING, UNIFORM AND LAUNDRY",SPORTING GOODS STORES
09/01/2017,http://opendatacommunities.org/id/county-council/surrey,Surrey,http://id.esd.org.uk/service/1465,Council expenditure,02/09/2016,ASSET PLANNING - OPERATIONS,BRITISH STANDARDS,408,BOOKS,BUSINESS SERVICES-NOT ELSEWHERE CLASSIFIED
09/01/2017,http://opendatacommunities.org/id/county-council/surrey,Surrey,http://id.esd.org.uk/service/1465,Council expenditure,02/09/2016,HOPE SERVICE - EAST,SAINSBURYS 0683,65.68,PURCHASE OF FOOD (RAW MATERIALS),"GROCERY STORES, SUPERMARKETS"
09/01/2017,http://opendatacommunities.org/id/county-council/surrey,Surrey,http://id.esd.org.uk/service/1465,Council expenditure,02/09/2016,HILLSIDE,SCOOTERMART OK CAR,195,EQUIPMENT,ORTHOPEDIC GOODS-ARTIFICIAL LIMB STORES
09/01/2017,http://opendatacommunities.org/id/county-council/surrey,Surrey,http://id.esd.org.uk/service/1465,Council expenditure,02/09/2016,HILLSIDE,SCOOTERMART OK CAR,78.17,EQUIPMENT,ORTHOPEDIC GOODS-ARTIFICIAL LIMB STORES
09/01/2017,http://opendatacommunities.org/id/county-council/surrey,Surrey,http://id.esd.org.uk/service/1465,Council expenditure,02/09/2016,"NW REF, ASS & INT SERVICE - HUB 1",SURREY CC CARD PAY,50,TRAINING EXPENSES EXTERNAL GENERAL,COMPUTER NETWORK/INFORMATION SERVICES
09/01/2017,http://opendatacommunities.org/id/county-council/surrey,Surrey,http://id.esd.org.uk/service/1465,Council expenditure,02/09/2016,ASSET PLANNING - OPERATIONS,B & Q 1029,5.02,EQUIPMENT,"BUILDING MATERIALS, LUMBER STORES"
09/01/2017,http://opendatacommunities.org/id/county-council/surrey,Surrey,http://id.esd.org.uk/service/1465,Council expenditure,02/09/2016,REIGATE & BANSTEAD LOCAL CARE OP,ARGOS RETAIL GROUP,228.94,EQUIPMENT,DISCOUNT STORES
09/01/2017,http://opendatacommunities.org/id/county-council/surrey,Surrey,http://id.esd.org.uk/service/1465,Council expenditure,02/09/2016,SURREY ARTS GENERAL,PHOENIX MUSIC & GIFTWA,34.45,CURRIC BOOKS,"GIFT, CARD, NOVELTY AND SOUVENIR SHOPS"
09/01/2017,http://opendatacommunities.org/id/county-council/surrey,Surrey,http://id.esd.org.uk/service/1465,Council expenditure,02/09/2016,COUNTY HALL,PLUMB CENTER BGE,67.37,DAY TO DAY MAINTENANCE,"HEATING, PLUMBING, AIR CONDITIONING CONTRACTORS"
09/01/2017,http://opendatacommunities.org/id/county-council/surrey,Surrey,http://id.esd.org.uk/service/1465,Council expenditure,02/09/2016,CONSERVATION,WWW.OXBOWBOOKS.COM,38.95,BOOKS,BOOK STORES
09/01/2017,http://opendatacommunities.org/id/county-council/surrey,Surrey,http://id.esd.org.uk/service/1465,Council expenditure,02/09/2016,TRANSPORT DEVELOPMENT CONTROL,AMAZON UK RETAIL AMAZO,65.04,EQUIPMENT,MISCELLANEOUS AND SPECIALTY RETAIL STORES
09/01/2017,http://opendatacommunities.org/id/county-council/surrey,Surrey,http://id.esd.org.uk/service/1465,Council expenditure,02/09/2016,ROW VOLUNTEERS EAST                     ,MILLETS,10.05,EQUIPMENT,SPORTING GOODS STORES
09/01/2017,http://opendatacommunities.org/id/county-council/surrey,Surrey,http://id.esd.org.uk/service/1465,Council expenditure,02/09/2016,TRANSPORT DEVELOPMENT CONTROL,AMAZON EU,65.04,EQUIPMENT,DIRECT MARKETING-OTHER DIRECT MARKETERS/NOT ELSEW.
09/01/2017,http://opendatacommunities.org/id/county-council/surrey,Surrey,http://id.esd.org.uk/service/1465,Council expenditure,02/09/2016,TRAINING AND DEVELOPMENT,WWWFLEECEWHITNEY.CO.UK,80,TRAINING EXPENSES EXTERNAL GENERAL,"BAR,LOUNGE,DISCO,NIGHTCLUB,TAVERN-ALCOHOLIC DRINKS"
09/01/2017,http://opendatacommunities.org/id/county-council/surrey,Surrey,http://id.esd.org.uk/service/1465,Council expenditure,02/09/2016,NW CARE - LAC,TRAVELODGE,115,MISCELLANEOUS STAFF TRAVEL,TRAVELODGE
09/01/2017,http://opendatacommunities.org/id/county-council/surrey,Surrey,http://id.esd.org.uk/service/1465,Council expenditure,02/09/2016,GUILDFORD BOROUGH TEAM                  ,E RUSSUM & SONS LTD,60.75,"CLOTHING, UNIFORM AND LAUNDRY",MISCELLANEOUS GENERAL MERCHANDISE
09/01/2017,http://opendatacommunities.org/id/county-council/surrey,Surrey,http://id.esd.org.uk/service/1465,Council expenditure,02/09/2016,SOUTH WEST AREA TEAM,MB WORLD,190,EDUC VISITS/HOLS/CAMPS/TOYS,AUTOMOTIVE SERVICE SHOPS
09/01/2017,http://opendatacommunities.org/id/county-council/surrey,Surrey,http://id.esd.org.uk/service/1465,Council expenditure,02/09/2016,SURREY ARTS GENERAL,JUNE EMERSON WIND,39.2,CURRIC BOOKS,"MUSIC STORES-INSTRUMENTS, PIANOS, SHEET MUSIC"
09/01/2017,http://opendatacommunities.org/id/county-council/surrey,Surrey,http://id.esd.org.uk/service/1465,Council expenditure,02/09/2016,COUNTRYSIDE MANAGEMENT TEAM,NHBS LTD,63.44,STATIONERY,BOOK STORES
09/01/2017,http://opendatacommunities.org/id/county-council/surrey,Surrey,http://id.esd.org.uk/service/1465,Council expenditure,02/09/2016,COUNTY HALL,AMAZON UK MARKETPLACE,197.19,EQUIPMENT,BOOK STORES
09/01/2017,http://opendatacommunities.org/id/county-council/surrey,Surrey,http://id.esd.org.uk/service/1465,Council expenditure,02/09/2016,ACT,AMAZON UK RETAIL AMAZO,9,EQUIPMENT,MISCELLANEOUS AND SPECIALTY RETAIL STORES
09/01/2017,http://opendatacommunities.org/id/county-council/surrey,Surrey,http://id.esd.org.uk/service/1465,Council expenditure,02/09/2016,NE CARE - CP & COURT LAC,GRO HM PASSPORT OFFICE,23.4,CHILDREN ACT SEC 17 PAYMENTS,GOVERNMENT SERVICES-NOT ELSEWHERE CLASSIFIED
09/01/2017,http://opendatacommunities.org/id/county-council/surrey,Surrey,http://id.esd.org.uk/service/1465,Council expenditure,02/09/2016,WOODLANDS COMMUNITY HOME,TICKETS 08712200260,112.5,EDUC VISITS/HOLS/CAMPS/TOYS,"THEATRICAL PRODUCERS(EXCL MOTION PIX),TICKET AGNCY"
09/01/2017,http://opendatacommunities.org/id/county-council/surrey,Surrey,http://id.esd.org.uk/service/1465,Council expenditure,02/09/2016,ACL CENTRAL EXPENDITURE,AMAZON UK MARKETPLACE,47.95,EQUIPMENT,BOOK STORES
09/01/2017,http://opendatacommunities.org/id/county-council/surrey,Surrey,http://id.esd.org.uk/service/1465,Council expenditure,02/09/2016,HILLSIDE,SAINSBURYS 0675,7.5,PURCHASE OF FOOD (RAW MATERIALS),"GROCERY STORES, SUPERMARKETS"
09/01/2017,http://opendatacommunities.org/id/county-council/surrey,Surrey,http://id.esd.org.uk/service/1465,Council expenditure,02/09/2016,HILLSIDE,SAINSBURYS 0675,99.59,PURCHASE OF FOOD (RAW MATERIALS),"GROCERY STORES, SUPERMARKETS"
09/01/2017,http://opendatacommunities.org/id/county-council/surrey,Surrey,http://id.esd.org.uk/service/1465,Council expenditure,02/09/2016,TRANSPORT,WEYBRIDGE,5.99,DAY TO DAY MAINTENANCE,"BUILDING MATERIALS, LUMBER STORES"
09/01/2017,http://opendatacommunities.org/id/county-council/surrey,Surrey,http://id.esd.org.uk/service/1465,Council expenditure,02/09/2016,ASHFORD YC,TESCO STORES-2047,9.41,REFRESHMENT COSTS,"GROCERY STORES, SUPERMARKETS"
09/01/2017,http://opendatacommunities.org/id/county-council/surrey,Surrey,http://id.esd.org.uk/service/1465,Council expenditure,02/09/2016,NORTH WEST AREA TEAM,HOEBRIDGE GOLF,84,EDUC VISITS/HOLS/CAMPS/TOYS,GOLF COURSES-PUBLIC
09/01/2017,http://opendatacommunities.org/id/county-council/surrey,Surrey,http://id.esd.org.uk/service/1465,Council expenditure,02/09/2016,EXTENDED HOPE,IKEA ONLINE,292,CURRICULUM EQUIPMENT AND FURNITURE,MISCELLANEOUS HOUSE FURNISHING SPECIALTY SHOPS
09/01/2017,http://opendatacommunities.org/id/county-council/surrey,Surrey,http://id.esd.org.uk/service/1465,Council expenditure,02/09/2016,NW CARE - NON-LAC CP & COURT,WWW.SURREYHEATH.GOV.UK,72.71,CHILDREN ACT SEC 17 PAYMENTS,"THEATRICAL PRODUCERS(EXCL MOTION PIX),TICKET AGNCY"
09/01/2017,http://opendatacommunities.org/id/county-council/surrey,Surrey,http://id.esd.org.uk/service/1465,Council expenditure,02/09/2016,LIBERTAS COMMUNITY HOME,SAINSBURYS 0652,6.4,PURCHASE OF FOOD (RAW MATERIALS),"GROCERY STORES, SUPERMARKETS"
09/01/2017,http://opendatacommunities.org/id/county-council/surrey,Surrey,http://id.esd.org.uk/service/1465,Council expenditure,02/09/2016,LIBERTAS COMMUNITY HOME,SAINSBURYS 0652,14.75,EQUIPMENT,"GROCERY STORES, SUPERMARKETS"
09/01/2017,http://opendatacommunities.org/id/county-council/surrey,Surrey,http://id.esd.org.uk/service/1465,Council expenditure,02/09/2016,LIBERTAS COMMUNITY HOME,SAINSBURYS 0652,132.49,PURCHASE OF FOOD (RAW MATERIALS),"GROCERY STORES, SUPERMARKETS"
09/01/2017,http://opendatacommunities.org/id/county-council/surrey,Surrey,http://id.esd.org.uk/service/1465,Council expenditure,02/09/2016,DOWNLANDS COUNTRYSIDE PROJECT,ROVERTOW,150,VEHICLE REPAIRS AND MAINTENANCE,"CAMPER DEALERS, RECREATIONAL AND UTILITY TRAILERS"
09/01/2017,http://opendatacommunities.org/id/county-council/surrey,Surrey,http://id.esd.org.uk/service/1465,Council expenditure,02/09/2016,READY FOR WORK YSS,VUE NCS CITB HS&E TEST,19.5,EDUC VISITS/HOLS/CAMPS/TOYS,SCHOOLS & EDUCATIONAL SVC-NOT ELSEWHERE CLASSIFIED
09/01/2017,http://opendatacommunities.org/id/county-council/surrey,Surrey,http://id.esd.org.uk/service/1465,Council expenditure,02/09/2016,NWEST FOSTERING TEAM,THE BOOK PEOPLE,161.69,BOOKS,BOOK STORES
09/01/2017,http://opendatacommunities.org/id/county-council/surrey,Surrey,http://id.esd.org.uk/service/1465,Council expenditure,02/09/2016,NWEST FOSTERING TEAM,IKEA ONLINE,157.5,EQUIPMENT,MISCELLANEOUS HOUSE FURNISHING SPECIALTY SHOPS
09/01/2017,http://opendatacommunities.org/id/county-council/surrey,Surrey,http://id.esd.org.uk/service/1465,Council expenditure,02/09/2016,TRAINING AND DEVELOPMENT,WWWFLEECEWHITNEY.CO.UK,80,TRAINING EXPENSES EXTERNAL GENERAL,"BAR,LOUNGE,DISCO,NIGHTCLUB,TAVERN-ALCOHOLIC DRINKS"
09/01/2017,http://opendatacommunities.org/id/county-council/surrey,Surrey,http://id.esd.org.uk/service/1465,Council expenditure,02/09/2016,TRAINING AND DEVELOPMENT,THE FLEECE,20,PURCHASE OF FOOD (RAW MATERIALS),"BAR,LOUNGE,DISCO,NIGHTCLUB,TAVERN-ALCOHOLIC DRINKS"
09/01/2017,http://opendatacommunities.org/id/county-council/surrey,Surrey,http://id.esd.org.uk/service/1465,Council expenditure,03/09/2016,CS BUSINESS SUPPORT EAST,AMAZON UK RETAIL AMAZO,52.17,MISCELLANEOUS STAFF TRAVEL,MISCELLANEOUS AND SPECIALTY RETAIL STORES
09/01/2017,http://opendatacommunities.org/id/county-council/surrey,Surrey,http://id.esd.org.uk/service/1465,Council expenditure,03/09/2016,FAIRCROFT COMMUNITY HOME,CHINA CHEF,62.6,REFRESHMENT COSTS,FAST FOOD RESTAURANTS
09/01/2017,http://opendatacommunities.org/id/county-council/surrey,Surrey,http://id.esd.org.uk/service/1465,Council expenditure,03/09/2016,CHEYNE WALK COMMUNITY HOME,NANDOS EPSOM,82.85,PURCHASE OF FOOD (RAW MATERIALS),"EATING PLACES, RESTAURANTS"
09/01/2017,http://opendatacommunities.org/id/county-council/surrey,Surrey,http://id.esd.org.uk/service/1465,Council expenditure,03/09/2016,SOLD CATERING,CO-OP GROUP FOOD,21.92,PURCHASE OF FOOD (RAW MATERIALS),"GROCERY STORES, SUPERMARKETS"
09/01/2017,http://opendatacommunities.org/id/county-council/surrey,Surrey,http://id.esd.org.uk/service/1465,Council expenditure,03/09/2016,SOLD ESTATES MANAGEMENT,AMAZON UK RETAIL AMAZO,4.1,EQUIPMENT,MISCELLANEOUS AND SPECIALTY RETAIL STORES
09/01/2017,http://opendatacommunities.org/id/county-council/surrey,Surrey,http://id.esd.org.uk/service/1465,Council expenditure,03/09/2016,LIBERTAS COMMUNITY HOME,SAINSBURYS 0652,20,PURCHASE OF FOOD (RAW MATERIALS),"GROCERY STORES, SUPERMARKETS"
09/01/2017,http://opendatacommunities.org/id/county-council/surrey,Surrey,http://id.esd.org.uk/service/1465,Council expenditure,03/09/2016,FAIRCROFT COMMUNITY HOME,MARKS&SPENCER PLC,71.05,"CLOTHING, UNIFORM AND LAUNDRY","GROCERY STORES, SUPERMARKETS"
09/01/2017,http://opendatacommunities.org/id/county-council/surrey,Surrey,http://id.esd.org.uk/service/1465,Council expenditure,03/09/2016,LAKERS YC,TEXACO SICKLEHOLME,53.45,PETROL/DIESEL ALL OFF BUSINESS,SERVICE STATIONS WITH OR WITHOUT ANCILLARY SERVICE
09/01/2017,http://opendatacommunities.org/id/county-council/surrey,Surrey,http://id.esd.org.uk/service/1465,Council expenditure,03/09/2016,COVEHAM,SAINSBURYS TO YOU 0687,78.5,CLEANING MATERIALS,"GROCERY STORES, SUPERMARKETS"
09/01/2017,http://opendatacommunities.org/id/county-council/surrey,Surrey,http://id.esd.org.uk/service/1465,Council expenditure,03/09/2016,CHEYNE WALK COMMUNITY HOME,MCDONALDS,5.16,REFRESHMENT COSTS,"EATING PLACES, RESTAURANTS"
09/01/2017,http://opendatacommunities.org/id/county-council/surrey,Surrey,http://id.esd.org.uk/service/1465,Council expenditure,03/09/2016,HOLLAND CLOSE RESIDENTIAL HOME,TESCO-STORES 6647,166.49,PURCHASE OF FOOD (RAW MATERIALS),"GROCERY STORES, SUPERMARKETS"
09/01/2017,http://opendatacommunities.org/id/county-council/surrey,Surrey,http://id.esd.org.uk/service/1465,Council expenditure,03/09/2016,HILLSIDE,TESCO STORE 3149,63.43,PURCHASE OF FOOD (RAW MATERIALS),"GROCERY STORES, SUPERMARKETS"
09/01/2017,http://opendatacommunities.org/id/county-council/surrey,Surrey,http://id.esd.org.uk/service/1465,Council expenditure,03/09/2016,HILLSIDE,TESCO STORE 3149,245.51,PURCHASE OF FOOD (RAW MATERIALS),"GROCERY STORES, SUPERMARKETS"
09/01/2017,http://opendatacommunities.org/id/county-council/surrey,Surrey,http://id.esd.org.uk/service/1465,Council expenditure,03/09/2016,SAP COMPETENCY CENTRE,AMAZON MKTPLACE PMTS,"1,243.48",COMPUTER SERVICES,MISCELLANEOUS AND SPECIALTY RETAIL STORES
09/01/2017,http://opendatacommunities.org/id/county-council/surrey,Surrey,http://id.esd.org.uk/service/1465,Council expenditure,04/09/2016,FAIRCROFT COMMUNITY HOME,NANDOS GUILDFORD,64.9,REFRESHMENT COSTS,"EATING PLACES, RESTAURANTS"
09/01/2017,http://opendatacommunities.org/id/county-council/surrey,Surrey,http://id.esd.org.uk/service/1465,Council expenditure,04/09/2016,LAKERS YC,TRIDENT G 20220505,28.78,PETROL/DIESEL ALL OFF BUSINESS,SERVICE STATIONS WITH OR WITHOUT ANCILLARY SERVICE
09/01/2017,http://opendatacommunities.org/id/county-council/surrey,Surrey,http://id.esd.org.uk/service/1465,Council expenditure,04/09/2016,LAKERS YC,WELCOME B/BK,43.83,REFRESHMENT COSTS,"MISC FOOD STORE-CONVENIENCE,MRKT,SPLTY,VENDNG MACS"
09/01/2017,http://opendatacommunities.org/id/county-council/surrey,Surrey,http://id.esd.org.uk/service/1465,Council expenditure,04/09/2016,FAIRCROFT COMMUNITY HOME,ARPAN LONDIS,8.97,REFRESHMENT COSTS,"GROCERY STORES, SUPERMARKETS"
09/01/2017,http://opendatacommunities.org/id/county-council/surrey,Surrey,http://id.esd.org.uk/service/1465,Council expenditure,04/09/2016,FAIRCROFT COMMUNITY HOME,ODEON,50.25,EDUC VISITS/HOLS/CAMPS/TOYS,MOTION PICTURE THEATERS
09/01/2017,http://opendatacommunities.org/id/county-council/surrey,Surrey,http://id.esd.org.uk/service/1465,Council expenditure,04/09/2016,CHEYNE WALK COMMUNITY HOME,SAINSBURYS PFS(1524),43.13,PURCHASE OF FOOD (RAW MATERIALS),SERVICE STATIONS WITH OR WITHOUT ANCILLARY SERVICE
09/01/2017,http://opendatacommunities.org/id/county-council/surrey,Surrey,http://id.esd.org.uk/service/1465,Council expenditure,04/09/2016,SURREY HILLS AONB,AMAZON EU,18.99,BOOKS,DIRECT MARKETING-OTHER DIRECT MARKETERS/NOT ELSEW.
09/01/2017,http://opendatacommunities.org/id/county-council/surrey,Surrey,http://id.esd.org.uk/service/1465,Council expenditure,04/09/2016,IMT SUPPORT FOR FIRE & RESCUE,NETGEAR,199.26,COMPUTER SERVICES,COMPUTER MAIN./REPAIR/SERVICES NOT ELSEWHERE CLASS
09/01/2017,http://opendatacommunities.org/id/county-council/surrey,Surrey,http://id.esd.org.uk/service/1465,Council expenditure,04/09/2016,RUTH HOUSE,AMAZON UK MARKETPLACE,24.7,EQUIPMENT,BOOK STORES
09/01/2017,http://opendatacommunities.org/id/county-council/surrey,Surrey,http://id.esd.org.uk/service/1465,Council expenditure,04/09/2016,FINANCE CHANGE AND PERFORMANCE GROUP,AMAZON UK RETAIL AMAZO,13.29,EQUIPMENT,MISCELLANEOUS AND SPECIALTY RETAIL STORES
09/01/2017,http://opendatacommunities.org/id/county-council/surrey,Surrey,http://id.esd.org.uk/service/1465,Council expenditure,04/09/2016,FAIRCROFT COMMUNITY HOME,OFFICE HOLDINGS,56.99,"CLOTHING, UNIFORM AND LAUNDRY",SHOE STORES
09/01/2017,http://opendatacommunities.org/id/county-council/surrey,Surrey,http://id.esd.org.uk/service/1465,Council expenditure,04/09/2016,COMMUNICATIONS - SURREY MATTERS,HOOTSUITE MEDIA INC.,5.59,SUBSCRIPTIONS,BUSINESS SERVICES-NOT ELSEWHERE CLASSIFIED
09/01/2017,http://opendatacommunities.org/id/county-council/surrey,Surrey,http://id.esd.org.uk/service/1465,Council expenditure,05/09/2016,SE SECTION 17 CARE,GRO HM PASSPORT OFFICE,-9.25,FEES,GOVERNMENT SERVICES-NOT ELSEWHERE CLASSIFIED
09/01/2017,http://opendatacommunities.org/id/county-council/surrey,Surrey,http://id.esd.org.uk/service/1465,Council expenditure,05/09/2016,RESOURCES STATIONERY                    ,AMAZON UK RETAIL AMAZO,48.14,EQUIPMENT,MISCELLANEOUS AND SPECIALTY RETAIL STORES
09/01/2017,http://opendatacommunities.org/id/county-council/surrey,Surrey,http://id.esd.org.uk/service/1465,Council expenditure,05/09/2016,BURBANK COMMUNITY HOME,PRIMARK,1.7,"CLOTHING, UNIFORM AND LAUNDRY",FAMILY CLOTHING STORES
09/01/2017,http://opendatacommunities.org/id/county-council/surrey,Surrey,http://id.esd.org.uk/service/1465,Council expenditure,05/09/2016,PROPERTY OPERATIONS TEAM,TOOLSTATION LTD,9.55,PURCHASE OF BUILDING MATERIALS,HARDWARE STORES
09/01/2017,http://opendatacommunities.org/id/county-council/surrey,Surrey,http://id.esd.org.uk/service/1465,Council expenditure,05/09/2016,PROPERTY OPERATIONS TEAM,TOOLSTATION LTD,13.1,PURCHASE OF BUILDING MATERIALS,HARDWARE STORES
09/01/2017,http://opendatacommunities.org/id/county-council/surrey,Surrey,http://id.esd.org.uk/service/1465,Council expenditure,05/09/2016,ARUNDEL,TESCO STORE 3040,17.05,REFRESHMENT COSTS,"GROCERY STORES, SUPERMARKETS"
09/01/2017,http://opendatacommunities.org/id/county-council/surrey,Surrey,http://id.esd.org.uk/service/1465,Council expenditure,05/09/2016,ARUNDEL,TESCO STORE 3040,6.4,REFRESHMENT COSTS,"GROCERY STORES, SUPERMARKETS"
09/01/2017,http://opendatacommunities.org/id/county-council/surrey,Surrey,http://id.esd.org.uk/service/1465,Council expenditure,05/09/2016,STANWELL YOUTH CLUB,AMAZON UK MARKETPLACE,8.31,EQUIPMENT,BOOK STORES
09/01/2017,http://opendatacommunities.org/id/county-council/surrey,Surrey,http://id.esd.org.uk/service/1465,Council expenditure,05/09/2016,CHEYNE WALK COMMUNITY HOME,FORT RAJ CATERING,39.05,PURCHASE OF FOOD (RAW MATERIALS),"EATING PLACES, RESTAURANTS"
09/01/2017,http://opendatacommunities.org/id/county-council/surrey,Surrey,http://id.esd.org.uk/service/1465,Council expenditure,05/09/2016,GUILDFORD STAFFING,CO-OP GROUP 180273,4.58,PURCHASE OF FOOD (RAW MATERIALS),"GROCERY STORES, SUPERMARKETS"
09/01/2017,http://opendatacommunities.org/id/county-council/surrey,Surrey,http://id.esd.org.uk/service/1465,Council expenditure,05/09/2016,CHEYNE WALK COMMUNITY HOME,SPICE BOYS INDIAN,37.2,PURCHASE OF FOOD (RAW MATERIALS),FAST FOOD RESTAURANTS
09/01/2017,http://opendatacommunities.org/id/county-council/surrey,Surrey,http://id.esd.org.uk/service/1465,Council expenditure,05/09/2016,CHEYNE WALK COMMUNITY HOME,LLOYDS PHARMACY,1.85,EQUIPMENT,"DRUG STORES, PHARMACIES"
09/01/2017,http://opendatacommunities.org/id/county-council/surrey,Surrey,http://id.esd.org.uk/service/1465,Council expenditure,05/09/2016,HOPE SERVICE - WEST,SAINSBURYS SACAT(4409),5.75,PURCHASE OF FOOD (RAW MATERIALS),"GROCERY STORES, SUPERMARKETS"
09/01/2017,http://opendatacommunities.org/id/county-council/surrey,Surrey,http://id.esd.org.uk/service/1465,Council expenditure,05/09/2016,BUSINESS UNIT,WP-CERTITEC (TA PD,554.96,TRAINING EXPENSES EXTERNAL GENERAL,"COMP PROGRAMING,DATA PRCSNG,INTGRTD SYS DSGN SRVS"
09/01/2017,http://opendatacommunities.org/id/county-council/surrey,Surrey,http://id.esd.org.uk/service/1465,Council expenditure,05/09/2016,CHEYNE WALK COMMUNITY HOME,TESCO STORES 2560,37,STATIONERY,"GROCERY STORES, SUPERMARKETS"
09/01/2017,http://opendatacommunities.org/id/county-council/surrey,Surrey,http://id.esd.org.uk/service/1465,Council expenditure,05/09/2016,TRANSPORT,TRAINLINE.COM LTD,88.23,SUBSISTENCE AND CONFERENCE EXPENSES,PASSENGER RAILWAYS
09/01/2017,http://opendatacommunities.org/id/county-council/surrey,Surrey,http://id.esd.org.uk/service/1465,Council expenditure,05/09/2016,RUTH HOUSE,AMAZON UK MARKETPLACE,14.95,EQUIPMENT,BOOK STORES
09/01/2017,http://opendatacommunities.org/id/county-council/surrey,Surrey,http://id.esd.org.uk/service/1465,Council expenditure,05/09/2016,RUTH HOUSE,AMAZON UK MARKETPLACE,39.96,EQUIPMENT,BOOK STORES
09/01/2017,http://opendatacommunities.org/id/county-council/surrey,Surrey,http://id.esd.org.uk/service/1465,Council expenditure,05/09/2016,SE SECTION 17 CARE,GRO HM PASSPORT OFFICE,9.25,FEES,GOVERNMENT SERVICES-NOT ELSEWHERE CLASSIFIED
09/01/2017,http://opendatacommunities.org/id/county-council/surrey,Surrey,http://id.esd.org.uk/service/1465,Council expenditure,05/09/2016,PE/CDT MAINTENANCE OVERHEADS,HARROD UK SPORT,200.77,EQUIPMENT,"SPORTS APPAREL, RIDING APPAREL STORES"
09/01/2017,http://opendatacommunities.org/id/county-council/surrey,Surrey,http://id.esd.org.uk/service/1465,Council expenditure,05/09/2016,PE/CDT MAINTENANCE OVERHEADS,HARROD UK SPORT,412.31,EQUIPMENT,"SPORTS APPAREL, RIDING APPAREL STORES"
09/01/2017,http://opendatacommunities.org/id/county-council/surrey,Surrey,http://id.esd.org.uk/service/1465,Council expenditure,05/09/2016,LINTONS YC,WEST EWELL RUXLEY LANE,2.74,REFRESHMENT COSTS,DEPARTMENT STORES
09/01/2017,http://opendatacommunities.org/id/county-council/surrey,Surrey,http://id.esd.org.uk/service/1465,Council expenditure,05/09/2016,GYC WORKSHOPS                           ,COACHWISE LTD,22.79,FEES,"CLUBS-CNTRY,MBRSHIP(ATHLET,REC,SPRTS,PRIVATE GOLF"
09/01/2017,http://opendatacommunities.org/id/county-council/surrey,Surrey,http://id.esd.org.uk/service/1465,Council expenditure,05/09/2016,GYC WORKSHOPS                           ,COACHWISE LTD,500,FEES,"CLUBS-CNTRY,MBRSHIP(ATHLET,REC,SPRTS,PRIVATE GOLF"
09/01/2017,http://opendatacommunities.org/id/county-council/surrey,Surrey,http://id.esd.org.uk/service/1465,Council expenditure,05/09/2016,TRANSPORT,AMAZON UK MARKETPLACE,2.95,COMPUTER HARDWARE,BOOK STORES
09/01/2017,http://opendatacommunities.org/id/county-council/surrey,Surrey,http://id.esd.org.uk/service/1465,Council expenditure,05/09/2016,SE CARE - LAC,GRO HM PASSPORT OFFICE,18.5,FEES,GOVERNMENT SERVICES-NOT ELSEWHERE CLASSIFIED
09/01/2017,http://opendatacommunities.org/id/county-council/surrey,Surrey,http://id.esd.org.uk/service/1465,Council expenditure,05/09/2016,TRANSPORT,HYDRAULIC CRANE SERVIC,820.25,VEHICLE REPAIRS AND MAINTENANCE,"ARCHITECTURAL, ENGINEERING, AND SURVEYING SERVICES"
09/01/2017,http://opendatacommunities.org/id/county-council/surrey,Surrey,http://id.esd.org.uk/service/1465,Council expenditure,05/09/2016,NW CARE - CP & COURT LAC,TRAVELODGE,54,CHILDREN ACT SEC 17 PAYMENTS,TRAVELODGE
09/01/2017,http://opendatacommunities.org/id/county-council/surrey,Surrey,http://id.esd.org.uk/service/1465,Council expenditure,05/09/2016,IMT MODERN WORKER,WWW.COMBINED-KNOWLEDGE,"3,060.00",TRAINING EXPENSES EXTERNAL GENERAL,"SCHOOLS, BUSINESS AND SECRETARIAL"
09/01/2017,http://opendatacommunities.org/id/county-council/surrey,Surrey,http://id.esd.org.uk/service/1465,Council expenditure,05/09/2016,ASH YC,G LIVE,3,REFRESHMENT COSTS,"EATING PLACES, RESTAURANTS"
09/01/2017,http://opendatacommunities.org/id/county-council/surrey,Surrey,http://id.esd.org.uk/service/1465,Council expenditure,05/09/2016,APPLEWOOD,AMFBOWLING.CO.UK,12,EDUC VISITS/HOLS/CAMPS/TOYS,BOWLING ALLEYS
09/01/2017,http://opendatacommunities.org/id/county-council/surrey,Surrey,http://id.esd.org.uk/service/1465,Council expenditure,05/09/2016,ACL CENTRAL EXPENDITURE,WWW.WARM-GLASS.CO.UK,54.2,EQUIPMENT,"ARTIST SUPPLY STORES, CRAFT SHOPS"
09/01/2017,http://opendatacommunities.org/id/county-council/surrey,Surrey,http://id.esd.org.uk/service/1465,Council expenditure,05/09/2016,CORPORATE GROUP - LEGAL SERVICES,BHCC-PAYPHONEPARKING,5.3,EXPENSES,GOVERNMENT SERVICES-NOT ELSEWHERE CLASSIFIED
09/01/2017,http://opendatacommunities.org/id/county-council/surrey,Surrey,http://id.esd.org.uk/service/1465,Council expenditure,05/09/2016,RESOURCES STATIONERY                    ,AMAZON UK MARKETPLACE,5.62,EQUIPMENT,BOOK STORES
09/01/2017,http://opendatacommunities.org/id/county-council/surrey,Surrey,http://id.esd.org.uk/service/1465,Council expenditure,05/09/2016,OCCUPATIONAL HEALTH,AMAZON EU,18.2,EQUIPMENT,DIRECT MARKETING-OTHER DIRECT MARKETERS/NOT ELSEW.
09/01/2017,http://opendatacommunities.org/id/county-council/surrey,Surrey,http://id.esd.org.uk/service/1465,Council expenditure,05/09/2016,PE/CDT MAINTENANCE OVERHEADS,SPORTSART FITNESS,21.66,ITEMS PURCHASED FOR RE-SALE,"COMMERCIAL EQUIPMENT, NOT ELSEWHERE CLASSIFIED"
09/01/2017,http://opendatacommunities.org/id/county-council/surrey,Surrey,http://id.esd.org.uk/service/1465,Council expenditure,05/09/2016,DIRECTORATE PROGRAMMES GROUP,AMAZON UK MARKETPLACE,47.98,COMPUTER HARDWARE,BOOK STORES
09/01/2017,http://opendatacommunities.org/id/county-council/surrey,Surrey,http://id.esd.org.uk/service/1465,Council expenditure,05/09/2016,TRANSPORT DEVELOPMENT CONTROL,AMAZON UK MARKETPLACE,32,EQUIPMENT,BOOK STORES
09/01/2017,http://opendatacommunities.org/id/county-council/surrey,Surrey,http://id.esd.org.uk/service/1465,Council expenditure,05/09/2016,APPLEWOOD,WWW.HUNTLEIGH-HEAL,98.4,EQUIPMENT,"HEALTH PRACTITIONERS, MEDICAL SRVCS-NOT ELSEWHERE"
09/01/2017,http://opendatacommunities.org/id/county-council/surrey,Surrey,http://id.esd.org.uk/service/1465,Council expenditure,05/09/2016,PE/CDT MAINTENANCE OVERHEADS,MARK HARROD LTD,63.6,ITEMS PURCHASED FOR RE-SALE,SPORTING GOODS STORES
09/01/2017,http://opendatacommunities.org/id/county-council/surrey,Surrey,http://id.esd.org.uk/service/1465,Council expenditure,05/09/2016,TRANSPORT,CARDIAC SCIENCE HOLDIN,207,OPERATIONAL FIRE EQUIPMENT,DENTAL/LAB/MED/OPHTHALMIC HOSP EQUIP & SUPPLIES
09/01/2017,http://opendatacommunities.org/id/county-council/surrey,Surrey,http://id.esd.org.uk/service/1465,Council expenditure,05/09/2016,NW CARE - CP & COURT LAC,GRO HM PASSPORT OFFICE,18.5,FEES,GOVERNMENT SERVICES-NOT ELSEWHERE CLASSIFIED
09/01/2017,http://opendatacommunities.org/id/county-council/surrey,Surrey,http://id.esd.org.uk/service/1465,Council expenditure,05/09/2016,LIBERTAS COMMUNITY HOME,SAINSBURYS 0652,23.7,PURCHASE OF FOOD (RAW MATERIALS),"GROCERY STORES, SUPERMARKETS"
09/01/2017,http://opendatacommunities.org/id/county-council/surrey,Surrey,http://id.esd.org.uk/service/1465,Council expenditure,05/09/2016,LIBERTAS COMMUNITY HOME,SAINSBURYS 0652,117.9,PURCHASE OF FOOD (RAW MATERIALS),"GROCERY STORES, SUPERMARKETS"
09/01/2017,http://opendatacommunities.org/id/county-council/surrey,Surrey,http://id.esd.org.uk/service/1465,Council expenditure,05/09/2016,FAIRCROFT COMMUNITY HOME,WWW.PARENTMAIL.CO.,30,REFRESHMENT COSTS,SCHOOLS & EDUCATIONAL SVC-NOT ELSEWHERE CLASSIFIED
09/01/2017,http://opendatacommunities.org/id/county-council/surrey,Surrey,http://id.esd.org.uk/service/1465,Council expenditure,05/09/2016,RBDM - GENERAL,SAFE.CO.UK,22.62,EQUIPMENT,"OFFICE, SCHOOL SUPPLY, AND STATIONERY STORES"
09/01/2017,http://opendatacommunities.org/id/county-council/surrey,Surrey,http://id.esd.org.uk/service/1465,Council expenditure,05/09/2016,RBDM - GENERAL,PASS  PORTABLE APPLIAN,107.58,EQUIPMENT,MISCELLANEOUS AND SPECIALTY RETAIL STORES
09/01/2017,http://opendatacommunities.org/id/county-council/surrey,Surrey,http://id.esd.org.uk/service/1465,Council expenditure,05/09/2016,ASH YC,TESCO STORES 6165,1.5,EQUIPMENT,"GROCERY STORES, SUPERMARKETS"
09/01/2017,http://opendatacommunities.org/id/county-council/surrey,Surrey,http://id.esd.org.uk/service/1465,Council expenditure,05/09/2016,ARUNDEL,TESCO DIRECT,159.15,EQUIPMENT,MISCELLANEOUS AND SPECIALTY RETAIL STORES
09/01/2017,http://opendatacommunities.org/id/county-council/surrey,Surrey,http://id.esd.org.uk/service/1465,Council expenditure,05/09/2016,HOPE SERVICE - WEST,TESCO STORE 2590,144.05,PURCHASE OF FOOD (RAW MATERIALS),"GROCERY STORES, SUPERMARKETS"
09/01/2017,http://opendatacommunities.org/id/county-council/surrey,Surrey,http://id.esd.org.uk/service/1465,Council expenditure,05/09/2016,CHEYNE WALK COMMUNITY HOME,METROBUS - REDHILL,148,NON-STAFF RELATED TRANSPORT COSTS,BUS LINES
09/01/2017,http://opendatacommunities.org/id/county-council/surrey,Surrey,http://id.esd.org.uk/service/1465,Council expenditure,05/09/2016,HILLSIDE,SAINSBURYS 0784,38.6,PURCHASE OF FOOD (RAW MATERIALS),"GROCERY STORES, SUPERMARKETS"
09/01/2017,http://opendatacommunities.org/id/county-council/surrey,Surrey,http://id.esd.org.uk/service/1465,Council expenditure,05/09/2016,ACCESS 2 EDUCATION SE NON-MEDICAL,SURREY CC CARD PAY,50,SUBSISTENCE AND CONFERENCE EXPENSES,COMPUTER NETWORK/INFORMATION SERVICES
09/01/2017,http://opendatacommunities.org/id/county-council/surrey,Surrey,http://id.esd.org.uk/service/1465,Council expenditure,05/09/2016,ACCESS 2 EDUCATION SE NON-MEDICAL,SURREY CC CARD PAY,50,SUBSISTENCE AND CONFERENCE EXPENSES,COMPUTER NETWORK/INFORMATION SERVICES
09/01/2017,http://opendatacommunities.org/id/county-council/surrey,Surrey,http://id.esd.org.uk/service/1465,Council expenditure,05/09/2016,TS SERVICE MANAGEMENT,DIGITALID.CO.UK,87.41,EQUIPMENT,"OFFICE, SCHOOL SUPPLY, AND STATIONERY STORES"
09/01/2017,http://opendatacommunities.org/id/county-council/surrey,Surrey,http://id.esd.org.uk/service/1465,Council expenditure,05/09/2016,ACCESS 2 EDUCATION SE NON-MEDICAL,SURREY CC CARD PAY,50,SUBSISTENCE AND CONFERENCE EXPENSES,COMPUTER NETWORK/INFORMATION SERVICES
09/01/2017,http://opendatacommunities.org/id/county-council/surrey,Surrey,http://id.esd.org.uk/service/1465,Council expenditure,05/09/2016,GUILDFORD YC,WWW.AIRHOPTRAMPELINEOA,92,EDUC VISITS/HOLS/CAMPS/TOYS,RECREATIONAL AND SPORTING CAMPS
09/01/2017,http://opendatacommunities.org/id/county-council/surrey,Surrey,http://id.esd.org.uk/service/1465,Council expenditure,05/09/2016,SOLD DAY TO DAY OPERATIONS,WWW.QUICKSARCHERY.CO.U,15.76,EQUIPMENT,SPORTING GOODS STORES
09/01/2017,http://opendatacommunities.org/id/county-council/surrey,Surrey,http://id.esd.org.uk/service/1465,Council expenditure,05/09/2016,COVEHAM,SAINSBURYS TO YOU 0687,10.65,REFRESHMENT COSTS,"GROCERY STORES, SUPERMARKETS"
09/01/2017,http://opendatacommunities.org/id/county-council/surrey,Surrey,http://id.esd.org.uk/service/1465,Council expenditure,05/09/2016,COVEHAM,SAINSBURYS TO YOU 0687,177.82,REFRESHMENT COSTS,"GROCERY STORES, SUPERMARKETS"
09/01/2017,http://opendatacommunities.org/id/county-council/surrey,Surrey,http://id.esd.org.uk/service/1465,Council expenditure,05/09/2016,BURBANK COMMUNITY HOME,SAINSBURYS SACAT 0686,12.85,MEDICAL EXPENSES,"GROCERY STORES, SUPERMARKETS"
09/01/2017,http://opendatacommunities.org/id/county-council/surrey,Surrey,http://id.esd.org.uk/service/1465,Council expenditure,05/09/2016,PINEHURST RESIDENTIAL CARE,AMAZON UK MARKETPLACE,54.69,MEDICAL EXPENSES,BOOK STORES
09/01/2017,http://opendatacommunities.org/id/county-council/surrey,Surrey,http://id.esd.org.uk/service/1465,Council expenditure,05/09/2016,WORKING TOGETHER,WP-THE BRITISH ASS,130,SUBSCRIPTIONS,"ORGANIZATIONS, CHARITABLE AND SOCIAL SERVICES"
09/01/2017,http://opendatacommunities.org/id/county-council/surrey,Surrey,http://id.esd.org.uk/service/1465,Council expenditure,05/09/2016,MALLOW CRESCENT,SAINSBURYS TO YOU 0686,6.55,PURCHASE OF FOOD (RAW MATERIALS),"GROCERY STORES, SUPERMARKETS"
09/01/2017,http://opendatacommunities.org/id/county-council/surrey,Surrey,http://id.esd.org.uk/service/1465,Council expenditure,05/09/2016,MALLOW CRESCENT,SAINSBURYS TO YOU 0686,101.05,PURCHASE OF FOOD (RAW MATERIALS),"GROCERY STORES, SUPERMARKETS"
09/01/2017,http://opendatacommunities.org/id/county-council/surrey,Surrey,http://id.esd.org.uk/service/1465,Council expenditure,05/09/2016,MALLOW CRESCENT,SAINSBURYS TO YOU 0686,8.35,PURCHASE OF FOOD (RAW MATERIALS),"GROCERY STORES, SUPERMARKETS"
09/01/2017,http://opendatacommunities.org/id/county-council/surrey,Surrey,http://id.esd.org.uk/service/1465,Council expenditure,05/09/2016,MALLOW CRESCENT,SAINSBURYS TO YOU 0686,93,PURCHASE OF FOOD (RAW MATERIALS),"GROCERY STORES, SUPERMARKETS"
09/01/2017,http://opendatacommunities.org/id/county-council/surrey,Surrey,http://id.esd.org.uk/service/1465,Council expenditure,05/09/2016,MALLOW CRESCENT,TESCO STORE 2590,12,PURCHASE OF FOOD (RAW MATERIALS),"GROCERY STORES, SUPERMARKETS"
09/01/2017,http://opendatacommunities.org/id/county-council/surrey,Surrey,http://id.esd.org.uk/service/1465,Council expenditure,05/09/2016,MALLOW CRESCENT,TESCO STORE 2590,61.81,PURCHASE OF FOOD (RAW MATERIALS),"GROCERY STORES, SUPERMARKETS"
09/01/2017,http://opendatacommunities.org/id/county-council/surrey,Surrey,http://id.esd.org.uk/service/1465,Council expenditure,05/09/2016,FAIRCROFT COMMUNITY HOME,PARENTPAY.COM,100,REFRESHMENT COSTS,"COLLEGES, UNIV, PRO SCHOOLS, JUNIOR COLLEGES"
09/01/2017,http://opendatacommunities.org/id/county-council/surrey,Surrey,http://id.esd.org.uk/service/1465,Council expenditure,05/09/2016,LIBERTAS COMMUNITY HOME,SAINSBURYS TO YOU 0652,125.45,PURCHASE OF FOOD (RAW MATERIALS),"GROCERY STORES, SUPERMARKETS"
09/01/2017,http://opendatacommunities.org/id/county-council/surrey,Surrey,http://id.esd.org.uk/service/1465,Council expenditure,05/09/2016,MALLOW CRESCENT,SAINSBURYS TO YOU 0686,5.9,PURCHASE OF FOOD (RAW MATERIALS),"GROCERY STORES, SUPERMARKETS"
09/01/2017,http://opendatacommunities.org/id/county-council/surrey,Surrey,http://id.esd.org.uk/service/1465,Council expenditure,05/09/2016,MALLOW CRESCENT,SAINSBURYS TO YOU 0686,27.11,PURCHASE OF FOOD (RAW MATERIALS),"GROCERY STORES, SUPERMARKETS"
09/01/2017,http://opendatacommunities.org/id/county-council/surrey,Surrey,http://id.esd.org.uk/service/1465,Council expenditure,05/09/2016,ARUNDEL,ASDA HOME SHOPPING,115.5,CLEANING MATERIALS,"GROCERY STORES, SUPERMARKETS"
09/01/2017,http://opendatacommunities.org/id/county-council/surrey,Surrey,http://id.esd.org.uk/service/1465,Council expenditure,06/09/2016,IMT SUPPORT FOR FIRE & RESCUE,CPC,17.18,COMPUTER CONSUMABLES,ELECTRICAL PARTS AND EQUIPMENT
09/01/2017,http://opendatacommunities.org/id/county-council/surrey,Surrey,http://id.esd.org.uk/service/1465,Council expenditure,06/09/2016,CHEYNE WALK COMMUNITY HOME,SURREY & SUSSEX HEALTH,2.2,NON-STAFF RELATED TRANSPORT COSTS,GOVERNMENT SERVICES-NOT ELSEWHERE CLASSIFIED
09/01/2017,http://opendatacommunities.org/id/county-council/surrey,Surrey,http://id.esd.org.uk/service/1465,Council expenditure,06/09/2016,IMT SUPPORT FOR FIRE & RESCUE,PAYPAL  RABBMACC,79,STATIONERY,MISCELLANEOUS AND SPECIALTY RETAIL STORES
09/01/2017,http://opendatacommunities.org/id/county-council/surrey,Surrey,http://id.esd.org.uk/service/1465,Council expenditure,06/09/2016,IMT SUPPORT FOR FIRE & RESCUE,PAYPAL  MATTWESTBRO,3.74,COMPUTER CONSUMABLES,MISCELLANEOUS AND SPECIALTY RETAIL STORES
09/01/2017,http://opendatacommunities.org/id/county-council/surrey,Surrey,http://id.esd.org.uk/service/1465,Council expenditure,06/09/2016,RBDM - GENERAL,SAFE.CO.UK,22.62,EQUIPMENT,"OFFICE, SCHOOL SUPPLY, AND STATIONERY STORES"
09/01/2017,http://opendatacommunities.org/id/county-council/surrey,Surrey,http://id.esd.org.uk/service/1465,Council expenditure,06/09/2016,FINANCE CHANGE AND PERFORMANCE GROUP,AMAZON UK RETAIL AMAZO,77.25,EQUIPMENT,MISCELLANEOUS AND SPECIALTY RETAIL STORES
09/01/2017,http://opendatacommunities.org/id/county-council/surrey,Surrey,http://id.esd.org.uk/service/1465,Council expenditure,06/09/2016,DCLG FIRE CONTROL GRANT (CAPITAL),CPC,125.15,CE04 CAPITAL ICT,ELECTRICAL PARTS AND EQUIPMENT
09/01/2017,http://opendatacommunities.org/id/county-council/surrey,Surrey,http://id.esd.org.uk/service/1465,Council expenditure,06/09/2016,BURBANK COMMUNITY HOME,CAR PARKS SPH,3.2,MISCELLANEOUS STAFF TRAVEL,GOVERNMENT SERVICES-NOT ELSEWHERE CLASSIFIED
09/01/2017,http://opendatacommunities.org/id/county-council/surrey,Surrey,http://id.esd.org.uk/service/1465,Council expenditure,06/09/2016,CHEYNE WALK COMMUNITY HOME,ROYAL VOLUNTARY SERVIC,6.1,NON-STAFF RELATED TRANSPORT COSTS,"ORGANIZATIONS, CHARITABLE AND SOCIAL SERVICES"
09/01/2017,http://opendatacommunities.org/id/county-council/surrey,Surrey,http://id.esd.org.uk/service/1465,Council expenditure,06/09/2016,IMT SUPPORT FOR FIRE & RESCUE,PREMIER INN,78.99,SUBSISTENCE AND CONFERENCE EXPENSES,PREMIER INN
09/01/2017,http://opendatacommunities.org/id/county-council/surrey,Surrey,http://id.esd.org.uk/service/1465,Council expenditure,06/09/2016,IMT SUPPORT FOR FIRE & RESCUE,AMAZON UK RETAIL AMAZO,11.99,COMPUTER CONSUMABLES,MISCELLANEOUS AND SPECIALTY RETAIL STORES
09/01/2017,http://opendatacommunities.org/id/county-council/surrey,Surrey,http://id.esd.org.uk/service/1465,Council expenditure,06/09/2016,IMT SUPPORT FOR FIRE & RESCUE,AMAZON UK RETAIL AMAZO,9.99,COMPUTER CONSUMABLES,MISCELLANEOUS AND SPECIALTY RETAIL STORES
09/01/2017,http://opendatacommunities.org/id/county-council/surrey,Surrey,http://id.esd.org.uk/service/1465,Council expenditure,06/09/2016,ACL CENTRAL EXPENDITURE,FACEBK YHTK2ANBB2,5.28,PUBLICITY,ADVERTISING SERVICES
09/01/2017,http://opendatacommunities.org/id/county-council/surrey,Surrey,http://id.esd.org.uk/service/1465,Council expenditure,06/09/2016,ACL CENTRAL EXPENDITURE,FACEBK XHTK2ANBB2,395.37,PUBLICITY,ADVERTISING SERVICES
09/01/2017,http://opendatacommunities.org/id/county-council/surrey,Surrey,http://id.esd.org.uk/service/1465,Council expenditure,06/09/2016,FAIRCROFT COMMUNITY HOME,TESCO STORES-2160,62.3,PURCHASE OF FOOD (RAW MATERIALS),"GROCERY STORES, SUPERMARKETS"
09/01/2017,http://opendatacommunities.org/id/county-council/surrey,Surrey,http://id.esd.org.uk/service/1465,Council expenditure,06/09/2016,THE BRIDGE YC,TESCO STORES 2812,11.55,PURCHASE OF FOOD (RAW MATERIALS),"GROCERY STORES, SUPERMARKETS"
09/01/2017,http://opendatacommunities.org/id/county-council/surrey,Surrey,http://id.esd.org.uk/service/1465,Council expenditure,06/09/2016,SURREY ARTS GENERAL,AMAZON UK RETAIL AMAZO,13.99,BOOKS,MISCELLANEOUS AND SPECIALTY RETAIL STORES
09/01/2017,http://opendatacommunities.org/id/county-council/surrey,Surrey,http://id.esd.org.uk/service/1465,Council expenditure,06/09/2016,HOPE SERVICE - EAST,SAINSBURYS 0683,32.95,PURCHASE OF FOOD (RAW MATERIALS),"GROCERY STORES, SUPERMARKETS"
09/01/2017,http://opendatacommunities.org/id/county-council/surrey,Surrey,http://id.esd.org.uk/service/1465,Council expenditure,06/09/2016,SPELTHORNE BOROUGH TEAM                 ,WWW.LABEEBY.CO.UK,39,EQUIPMENT,MEN'S AND WOMEN'S CLOTHING STORES
09/01/2017,http://opendatacommunities.org/id/county-council/surrey,Surrey,http://id.esd.org.uk/service/1465,Council expenditure,06/09/2016,FARNHAM YC,LIDL UK,13.64,PURCHASE OF FOOD (RAW MATERIALS),"GROCERY STORES, SUPERMARKETS"
09/01/2017,http://opendatacommunities.org/id/county-council/surrey,Surrey,http://id.esd.org.uk/service/1465,Council expenditure,06/09/2016,FARNHAM YC,LIDL UK,2.09,PURCHASE OF FOOD (RAW MATERIALS),"GROCERY STORES, SUPERMARKETS"
09/01/2017,http://opendatacommunities.org/id/county-council/surrey,Surrey,http://id.esd.org.uk/service/1465,Council expenditure,06/09/2016,CHEYNE WALK COMMUNITY HOME,TESCO STORES 2560,45.92,EQUIPMENT,"GROCERY STORES, SUPERMARKETS"
09/01/2017,http://opendatacommunities.org/id/county-council/surrey,Surrey,http://id.esd.org.uk/service/1465,Council expenditure,06/09/2016,SPELTHORNE BOROUGH TEAM                 ,DENNIS WILLIAMS,125.99,EQUIPMENT,BARBER AND BEAUTY SHOPS
09/01/2017,http://opendatacommunities.org/id/county-council/surrey,Surrey,http://id.esd.org.uk/service/1465,Council expenditure,06/09/2016,SPELTHORNE BOROUGH TEAM                 ,DENNIS WILLIAMS,282.95,EQUIPMENT,BARBER AND BEAUTY SHOPS
09/01/2017,http://opendatacommunities.org/id/county-council/surrey,Surrey,http://id.esd.org.uk/service/1465,Council expenditure,06/09/2016,HERITAGE PUBLIC SERVICE,BOOKER LIMITED ALDERSH,11.14,REFRESHMENT COSTS,CATERERS
09/01/2017,http://opendatacommunities.org/id/county-council/surrey,Surrey,http://id.esd.org.uk/service/1465,Council expenditure,06/09/2016,ORBIS HEAD OF PROCUREMENT,AMAZON UK MARKETPLACE,113,EQUIPMENT,BOOK STORES
09/01/2017,http://opendatacommunities.org/id/county-council/surrey,Surrey,http://id.esd.org.uk/service/1465,Council expenditure,06/09/2016,GUILDFORD YC,AMAZON UK MARKETPLACE,63.66,EQUIPMENT,BOOK STORES
09/01/2017,http://opendatacommunities.org/id/county-council/surrey,Surrey,http://id.esd.org.uk/service/1465,Council expenditure,06/09/2016,GUILDFORD YC,AMAZON UK MARKETPLACE,6.5,EQUIPMENT,BOOK STORES
09/01/2017,http://opendatacommunities.org/id/county-council/surrey,Surrey,http://id.esd.org.uk/service/1465,Council expenditure,06/09/2016,IMT SUPPORT FOR FIRE & RESCUE,AMAZON UK MARKETPLACE,28.19,COMPUTER CONSUMABLES,BOOK STORES
09/01/2017,http://opendatacommunities.org/id/county-council/surrey,Surrey,http://id.esd.org.uk/service/1465,Council expenditure,06/09/2016,DOWNLANDS COUNTRYSIDE PROJECT,THE SURREY WILDLIFE TR,90,TRAINING EXPENSES EXTERNAL GENERAL,"ORGANIZATIONS, CHARITABLE AND SOCIAL SERVICES"
09/01/2017,http://opendatacommunities.org/id/county-council/surrey,Surrey,http://id.esd.org.uk/service/1465,Council expenditure,06/09/2016,HILLSIDE,TESCO STORE 3149,10.5,PURCHASE OF FOOD (RAW MATERIALS),"GROCERY STORES, SUPERMARKETS"
09/01/2017,http://opendatacommunities.org/id/county-council/surrey,Surrey,http://id.esd.org.uk/service/1465,Council expenditure,06/09/2016,HILLSIDE,TESCO STORE 3149,40.17,PURCHASE OF FOOD (RAW MATERIALS),"GROCERY STORES, SUPERMARKETS"
09/01/2017,http://opendatacommunities.org/id/county-council/surrey,Surrey,http://id.esd.org.uk/service/1465,Council expenditure,06/09/2016,TRAINING LEGAL SERVICES,WWW.THELAWSOCIETY.ORG.,48,TRAINING EXPENSES EXTERNAL GENERAL,"ORGANIZATIONS, MEMBERSHIP-NOT ELSEWHERE CLASSIFIED"
09/01/2017,http://opendatacommunities.org/id/county-council/surrey,Surrey,http://id.esd.org.uk/service/1465,Council expenditure,06/09/2016,COUNTY HALL,CATER-KWIK LTD,376.74,EQUIPMENT,"COMMERCIAL EQUIPMENT, NOT ELSEWHERE CLASSIFIED"
09/01/2017,http://opendatacommunities.org/id/county-council/surrey,Surrey,http://id.esd.org.uk/service/1465,Council expenditure,06/09/2016,ACCESS 2 EDUCATION SE NON-MEDICAL,SURREY CC CARD PAY,50,SUBSISTENCE AND CONFERENCE EXPENSES,COMPUTER NETWORK/INFORMATION SERVICES
09/01/2017,http://opendatacommunities.org/id/county-council/surrey,Surrey,http://id.esd.org.uk/service/1465,Council expenditure,06/09/2016,BURBANK COMMUNITY HOME,SPORTSDIRECT 174,20.99,EQUIPMENT,SPORTING GOODS STORES
09/01/2017,http://opendatacommunities.org/id/county-council/surrey,Surrey,http://id.esd.org.uk/service/1465,Council expenditure,06/09/2016,WOODLANDS COMMUNITY HOME,SAINSBURYS 0686,21,PURCHASE OF FOOD (RAW MATERIALS),"GROCERY STORES, SUPERMARKETS"
09/01/2017,http://opendatacommunities.org/id/county-council/surrey,Surrey,http://id.esd.org.uk/service/1465,Council expenditure,06/09/2016,WOODLANDS COMMUNITY HOME,SAINSBURYS 0686,94.53,PURCHASE OF FOOD (RAW MATERIALS),"GROCERY STORES, SUPERMARKETS"
09/01/2017,http://opendatacommunities.org/id/county-council/surrey,Surrey,http://id.esd.org.uk/service/1465,Council expenditure,06/09/2016,BURBANK COMMUNITY HOME,RYMAN,12.48,EQUIPMENT,"OFFICE, SCHOOL SUPPLY, AND STATIONERY STORES"
09/01/2017,http://opendatacommunities.org/id/county-council/surrey,Surrey,http://id.esd.org.uk/service/1465,Council expenditure,06/09/2016,IMT SUPPORT FOR FIRE & RESCUE,PAYPAL  FOCALPRICEL,11.97,COMPUTER CONSUMABLES,VARIETY STORES
09/01/2017,http://opendatacommunities.org/id/county-council/surrey,Surrey,http://id.esd.org.uk/service/1465,Council expenditure,06/09/2016,BURBANK COMMUNITY HOME,MCDONALDS,9.76,REFRESHMENT COSTS,FAST FOOD RESTAURANTS
09/01/2017,http://opendatacommunities.org/id/county-council/surrey,Surrey,http://id.esd.org.uk/service/1465,Council expenditure,06/09/2016,TARGETED INTERVENTION,TESCO STORES-2047,25.5,STATIONERY,"GROCERY STORES, SUPERMARKETS"
09/01/2017,http://opendatacommunities.org/id/county-council/surrey,Surrey,http://id.esd.org.uk/service/1465,Council expenditure,06/09/2016,BURBANK COMMUNITY HOME,G & S BY VALENTINO,32.98,"CLOTHING, UNIFORM AND LAUNDRY",WOMEN'S ACCESSORY AND SPECIALTY STORES
09/01/2017,http://opendatacommunities.org/id/county-council/surrey,Surrey,http://id.esd.org.uk/service/1465,Council expenditure,06/09/2016,TARGETED INTERVENTION,COLORMAX ASHFORD,9.9,EDUC VISITS/HOLS/CAMPS/TOYS,"OFFICE, SCHOOL SUPPLY, AND STATIONERY STORES"
09/01/2017,http://opendatacommunities.org/id/county-council/surrey,Surrey,http://id.esd.org.uk/service/1465,Council expenditure,06/09/2016,ISPSB - ADAPTATIONS & IMPROVEMENTS,NRS HEALTHCARE,118.74,EQUIPMENT,DENTAL/LAB/MED/OPHTHALMIC HOSP EQUIP & SUPPLIES
09/01/2017,http://opendatacommunities.org/id/county-council/surrey,Surrey,http://id.esd.org.uk/service/1465,Council expenditure,06/09/2016,TARGETED INTERVENTION,POST OFFICE COUNTER,61.44,STATIONERY,POSTAL SERVICES-GOVERNMENT ONLY
09/01/2017,http://opendatacommunities.org/id/county-council/surrey,Surrey,http://id.esd.org.uk/service/1465,Council expenditure,06/09/2016,IMT SUPPORT FOR FIRE & RESCUE,SCREWFIX DIRECT,29.98,COMPUTER CONSUMABLES,"BUILDING MATERIALS, LUMBER STORES"
09/01/2017,http://opendatacommunities.org/id/county-council/surrey,Surrey,http://id.esd.org.uk/service/1465,Council expenditure,06/09/2016,IMT MANAGEMENT TEAM,AMAZON UK MARKETPLACE,10.05,EQUIPMENT,BOOK STORES
09/01/2017,http://opendatacommunities.org/id/county-council/surrey,Surrey,http://id.esd.org.uk/service/1465,Council expenditure,06/09/2016,THE STREET YC,WAITROSE 178,6.15,PURCHASE OF FOOD (RAW MATERIALS),"GROCERY STORES, SUPERMARKETS"
09/01/2017,http://opendatacommunities.org/id/county-council/surrey,Surrey,http://id.esd.org.uk/service/1465,Council expenditure,06/09/2016,SAP COMPETENCY CENTRE,AMAZON UK MARKETPLACE,33.54,STATIONERY,BOOK STORES
09/01/2017,http://opendatacommunities.org/id/county-council/surrey,Surrey,http://id.esd.org.uk/service/1465,Council expenditure,06/09/2016,PE/CDT MAINTENANCE OVERHEADS,JETSPORTS LTD,149.99,ITEMS PURCHASED FOR RE-SALE,SPORTING GOODS STORES
09/01/2017,http://opendatacommunities.org/id/county-council/surrey,Surrey,http://id.esd.org.uk/service/1465,Council expenditure,06/09/2016,BURBANK COMMUNITY HOME,ASPECTS RESTAURANT,3,PURCHASE OF FOOD (RAW MATERIALS),"EATING PLACES, RESTAURANTS"
09/01/2017,http://opendatacommunities.org/id/county-council/surrey,Surrey,http://id.esd.org.uk/service/1465,Council expenditure,06/09/2016,RUTH HOUSE,MAYFORD MOTORS LTD,45,HIRE OF VEHICLES,AUTOMOTIVE SERVICE SHOPS
09/01/2017,http://opendatacommunities.org/id/county-council/surrey,Surrey,http://id.esd.org.uk/service/1465,Council expenditure,06/09/2016,ASSET PLANNING - OPERATIONS,WICKES,35.47,DAY TO DAY MAINTENANCE,"BUILDING MATERIALS, LUMBER STORES"
09/01/2017,http://opendatacommunities.org/id/county-council/surrey,Surrey,http://id.esd.org.uk/service/1465,Council expenditure,06/09/2016,RUTH HOUSE,B & Q 1029,72,PURCHASE OF BUILDING MATERIALS,"BUILDING MATERIALS, LUMBER STORES"
09/01/2017,http://opendatacommunities.org/id/county-council/surrey,Surrey,http://id.esd.org.uk/service/1465,Council expenditure,06/09/2016,CSF COMMUNICATIONS TEAM,HOOTSUITE MEDIA INC.,9.59,SUBSCRIPTIONS,BUSINESS SERVICES-NOT ELSEWHERE CLASSIFIED
09/01/2017,http://opendatacommunities.org/id/county-council/surrey,Surrey,http://id.esd.org.uk/service/1465,Council expenditure,06/09/2016,SOLD DAY TO DAY OPERATIONS,QUICKS ARCHERY (WALTON,39.58,EQUIPMENT,SPORTING GOODS STORES
09/01/2017,http://opendatacommunities.org/id/county-council/surrey,Surrey,http://id.esd.org.uk/service/1465,Council expenditure,06/09/2016,CHEYNE WALK COMMUNITY HOME,RB KINGSTON GUILDHALL2,20,LEGAL EXPENSES,GOVERNMENT SERVICES-NOT ELSEWHERE CLASSIFIED
09/01/2017,http://opendatacommunities.org/id/county-council/surrey,Surrey,http://id.esd.org.uk/service/1465,Council expenditure,06/09/2016,PE/CDT MAINTENANCE OVERHEADS,BEACON ELECTRIC(GUILDF,670.12,EQUIPMENT,ELECTRICAL PARTS AND EQUIPMENT
09/01/2017,http://opendatacommunities.org/id/county-council/surrey,Surrey,http://id.esd.org.uk/service/1465,Council expenditure,06/09/2016,PROPERTY OPERATIONS TEAM,B & Q 1029,8.26,PURCHASE OF BUILDING MATERIALS,"BUILDING MATERIALS, LUMBER STORES"
09/01/2017,http://opendatacommunities.org/id/county-council/surrey,Surrey,http://id.esd.org.uk/service/1465,Council expenditure,06/09/2016,HOPE SERVICE - WEST,SAINSBURYS SACAT(4409),9.95,PURCHASE OF FOOD (RAW MATERIALS),"GROCERY STORES, SUPERMARKETS"
09/01/2017,http://opendatacommunities.org/id/county-council/surrey,Surrey,http://id.esd.org.uk/service/1465,Council expenditure,06/09/2016,HERITAGE PUBLIC SERVICE,W M MORRISONS,11.25,REFRESHMENT COSTS,"GROCERY STORES, SUPERMARKETS"
09/01/2017,http://opendatacommunities.org/id/county-council/surrey,Surrey,http://id.esd.org.uk/service/1465,Council expenditure,06/09/2016,PE/CDT MAINTENANCE OVERHEADS,WWW.EXPERTFITNESSUK.CO,118.25,ITEMS PURCHASED FOR RE-SALE,SPORTING GOODS STORES
09/01/2017,http://opendatacommunities.org/id/county-council/surrey,Surrey,http://id.esd.org.uk/service/1465,Council expenditure,06/09/2016,IMT SUPPORT FOR FIRE & RESCUE,AMAZON UK MARKETPLACE,9.99,COMPUTER CONSUMABLES,BOOK STORES
09/01/2017,http://opendatacommunities.org/id/county-council/surrey,Surrey,http://id.esd.org.uk/service/1465,Council expenditure,06/09/2016,ACL CENTRAL EXPENDITURE,TESCO DELIVERY SAVER2,6,REFRESHMENT COSTS,DIRECT MARKETING-CONTINUITY/SUBSCRIPTION MERCHANTS
09/01/2017,http://opendatacommunities.org/id/county-council/surrey,Surrey,http://id.esd.org.uk/service/1465,Council expenditure,06/09/2016,HILLSIDE,SCOOTERMART OK CAR,-35,EQUIPMENT,ORTHOPEDIC GOODS-ARTIFICIAL LIMB STORES
09/01/2017,http://opendatacommunities.org/id/county-council/surrey,Surrey,http://id.esd.org.uk/service/1465,Council expenditure,07/09/2016,DEMOCRATIC SERVICES TEAM,ASDA HOME SHOPPING,-2,WATER CHARGES,"GROCERY STORES, SUPERMARKETS"
09/01/2017,http://opendatacommunities.org/id/county-council/surrey,Surrey,http://id.esd.org.uk/service/1465,Council expenditure,07/09/2016,DEMOCRATIC SERVICES TEAM,ASDA HOME SHOPPING,-42.4,WATER CHARGES,"GROCERY STORES, SUPERMARKETS"
09/01/2017,http://opendatacommunities.org/id/county-council/surrey,Surrey,http://id.esd.org.uk/service/1465,Council expenditure,07/09/2016,DEMOCRATIC SERVICES TEAM,ASDA HOME SHOPPING,45.65,WATER CHARGES,"GROCERY STORES, SUPERMARKETS"
09/01/2017,http://opendatacommunities.org/id/county-council/surrey,Surrey,http://id.esd.org.uk/service/1465,Council expenditure,07/09/2016,SUNBURY YC,FARMFOODS- SUNBURY,9.5,PURCHASE OF FOOD (RAW MATERIALS),"GROCERY STORES, SUPERMARKETS"
09/01/2017,http://opendatacommunities.org/id/county-council/surrey,Surrey,http://id.esd.org.uk/service/1465,Council expenditure,07/09/2016,SHEPPERTON YC,FARMFOODS- SUNBURY,6.47,PURCHASE OF FOOD (RAW MATERIALS),"GROCERY STORES, SUPERMARKETS"
09/01/2017,http://opendatacommunities.org/id/county-council/surrey,Surrey,http://id.esd.org.uk/service/1465,Council expenditure,07/09/2016,ASHFORD YC,FARMFOODS- SUNBURY,7.32,PURCHASE OF FOOD (RAW MATERIALS),"GROCERY STORES, SUPERMARKETS"
09/01/2017,http://opendatacommunities.org/id/county-council/surrey,Surrey,http://id.esd.org.uk/service/1465,Council expenditure,07/09/2016,TRANSPORT,AMAZON UK RETAIL AMAZO,23.94,STATIONERY,MISCELLANEOUS AND SPECIALTY RETAIL STORES
09/01/2017,http://opendatacommunities.org/id/county-council/surrey,Surrey,http://id.esd.org.uk/service/1465,Council expenditure,07/09/2016,TRANSPORT,AMAZON EU,49.62,DAY TO DAY MAINTENANCE,DIRECT MARKETING-OTHER DIRECT MARKETERS/NOT ELSEW.
09/01/2017,http://opendatacommunities.org/id/county-council/surrey,Surrey,http://id.esd.org.uk/service/1465,Council expenditure,07/09/2016,RUTH HOUSE,W M MORRISONS,65.52,PURCHASE OF FOOD (RAW MATERIALS),"GROCERY STORES, SUPERMARKETS"
09/01/2017,http://opendatacommunities.org/id/county-council/surrey,Surrey,http://id.esd.org.uk/service/1465,Council expenditure,07/09/2016,SW NIL RECOURSE TO PUBLIC FUNDS CARE,TRAVELODGE,818,CHILDREN ACT SEC 17 PAYMENTS,TRAVELODGE
09/01/2017,http://opendatacommunities.org/id/county-council/surrey,Surrey,http://id.esd.org.uk/service/1465,Council expenditure,07/09/2016,LEACROFT YC,TESCO STORES-2047,7.55,REFRESHMENT COSTS,"GROCERY STORES, SUPERMARKETS"
09/01/2017,http://opendatacommunities.org/id/county-council/surrey,Surrey,http://id.esd.org.uk/service/1465,Council expenditure,07/09/2016,CHEYNE WALK COMMUNITY HOME,SAINSBURYS 2051,29.33,PURCHASE OF FOOD (RAW MATERIALS),"GROCERY STORES, SUPERMARKETS"
09/01/2017,http://opendatacommunities.org/id/county-council/surrey,Surrey,http://id.esd.org.uk/service/1465,Council expenditure,07/09/2016,ROW VOLUNTEERS EAST                     ,AMAZON UK MARKETPLACE,70.4,EQUIPMENT,BOOK STORES
09/01/2017,http://opendatacommunities.org/id/county-council/surrey,Surrey,http://id.esd.org.uk/service/1465,Council expenditure,07/09/2016,YSS YOUTH CENTRE IMPROVEMENTS,ARGOS RETAIL GROUP,45.98,EQUIPMENT,DISCOUNT STORES
09/01/2017,http://opendatacommunities.org/id/county-council/surrey,Surrey,http://id.esd.org.uk/service/1465,Council expenditure,07/09/2016,INSTRUMENT HIRE SHOP,SOUTHWEST SHOPFITTINGS,89.88,EQUIPMENT,HARDWARE EQUIPMENT AND SUPPLIES
09/01/2017,http://opendatacommunities.org/id/county-council/surrey,Surrey,http://id.esd.org.uk/service/1465,Council expenditure,07/09/2016,SW SECTION 17 CARE,J & J FRANKS,235,TRADE REFUSE,"CONTRACTORS,SPECIAL TRADE-NOT ELSEWHERE CLASSIFIED"
09/01/2017,http://opendatacommunities.org/id/county-council/surrey,Surrey,http://id.esd.org.uk/service/1465,Council expenditure,07/09/2016,OCCUPATIONAL HEALTH,AMAZON UK MARKETPLACE,6.19,EQUIPMENT,BOOK STORES
09/01/2017,http://opendatacommunities.org/id/county-council/surrey,Surrey,http://id.esd.org.uk/service/1465,Council expenditure,07/09/2016,COUNTYWIDE MANAGED PRINT SERVICE,AMAZON UK MARKETPLACE,140.76,EQUIPMENT,BOOK STORES
09/01/2017,http://opendatacommunities.org/id/county-council/surrey,Surrey,http://id.esd.org.uk/service/1465,Council expenditure,07/09/2016,ASSET PLANNING - OPERATIONS,BRITISH STANDARDS,189.6,BOOKS,BUSINESS SERVICES-NOT ELSEWHERE CLASSIFIED
09/01/2017,http://opendatacommunities.org/id/county-council/surrey,Surrey,http://id.esd.org.uk/service/1465,Council expenditure,07/09/2016,NE FOSTERING CARE,FREDRICKSON INTERNATIO,250,TELECOMMUNICATION CHARGES,OTHER SERVICES (NOT ELSEWHERE CLASSIFIED)
09/01/2017,http://opendatacommunities.org/id/county-council/surrey,Surrey,http://id.esd.org.uk/service/1465,Council expenditure,07/09/2016,TARGETED INTERVENTION,TESCO STORES-2047,13.64,EDUC VISITS/HOLS/CAMPS/TOYS,"GROCERY STORES, SUPERMARKETS"
09/01/2017,http://opendatacommunities.org/id/county-council/surrey,Surrey,http://id.esd.org.uk/service/1465,Council expenditure,07/09/2016,AEO MANAGEMENT TEAM (SW),SURREY CC CARD PAY,50,TRAINING EXPENSES EXTERNAL GENERAL,COMPUTER NETWORK/INFORMATION SERVICES
09/01/2017,http://opendatacommunities.org/id/county-council/surrey,Surrey,http://id.esd.org.uk/service/1465,Council expenditure,07/09/2016,ISPSB - ADAPTATIONS & IMPROVEMENTS,AMAZON UK MARKETPLACE,32.74,EDUC VISITS/HOLS/CAMPS/TOYS,BOOK STORES
09/01/2017,http://opendatacommunities.org/id/county-council/surrey,Surrey,http://id.esd.org.uk/service/1465,Council expenditure,07/09/2016,TRANSPORT,THOMASKNEALE.CO.UK,44.33,"CLOTHING, UNIFORM AND LAUNDRY","DRAPERY, UPOLSTERY, AND WINDOW COVERINGS STORES"
09/01/2017,http://opendatacommunities.org/id/county-council/surrey,Surrey,http://id.esd.org.uk/service/1465,Council expenditure,07/09/2016,ARUNDEL,TESCO STORES 5999,110.98,REFRESHMENT COSTS,"GROCERY STORES, SUPERMARKETS"
09/01/2017,http://opendatacommunities.org/id/county-council/surrey,Surrey,http://id.esd.org.uk/service/1465,Council expenditure,07/09/2016,AEO MANAGEMENT TEAM (SW),SURREY CC CARD PAY,50,TRAINING EXPENSES EXTERNAL GENERAL,COMPUTER NETWORK/INFORMATION SERVICES
09/01/2017,http://opendatacommunities.org/id/county-council/surrey,Surrey,http://id.esd.org.uk/service/1465,Council expenditure,07/09/2016,SE CARE - LAC,HMCOURTS-SERVICE.G,150,LEGAL EXPENSES,FINES
09/01/2017,http://opendatacommunities.org/id/county-council/surrey,Surrey,http://id.esd.org.uk/service/1465,Council expenditure,07/09/2016,INVESTIGATIONS & ENFORCEMENT TEAM       ,CAMPDENBRIC,96,FEES,"CONSULTING, MANAGEMENT, AND PUBLIC RELATIONS SVCS"
09/01/2017,http://opendatacommunities.org/id/county-council/surrey,Surrey,http://id.esd.org.uk/service/1465,Council expenditure,07/09/2016,PARK HALL RESIDENTIAL CARE,WWW.KAPITEX.COM,62.4,EQUIPMENT,"HEALTH PRACTITIONERS, MEDICAL SRVCS-NOT ELSEWHERE"
09/01/2017,http://opendatacommunities.org/id/county-council/surrey,Surrey,http://id.esd.org.uk/service/1465,Council expenditure,07/09/2016,PLANNING DEVELOPMENT CONTROL TEAM,AMAZON UK MARKETPLACE,20.99,COMPUTER HARDWARE,BOOK STORES
09/01/2017,http://opendatacommunities.org/id/county-council/surrey,Surrey,http://id.esd.org.uk/service/1465,Council expenditure,07/09/2016,CONSORT HOUSE REDHILL,AMAZON UK MARKETPLACE,59.9,EQUIPMENT,BOOK STORES
09/01/2017,http://opendatacommunities.org/id/county-council/surrey,Surrey,http://id.esd.org.uk/service/1465,Council expenditure,07/09/2016,NW CARE - LAC,SURREY CC CARD PAY,11,FEES,COMPUTER NETWORK/INFORMATION SERVICES
09/01/2017,http://opendatacommunities.org/id/county-council/surrey,Surrey,http://id.esd.org.uk/service/1465,Council expenditure,07/09/2016,SW CARE - NON-LAC CP & COURT,WILTSHIRE COUNTY C,22,LEGAL EXPENSES,GOVERNMENT SERVICES-NOT ELSEWHERE CLASSIFIED
09/01/2017,http://opendatacommunities.org/id/county-council/surrey,Surrey,http://id.esd.org.uk/service/1465,Council expenditure,07/09/2016,HILLSIDE,SAINSBURYS 0675,29.24,PURCHASE OF FOOD (RAW MATERIALS),"GROCERY STORES, SUPERMARKETS"
09/01/2017,http://opendatacommunities.org/id/county-council/surrey,Surrey,http://id.esd.org.uk/service/1465,Council expenditure,07/09/2016,HILLSIDE,SAINSBURYS 0675,120.41,PURCHASE OF FOOD (RAW MATERIALS),"GROCERY STORES, SUPERMARKETS"
09/01/2017,http://opendatacommunities.org/id/county-council/surrey,Surrey,http://id.esd.org.uk/service/1465,Council expenditure,07/09/2016,TARGETED INTERVENTION,FREEDOM LEISURE,5.85,EDUC VISITS/HOLS/CAMPS/TOYS,GOVERNMENT SERVICES-NOT ELSEWHERE CLASSIFIED
09/01/2017,http://opendatacommunities.org/id/county-council/surrey,Surrey,http://id.esd.org.uk/service/1465,Council expenditure,07/09/2016,COUNTY HALL,AMAZON UK MARKETPLACE,6.45,STATIONERY,BOOK STORES
09/01/2017,http://opendatacommunities.org/id/county-council/surrey,Surrey,http://id.esd.org.uk/service/1465,Council expenditure,07/09/2016,PSSS TRAINING                           ,GUILDFORD COLLEGE FINA,312,TRAINING EXPENSES EXTERNAL GENERAL,"COLLEGES, UNIV, PRO SCHOOLS, JUNIOR COLLEGES"
09/01/2017,http://opendatacommunities.org/id/county-council/surrey,Surrey,http://id.esd.org.uk/service/1465,Council expenditure,07/09/2016,IMT SUPPORT FOR FIRE & RESCUE,B & Q 1155,42.13,COMPUTER HARDWARE,"BUILDING MATERIALS, LUMBER STORES"
09/01/2017,http://opendatacommunities.org/id/county-council/surrey,Surrey,http://id.esd.org.uk/service/1465,Council expenditure,07/09/2016,SOLD ESTATES MANAGEMENT,HONEY BROTHERS LTD,286.64,DAY TO DAY MAINTENANCE,HARDWARE STORES
09/01/2017,http://opendatacommunities.org/id/county-council/surrey,Surrey,http://id.esd.org.uk/service/1465,Council expenditure,07/09/2016,TARGETED INTERVENTION,FREEDOM LEISURE,29.2,EDUC VISITS/HOLS/CAMPS/TOYS,GOVERNMENT SERVICES-NOT ELSEWHERE CLASSIFIED
09/01/2017,http://opendatacommunities.org/id/county-council/surrey,Surrey,http://id.esd.org.uk/service/1465,Council expenditure,07/09/2016,PHOENIX YC,CO-OP GROUP 500199,20.06,PURCHASE OF FOOD (RAW MATERIALS),"GROCERY STORES, SUPERMARKETS"
09/01/2017,http://opendatacommunities.org/id/county-council/surrey,Surrey,http://id.esd.org.uk/service/1465,Council expenditure,07/09/2016,SE SECTION 17 CARE,FLEXISTAY LTD,828,CHILDREN ACT SEC 17 PAYMENTS,"LODGING-HOTELS,MOTELS,RESORTS-NOT CLASSIFIED"
09/01/2017,http://opendatacommunities.org/id/county-council/surrey,Surrey,http://id.esd.org.uk/service/1465,Council expenditure,07/09/2016,SE CARE - LAC,EDEN INTERACTIVE L,29.98,BOOKS,BOOK STORES
09/01/2017,http://opendatacommunities.org/id/county-council/surrey,Surrey,http://id.esd.org.uk/service/1465,Council expenditure,07/09/2016,TARGETED INTERVENTION,SAINSBURYS SACAT 0652,3.98,EDUC VISITS/HOLS/CAMPS/TOYS,"GROCERY STORES, SUPERMARKETS"
09/01/2017,http://opendatacommunities.org/id/county-council/surrey,Surrey,http://id.esd.org.uk/service/1465,Council expenditure,07/09/2016,ACL CENTRAL EXPENDITURE,AMAZON EU,22.73,COMPUTER HARDWARE,DIRECT MARKETING-OTHER DIRECT MARKETERS/NOT ELSEW.
09/01/2017,http://opendatacommunities.org/id/county-council/surrey,Surrey,http://id.esd.org.uk/service/1465,Council expenditure,07/09/2016,NE EDUCATION WELFARE OFFICERS,SURREY CC CARD PAY,50,TRAINING EXPENSES EXTERNAL GENERAL,COMPUTER NETWORK/INFORMATION SERVICES
09/01/2017,http://opendatacommunities.org/id/county-council/surrey,Surrey,http://id.esd.org.uk/service/1465,Council expenditure,07/09/2016,TARGETED INTERVENTION,DRUSILLAS ZOO,51,EDUC VISITS/HOLS/CAMPS/TOYS,TOURIST ATTRACTIONS AND EXHIBITS
09/01/2017,http://opendatacommunities.org/id/county-council/surrey,Surrey,http://id.esd.org.uk/service/1465,Council expenditure,07/09/2016,CAMHS SOCIAL WORKERS,MIXAM UK LIMITED,497,EQUIPMENT,"COMMERCIAL ART, GRAPHICS, PHOTOGRAPHY"
09/01/2017,http://opendatacommunities.org/id/county-council/surrey,Surrey,http://id.esd.org.uk/service/1465,Council expenditure,07/09/2016,CAMHS SOCIAL WORKERS,MIXAM UK LIMITED,900,EQUIPMENT,"COMMERCIAL ART, GRAPHICS, PHOTOGRAPHY"
09/01/2017,http://opendatacommunities.org/id/county-council/surrey,Surrey,http://id.esd.org.uk/service/1465,Council expenditure,07/09/2016,BURBANK COMMUNITY HOME,WWW.SURREYCC.GOV.UK,50,REFRESHMENT COSTS,GOVERNMENT SERVICES-NOT ELSEWHERE CLASSIFIED
09/01/2017,http://opendatacommunities.org/id/county-council/surrey,Surrey,http://id.esd.org.uk/service/1465,Council expenditure,07/09/2016,ACCESS 2 EDUCATION SE NON-MEDICAL,SURREY CC CARD PAY,50,SUBSISTENCE AND CONFERENCE EXPENSES,COMPUTER NETWORK/INFORMATION SERVICES
09/01/2017,http://opendatacommunities.org/id/county-council/surrey,Surrey,http://id.esd.org.uk/service/1465,Council expenditure,07/09/2016,PE/CDT MAINTENANCE OVERHEADS,STAPLES UK,92.45,EQUIPMENT,"OFFICE, SCHOOL SUPPLY, AND STATIONERY STORES"
09/01/2017,http://opendatacommunities.org/id/county-council/surrey,Surrey,http://id.esd.org.uk/service/1465,Council expenditure,07/09/2016,NE CARE - CP & COURT LAC,GRO HM PASSPORT OFFICE,23.4,CHILDREN ACT SEC 17 PAYMENTS,GOVERNMENT SERVICES-NOT ELSEWHERE CLASSIFIED
09/01/2017,http://opendatacommunities.org/id/county-council/surrey,Surrey,http://id.esd.org.uk/service/1465,Council expenditure,07/09/2016,DOWNLANDS COUNTRYSIDE PROJECT,ROVERTOW,336.1,VEHICLE REPAIRS AND MAINTENANCE,"CAMPER DEALERS, RECREATIONAL AND UTILITY TRAILERS"
09/01/2017,http://opendatacommunities.org/id/county-council/surrey,Surrey,http://id.esd.org.uk/service/1465,Council expenditure,07/09/2016,TRANSPORT,AMAZON UK MARKETPLACE,44.97,STATIONERY,BOOK STORES
09/01/2017,http://opendatacommunities.org/id/county-council/surrey,Surrey,http://id.esd.org.uk/service/1465,Council expenditure,07/09/2016,LIBERTAS COMMUNITY HOME,VODAFONE LTD,25,TELECOMMUNICATION CHARGES,TELECOM INCL PREPAID/RECURRING PHONE SVCS
09/01/2017,http://opendatacommunities.org/id/county-council/surrey,Surrey,http://id.esd.org.uk/service/1465,Council expenditure,07/09/2016,CONTAMINATION,GOOGLE  ADWS2060179426,500,PUBLICITY,DIRECT MARKETING-CONTINUITY/SUBSCRIPTION MERCHANTS
09/01/2017,http://opendatacommunities.org/id/county-council/surrey,Surrey,http://id.esd.org.uk/service/1465,Council expenditure,07/09/2016,TARGETED INTERVENTION,GODALMING LEISURE CENT,5.55,EDUC VISITS/HOLS/CAMPS/TOYS,"CLUBS-CNTRY,MBRSHIP(ATHLET,REC,SPRTS,PRIVATE GOLF"
09/01/2017,http://opendatacommunities.org/id/county-council/surrey,Surrey,http://id.esd.org.uk/service/1465,Council expenditure,07/09/2016,PE/CDT MAINTENANCE OVERHEADS,THE UK HIDE CO LTD,344.04,ITEMS PURCHASED FOR RE-SALE,LEATHER GOODS AND LUGGAGE STORES
09/01/2017,http://opendatacommunities.org/id/county-council/surrey,Surrey,http://id.esd.org.uk/service/1465,Council expenditure,07/09/2016,MISC EDCAT SUPPORT,INSTITUTE OF DIREC,405,SUBSCRIPTIONS,"ORGANIZATIONS, MEMBERSHIP-NOT ELSEWHERE CLASSIFIED"
09/01/2017,http://opendatacommunities.org/id/county-council/surrey,Surrey,http://id.esd.org.uk/service/1465,Council expenditure,07/09/2016,TARGETED INTERVENTION,SQUIRES GARDEN CENTRE,4,EDUC VISITS/HOLS/CAMPS/TOYS,LAWN AND GARDEN SUPPLY STORES
09/01/2017,http://opendatacommunities.org/id/county-council/surrey,Surrey,http://id.esd.org.uk/service/1465,Council expenditure,07/09/2016,TRANSPORT,AMAZON UK MARKETPLACE,98.74,STATIONERY,BOOK STORES
09/01/2017,http://opendatacommunities.org/id/county-council/surrey,Surrey,http://id.esd.org.uk/service/1465,Council expenditure,07/09/2016,HEAD OF COUNTRYSIDE,QUEENS HOTEL CHELTENHA,120,TRAINING EXPENSES EXTERNAL GENERAL,"LODGING-HOTELS,MOTELS,RESORTS-NOT CLASSIFIED"
09/01/2017,http://opendatacommunities.org/id/county-council/surrey,Surrey,http://id.esd.org.uk/service/1465,Council expenditure,07/09/2016,TARGETED INTERVENTION,STARBUCKS,5.8,EDUC VISITS/HOLS/CAMPS/TOYS,FAST FOOD RESTAURANTS
09/01/2017,http://opendatacommunities.org/id/county-council/surrey,Surrey,http://id.esd.org.uk/service/1465,Council expenditure,07/09/2016,DRAMA WARDROBE,CURRYS ONLINE,279.99,EQUIPMENT,ELECTRONIC SALES
09/01/2017,http://opendatacommunities.org/id/county-council/surrey,Surrey,http://id.esd.org.uk/service/1465,Council expenditure,07/09/2016,HEAD OF COUNTRYSIDE,QUEENS HOTEL CHELTENHA,120,TRAINING EXPENSES EXTERNAL GENERAL,"LODGING-HOTELS,MOTELS,RESORTS-NOT CLASSIFIED"
09/01/2017,http://opendatacommunities.org/id/county-council/surrey,Surrey,http://id.esd.org.uk/service/1465,Council expenditure,07/09/2016,CORPORATE GROUP - LEGAL SERVICES,BHCC-PAYPHONEPARKING,5.3,EXPENSES,GOVERNMENT SERVICES-NOT ELSEWHERE CLASSIFIED
09/01/2017,http://opendatacommunities.org/id/county-council/surrey,Surrey,http://id.esd.org.uk/service/1465,Council expenditure,07/09/2016,CHEYNE WALK COMMUNITY HOME,LONDIS,6.98,PURCHASE OF FOOD (RAW MATERIALS),"GROCERY STORES, SUPERMARKETS"
09/01/2017,http://opendatacommunities.org/id/county-council/surrey,Surrey,http://id.esd.org.uk/service/1465,Council expenditure,07/09/2016,HERITAGE PUBLIC SERVICE,W M MORRISONS,10.59,REFRESHMENT COSTS,"GROCERY STORES, SUPERMARKETS"
09/01/2017,http://opendatacommunities.org/id/county-council/surrey,Surrey,http://id.esd.org.uk/service/1465,Council expenditure,07/09/2016,CHEYNE WALK COMMUNITY HOME,SAINSBURYS TO YOU 0026,171.7,PURCHASE OF FOOD (RAW MATERIALS),"GROCERY STORES, SUPERMARKETS"
09/01/2017,http://opendatacommunities.org/id/county-council/surrey,Surrey,http://id.esd.org.uk/service/1465,Council expenditure,07/09/2016,FAIRCROFT COMMUNITY HOME,TESCO STORE 2160,226.21,PURCHASE OF FOOD (RAW MATERIALS),"GROCERY STORES, SUPERMARKETS"
09/01/2017,http://opendatacommunities.org/id/county-council/surrey,Surrey,http://id.esd.org.uk/service/1465,Council expenditure,07/09/2016,PE/CDT MAINTENANCE OVERHEADS,SCREWFIX DIRECT,26.35,EQUIPMENT,"BUILDING MATERIALS, LUMBER STORES"
09/01/2017,http://opendatacommunities.org/id/county-council/surrey,Surrey,http://id.esd.org.uk/service/1465,Council expenditure,07/09/2016,MALLOW CRESCENT,SAINSBURYS TO YOU 0686,17.4,PURCHASE OF FOOD (RAW MATERIALS),"GROCERY STORES, SUPERMARKETS"
09/01/2017,http://opendatacommunities.org/id/county-council/surrey,Surrey,http://id.esd.org.uk/service/1465,Council expenditure,07/09/2016,MALLOW CRESCENT,SAINSBURYS TO YOU 0686,71.17,PURCHASE OF FOOD (RAW MATERIALS),"GROCERY STORES, SUPERMARKETS"
09/01/2017,http://opendatacommunities.org/id/county-council/surrey,Surrey,http://id.esd.org.uk/service/1465,Council expenditure,07/09/2016,BURBANK COMMUNITY HOME,SAINSBURYS TO YOU 0686,364,PURCHASE OF FOOD (RAW MATERIALS),"GROCERY STORES, SUPERMARKETS"
09/01/2017,http://opendatacommunities.org/id/county-council/surrey,Surrey,http://id.esd.org.uk/service/1465,Council expenditure,07/09/2016,SOLD DAY TO DAY OPERATIONS,AMAZON EU,12.7,EQUIPMENT,DIRECT MARKETING-OTHER DIRECT MARKETERS/NOT ELSEW.
09/01/2017,http://opendatacommunities.org/id/county-council/surrey,Surrey,http://id.esd.org.uk/service/1465,Council expenditure,07/09/2016,FAIRCROFT COMMUNITY HOME,TESCO STORE 2160,-8,PURCHASE OF FOOD (RAW MATERIALS),"GROCERY STORES, SUPERMARKETS"
09/01/2017,http://opendatacommunities.org/id/county-council/surrey,Surrey,http://id.esd.org.uk/service/1465,Council expenditure,07/09/2016,MALLOW CRESCENT,SAINSBURYS TO YOU 0686,-5,PURCHASE OF FOOD (RAW MATERIALS),"GROCERY STORES, SUPERMARKETS"
09/01/2017,http://opendatacommunities.org/id/county-council/surrey,Surrey,http://id.esd.org.uk/service/1465,Council expenditure,07/09/2016,OCCUPATIONAL HEALTH,AMAZON UK MARKETPLACE,-11.07,EQUIPMENT,MISCELLANEOUS AND SPECIALTY RETAIL STORES
09/01/2017,http://opendatacommunities.org/id/county-council/surrey,Surrey,http://id.esd.org.uk/service/1465,Council expenditure,07/09/2016,TRANSPORT,AMAZON UK MARKETPLACE,-13.84,STATIONERY,MISCELLANEOUS AND SPECIALTY RETAIL STORES
09/01/2017,http://opendatacommunities.org/id/county-council/surrey,Surrey,http://id.esd.org.uk/service/1465,Council expenditure,07/09/2016,NORTH EAST AREA TEAM,TESCO STORES-2047,4.5,REFRESHMENT COSTS,"GROCERY STORES, SUPERMARKETS"
09/01/2017,http://opendatacommunities.org/id/county-council/surrey,Surrey,http://id.esd.org.uk/service/1465,Council expenditure,07/09/2016,NORTH EAST AREA TEAM,TESCO STORE 2047,3.47,REFRESHMENT COSTS,"GROCERY STORES, SUPERMARKETS"
09/01/2017,http://opendatacommunities.org/id/county-council/surrey,Surrey,http://id.esd.org.uk/service/1465,Council expenditure,08/09/2016,SW CARE - NON-LAC CP & COURT,GRO HM PASSPORT OFFICE,-18.5,LEGAL EXPENSES,GOVERNMENT SERVICES-NOT ELSEWHERE CLASSIFIED
09/01/2017,http://opendatacommunities.org/id/county-council/surrey,Surrey,http://id.esd.org.uk/service/1465,Council expenditure,08/09/2016,VIRTUAL SCHOOL FOR LAC PUPIL PREMIUM,AMAZON UK RETAIL AMAZO,227.69,BOOKS,MISCELLANEOUS AND SPECIALTY RETAIL STORES
09/01/2017,http://opendatacommunities.org/id/county-council/surrey,Surrey,http://id.esd.org.uk/service/1465,Council expenditure,08/09/2016,IMT SUPPORT FOR FIRE & RESCUE,CPC,12.42,COMPUTER CONSUMABLES,ELECTRICAL PARTS AND EQUIPMENT
09/01/2017,http://opendatacommunities.org/id/county-council/surrey,Surrey,http://id.esd.org.uk/service/1465,Council expenditure,08/09/2016,ASYLUM SEEKERS 16-17,AMAZON UK RETAIL AMAZO,24.45,CHILDREN ACT SEC 17 PAYMENTS,MISCELLANEOUS AND SPECIALTY RETAIL STORES
09/01/2017,http://opendatacommunities.org/id/county-council/surrey,Surrey,http://id.esd.org.uk/service/1465,Council expenditure,08/09/2016,LEAVING CARE PACKAGES,TVLICENSING.CO.UK,145.5,EQUIPMENT,"CONSULTING, MANAGEMENT, AND PUBLIC RELATIONS SVCS"
09/01/2017,http://opendatacommunities.org/id/county-council/surrey,Surrey,http://id.esd.org.uk/service/1465,Council expenditure,08/09/2016,TRANSPORT,AMAZON UK RETAIL AMAZO,71.82,STATIONERY,MISCELLANEOUS AND SPECIALTY RETAIL STORES
09/01/2017,http://opendatacommunities.org/id/county-council/surrey,Surrey,http://id.esd.org.uk/service/1465,Council expenditure,08/09/2016,BANSTEAD YC,AMAZON UK MARKETPLACE,32.26,EQUIPMENT,BOOK STORES
09/01/2017,http://opendatacommunities.org/id/county-council/surrey,Surrey,http://id.esd.org.uk/service/1465,Council expenditure,08/09/2016,GUILDFORD STAFFING,SAINSBURYS 0828,5.85,PURCHASE OF FOOD (RAW MATERIALS),"GROCERY STORES, SUPERMARKETS"
09/01/2017,http://opendatacommunities.org/id/county-council/surrey,Surrey,http://id.esd.org.uk/service/1465,Council expenditure,08/09/2016,CHEYNE WALK COMMUNITY HOME,CAFE ROUGE,47.85,PURCHASE OF FOOD (RAW MATERIALS),"EATING PLACES, RESTAURANTS"
09/01/2017,http://opendatacommunities.org/id/county-council/surrey,Surrey,http://id.esd.org.uk/service/1465,Council expenditure,08/09/2016,IMT CRITICAL ENVIRONMENTS,MILK@MORE ONLINE,57.68,REFRESHMENT COSTS,"MISC FOOD STORE-CONVENIENCE,MRKT,SPLTY,VENDNG MACS"
09/01/2017,http://opendatacommunities.org/id/county-council/surrey,Surrey,http://id.esd.org.uk/service/1465,Council expenditure,08/09/2016,FARNHAM YC,W M MORRISONS,6.02,PURCHASE OF FOOD (RAW MATERIALS),"GROCERY STORES, SUPERMARKETS"
09/01/2017,http://opendatacommunities.org/id/county-council/surrey,Surrey,http://id.esd.org.uk/service/1465,Council expenditure,08/09/2016,THE BRIDGE YC,TESCO STORES 2812,16.55,PURCHASE OF FOOD (RAW MATERIALS),"GROCERY STORES, SUPERMARKETS"
09/01/2017,http://opendatacommunities.org/id/county-council/surrey,Surrey,http://id.esd.org.uk/service/1465,Council expenditure,08/09/2016,SURREY ARTS GENERAL,AMAZON UK MARKETPLACE,17.99,REFRESHMENT COSTS,BOOK STORES
09/01/2017,http://opendatacommunities.org/id/county-council/surrey,Surrey,http://id.esd.org.uk/service/1465,Council expenditure,08/09/2016,CAMHS SOCIAL WORKERS,MILANO PIZZA,69.95,EQUIPMENT,FAST FOOD RESTAURANTS
09/01/2017,http://opendatacommunities.org/id/county-council/surrey,Surrey,http://id.esd.org.uk/service/1465,Council expenditure,08/09/2016,THE STREET YC,TOP GIFT,15,EQUIPMENT,"GIFT, CARD, NOVELTY AND SOUVENIR SHOPS"
09/01/2017,http://opendatacommunities.org/id/county-council/surrey,Surrey,http://id.esd.org.uk/service/1465,Council expenditure,08/09/2016,ROW VOLUNTEERS EAST                     ,AMAZON UK MARKETPLACE,146.7,EQUIPMENT,BOOK STORES
09/01/2017,http://opendatacommunities.org/id/county-council/surrey,Surrey,http://id.esd.org.uk/service/1465,Council expenditure,08/09/2016,EQUIPMENT SCC BUDGET,AO RETAIL LIMITED,318.97,EQUIPMENT,HOUSEHOLD APPLIANCE STORES
09/01/2017,http://opendatacommunities.org/id/county-council/surrey,Surrey,http://id.esd.org.uk/service/1465,Council expenditure,08/09/2016,FAIRCROFT COMMUNITY HOME,WAITROSE 176,5.58,PURCHASE OF FOOD (RAW MATERIALS),"GROCERY STORES, SUPERMARKETS"
09/01/2017,http://opendatacommunities.org/id/county-council/surrey,Surrey,http://id.esd.org.uk/service/1465,Council expenditure,08/09/2016,TRAINING ENVIRONMENT SERVICES,SURREY HILLS ENTERPRIS,114,TRAINING EXPENSES EXTERNAL GENERAL,"ORGANIZATIONS, MEMBERSHIP-NOT ELSEWHERE CLASSIFIED"
09/01/2017,http://opendatacommunities.org/id/county-council/surrey,Surrey,http://id.esd.org.uk/service/1465,Council expenditure,08/09/2016,TRANSPORT,DESIGNS SIGNAGE SO,117.12,VEHICLE REPAIRS AND MAINTENANCE,"COMMERCIAL ART, GRAPHICS, PHOTOGRAPHY"
09/01/2017,http://opendatacommunities.org/id/county-council/surrey,Surrey,http://id.esd.org.uk/service/1465,Council expenditure,08/09/2016,SOLD DAY TO DAY OPERATIONS,AMAZON UK MARKETPLACE,17.99,DAY TO DAY MAINTENANCE,BOOK STORES
09/01/2017,http://opendatacommunities.org/id/county-council/surrey,Surrey,http://id.esd.org.uk/service/1465,Council expenditure,08/09/2016,LEAP SURREY HEATH,AMAZON UK MARKETPLACE,19.9,EDUC VISITS/HOLS/CAMPS/TOYS,BOOK STORES
09/01/2017,http://opendatacommunities.org/id/county-council/surrey,Surrey,http://id.esd.org.uk/service/1465,Council expenditure,08/09/2016,ACL CENTRAL EXPENDITURE,COOKSON PRECIOUS M,89.03,EQUIPMENT,"PRECIOUS STONES AND METALS, WATCHES AND JEWELRY"
09/01/2017,http://opendatacommunities.org/id/county-council/surrey,Surrey,http://id.esd.org.uk/service/1465,Council expenditure,08/09/2016,ROW VOLUNTEERS EAST                     ,AMAZON UK MARKETPLACE,91.28,EQUIPMENT,BOOK STORES
09/01/2017,http://opendatacommunities.org/id/county-council/surrey,Surrey,http://id.esd.org.uk/service/1465,Council expenditure,08/09/2016,ROW VOLUNTEERS EAST                     ,AMAZON UK MARKETPLACE,130.2,EQUIPMENT,BOOK STORES
09/01/2017,http://opendatacommunities.org/id/county-council/surrey,Surrey,http://id.esd.org.uk/service/1465,Council expenditure,08/09/2016,CLOSED LANDFILL,CITY IRRIGATION LIMITE,34.8,EQUIPMENT,HARDWARE STORES
09/01/2017,http://opendatacommunities.org/id/county-council/surrey,Surrey,http://id.esd.org.uk/service/1465,Council expenditure,08/09/2016,CS BUSINESS SUPPORT EAST,AMAZON UK MARKETPLACE,249.95,EQUIPMENT,BOOK STORES
09/01/2017,http://opendatacommunities.org/id/county-council/surrey,Surrey,http://id.esd.org.uk/service/1465,Council expenditure,08/09/2016,ACL CENTRAL EXPENDITURE,AMAZON UK MARKETPLACE,80.75,EQUIPMENT,BOOK STORES
09/01/2017,http://opendatacommunities.org/id/county-council/surrey,Surrey,http://id.esd.org.uk/service/1465,Council expenditure,08/09/2016,COVEHAM,SAINSBURYS PFS0473,40.14,PETROL/DIESEL ALL OFF BUSINESS,SERVICE STATIONS WITH OR WITHOUT ANCILLARY SERVICE
09/01/2017,http://opendatacommunities.org/id/county-council/surrey,Surrey,http://id.esd.org.uk/service/1465,Council expenditure,08/09/2016,DEVOLUTION FUND,ELIOR@WEST SUSSEX COUN,29.52,REFRESHMENT COSTS,CATERERS
09/01/2017,http://opendatacommunities.org/id/county-council/surrey,Surrey,http://id.esd.org.uk/service/1465,Council expenditure,08/09/2016,MULBERRY YC,MARKS&SPENCER PLC,45.18,PURCHASE OF FOOD (RAW MATERIALS),"GROCERY STORES, SUPERMARKETS"
09/01/2017,http://opendatacommunities.org/id/county-council/surrey,Surrey,http://id.esd.org.uk/service/1465,Council expenditure,08/09/2016,TILLINGBOURNE,UK PRINTING COMPANY LT,171,EQUIPMENT,MISCELLANEOUS PUBLISHING AND PRINTING
09/01/2017,http://opendatacommunities.org/id/county-council/surrey,Surrey,http://id.esd.org.uk/service/1465,Council expenditure,08/09/2016,TRANSPORT,MOBILE FLEETWASH UK LT,324,VEHICLE REPAIRS AND MAINTENANCE,CAR WASHES
09/01/2017,http://opendatacommunities.org/id/county-council/surrey,Surrey,http://id.esd.org.uk/service/1465,Council expenditure,08/09/2016,TRANSPORT,HOMEBASE LTD 247,23.94,COMPUTER HARDWARE,"BUILDING MATERIALS, LUMBER STORES"
09/01/2017,http://opendatacommunities.org/id/county-council/surrey,Surrey,http://id.esd.org.uk/service/1465,Council expenditure,08/09/2016,AEO MANAGEMENT TEAM (SW),WWW.ELKLAN.CO.UK,75,TRAINING EXPENSES EXTERNAL GENERAL,SCHOOLS & EDUCATIONAL SVC-NOT ELSEWHERE CLASSIFIED
09/01/2017,http://opendatacommunities.org/id/county-council/surrey,Surrey,http://id.esd.org.uk/service/1465,Council expenditure,08/09/2016,TANDRIDGE LOCAL CARE OP,TRAVELODGE,441,OTHER COMMUNITY CARE PRIV,TRAVELODGE
09/01/2017,http://opendatacommunities.org/id/county-council/surrey,Surrey,http://id.esd.org.uk/service/1465,Council expenditure,08/09/2016,TARGETED INTERVENTION,PEBBLES GELATO,7.5,EDUC VISITS/HOLS/CAMPS/TOYS,FAST FOOD RESTAURANTS
09/01/2017,http://opendatacommunities.org/id/county-council/surrey,Surrey,http://id.esd.org.uk/service/1465,Council expenditure,08/09/2016,SURREY GROWTH STRATEGY,REEDMIDEM.COM,"3,520.00",TRAINING EXPENSES EXTERNAL GENERAL,"CONSULTING, MANAGEMENT, AND PUBLIC RELATIONS SVCS"
09/01/2017,http://opendatacommunities.org/id/county-council/surrey,Surrey,http://id.esd.org.uk/service/1465,Council expenditure,08/09/2016,SOUTH WEST AREA TEAM,SURREY CC CARD PAY,50,TRAINING EXPENSES EXTERNAL GENERAL,COMPUTER NETWORK/INFORMATION SERVICES
09/01/2017,http://opendatacommunities.org/id/county-council/surrey,Surrey,http://id.esd.org.uk/service/1465,Council expenditure,08/09/2016,PE/CDT MAINTENANCE OVERHEADS,FASTPACK LTD,60,EQUIPMENT,HARDWARE STORES
09/01/2017,http://opendatacommunities.org/id/county-council/surrey,Surrey,http://id.esd.org.uk/service/1465,Council expenditure,08/09/2016,ENGLEFIELD GREEN YOUTH CENTRE,SAINSBURYS SACAT 0679,10.65,PURCHASE OF FOOD (RAW MATERIALS),"GROCERY STORES, SUPERMARKETS"
09/01/2017,http://opendatacommunities.org/id/county-council/surrey,Surrey,http://id.esd.org.uk/service/1465,Council expenditure,08/09/2016,SURREY GROWTH STRATEGY,REEDMIDEM.COM,"3,300.00",TRAINING EXPENSES EXTERNAL GENERAL,"CONSULTING, MANAGEMENT, AND PUBLIC RELATIONS SVCS"
09/01/2017,http://opendatacommunities.org/id/county-council/surrey,Surrey,http://id.esd.org.uk/service/1465,Council expenditure,08/09/2016,SE CARE - LAC,GRO HM PASSPORT OFFICE,27.75,CHILDREN ACT SEC 17 PAYMENTS,GOVERNMENT SERVICES-NOT ELSEWHERE CLASSIFIED
09/01/2017,http://opendatacommunities.org/id/county-council/surrey,Surrey,http://id.esd.org.uk/service/1465,Council expenditure,08/09/2016,ACL CENTRAL EXPENDITURE,AMAZON EU,44.57,EQUIPMENT,DIRECT MARKETING-OTHER DIRECT MARKETERS/NOT ELSEW.
09/01/2017,http://opendatacommunities.org/id/county-council/surrey,Surrey,http://id.esd.org.uk/service/1465,Council expenditure,08/09/2016,NORTH EAST AREA TEAM,MCDONALDS,7.38,REFRESHMENT COSTS,"EATING PLACES, RESTAURANTS"
09/01/2017,http://opendatacommunities.org/id/county-council/surrey,Surrey,http://id.esd.org.uk/service/1465,Council expenditure,08/09/2016,TARGETED INTERVENTION,CERAMICS CAFE HERSHAM,58.2,EDUC VISITS/HOLS/CAMPS/TOYS,MISCELLANEOUS HOUSE FURNISHING SPECIALTY SHOPS
09/01/2017,http://opendatacommunities.org/id/county-council/surrey,Surrey,http://id.esd.org.uk/service/1465,Council expenditure,08/09/2016,SW CARE - NON-LAC CP & COURT,GRO HM PASSPORT OFFICE,111,LEGAL EXPENSES,GOVERNMENT SERVICES-NOT ELSEWHERE CLASSIFIED
09/01/2017,http://opendatacommunities.org/id/county-council/surrey,Surrey,http://id.esd.org.uk/service/1465,Council expenditure,08/09/2016,PE/CDT MAINTENANCE OVERHEADS,UNIVERSAL SERVICES (SP,99.14,EQUIPMENT,"ATHLTIC FIELDS,COMMRCL SPRT,SPRT CLBS,SPRT PROMOTR"
09/01/2017,http://opendatacommunities.org/id/county-council/surrey,Surrey,http://id.esd.org.uk/service/1465,Council expenditure,08/09/2016,TARGETED INTERVENTION,MERCEDES-BENZ WORLD,4.7,EDUC VISITS/HOLS/CAMPS/TOYS,"EATING PLACES, RESTAURANTS"
09/01/2017,http://opendatacommunities.org/id/county-council/surrey,Surrey,http://id.esd.org.uk/service/1465,Council expenditure,08/09/2016,NW CARE - LAC,ARGOS RETAIL GROUP,55.92,CHILDREN ACT SEC 24 PAYMENTS,DISCOUNT STORES
09/01/2017,http://opendatacommunities.org/id/county-council/surrey,Surrey,http://id.esd.org.uk/service/1465,Council expenditure,08/09/2016,HOPE SERVICE - EAST,ECSI LTD,6.2,REFRESHMENT COSTS,"MISC FOOD STORE-CONVENIENCE,MRKT,SPLTY,VENDNG MACS"
09/01/2017,http://opendatacommunities.org/id/county-council/surrey,Surrey,http://id.esd.org.uk/service/1465,Council expenditure,08/09/2016,WORKPLACE COMMERCIAL TEAM,EB  SEEN ON SCREEN THE,300,TRAINING EXPENSES EXTERNAL GENERAL,BUSINESS SERVICES-NOT ELSEWHERE CLASSIFIED
09/01/2017,http://opendatacommunities.org/id/county-council/surrey,Surrey,http://id.esd.org.uk/service/1465,Council expenditure,08/09/2016,TARGETED INTERVENTION,MB WORLD,10,EDUC VISITS/HOLS/CAMPS/TOYS,AUTOMOTIVE SERVICE SHOPS
09/01/2017,http://opendatacommunities.org/id/county-council/surrey,Surrey,http://id.esd.org.uk/service/1465,Council expenditure,08/09/2016,TARGETED INTERVENTION,COSTA COFFEE,6.5,EDUC VISITS/HOLS/CAMPS/TOYS,FAST FOOD RESTAURANTS
09/01/2017,http://opendatacommunities.org/id/county-council/surrey,Surrey,http://id.esd.org.uk/service/1465,Council expenditure,08/09/2016,LEAVING CARE PACKAGES,ARGOS RETAIL GROUP,244.95,EQUIPMENT,DISCOUNT STORES
09/01/2017,http://opendatacommunities.org/id/county-council/surrey,Surrey,http://id.esd.org.uk/service/1465,Council expenditure,08/09/2016,PROPERTY OPERATIONS TEAM,HOWDENS - WOKING DA67,22.66,PURCHASE OF BUILDING MATERIALS,"BUILDING MATERIALS, LUMBER STORES"
09/01/2017,http://opendatacommunities.org/id/county-council/surrey,Surrey,http://id.esd.org.uk/service/1465,Council expenditure,08/09/2016,TARGETED INTERVENTION,W M MORRISONS CAFE,4.7,EDUC VISITS/HOLS/CAMPS/TOYS,"EATING PLACES, RESTAURANTS"
09/01/2017,http://opendatacommunities.org/id/county-council/surrey,Surrey,http://id.esd.org.uk/service/1465,Council expenditure,08/09/2016,TARGETED INTERVENTION,W M MORRISONS,11.05,EDUC VISITS/HOLS/CAMPS/TOYS,"GROCERY STORES, SUPERMARKETS"
09/01/2017,http://opendatacommunities.org/id/county-council/surrey,Surrey,http://id.esd.org.uk/service/1465,Council expenditure,08/09/2016,TRANSPORT,DESIGNS SIGNAGE SO,192.12,VEHICLE REPAIRS AND MAINTENANCE,"COMMERCIAL ART, GRAPHICS, PHOTOGRAPHY"
09/01/2017,http://opendatacommunities.org/id/county-council/surrey,Surrey,http://id.esd.org.uk/service/1465,Council expenditure,08/09/2016,ACL CENTRAL EXPENDITURE,EDUCATION & TRAINI,100,TRAINING EXPENSES EXTERNAL GENERAL,"COLLEGES, UNIV, PRO SCHOOLS, JUNIOR COLLEGES"
09/01/2017,http://opendatacommunities.org/id/county-council/surrey,Surrey,http://id.esd.org.uk/service/1465,Council expenditure,08/09/2016,SW CP & COURT TEAM,HEALTH & CARE PROFESSI,270,LEGAL EXPENSES,GOVERNMENT SERVICES-NOT ELSEWHERE CLASSIFIED
09/01/2017,http://opendatacommunities.org/id/county-council/surrey,Surrey,http://id.esd.org.uk/service/1465,Council expenditure,08/09/2016,HILLSIDE,SAINSBURYS 0675,77.41,PURCHASE OF FOOD (RAW MATERIALS),"GROCERY STORES, SUPERMARKETS"
09/01/2017,http://opendatacommunities.org/id/county-council/surrey,Surrey,http://id.esd.org.uk/service/1465,Council expenditure,08/09/2016,ASSET PLANNING GROUP,IPF,867,FEES,"ACCOUNTING, AUDITING AND BOOKKEEPING SERVICES"
09/01/2017,http://opendatacommunities.org/id/county-council/surrey,Surrey,http://id.esd.org.uk/service/1465,Council expenditure,08/09/2016,ASSET PLANNING GROUP,IPF,867,FEES,"ACCOUNTING, AUDITING AND BOOKKEEPING SERVICES"
09/01/2017,http://opendatacommunities.org/id/county-council/surrey,Surrey,http://id.esd.org.uk/service/1465,Council expenditure,08/09/2016,TRANSPORT,AMAZON UK MARKETPLACE,59.96,FURNITURE,BOOK STORES
09/01/2017,http://opendatacommunities.org/id/county-council/surrey,Surrey,http://id.esd.org.uk/service/1465,Council expenditure,08/09/2016,NW CARE - NON-LAC CP & COURT,ARGOS RETAIL GROUP,154.98,FURNITURE,DISCOUNT STORES
09/01/2017,http://opendatacommunities.org/id/county-council/surrey,Surrey,http://id.esd.org.uk/service/1465,Council expenditure,08/09/2016,SW CARE - NON-LAC CP & COURT,SURREY CC CARD PAY,31,LEGAL EXPENSES,COMPUTER NETWORK/INFORMATION SERVICES
09/01/2017,http://opendatacommunities.org/id/county-council/surrey,Surrey,http://id.esd.org.uk/service/1465,Council expenditure,08/09/2016,ORBIS HR BUSINESS SERVICES & TRAINING,AMAZON UK RETAIL AMAZO,13.49,EQUIPMENT,MISCELLANEOUS AND SPECIALTY RETAIL STORES
09/01/2017,http://opendatacommunities.org/id/county-council/surrey,Surrey,http://id.esd.org.uk/service/1465,Council expenditure,08/09/2016,HOPE SERVICE - WEST,SAINSBURYS LOC 4409,31,PURCHASE OF FOOD (RAW MATERIALS),"GROCERY STORES, SUPERMARKETS"
09/01/2017,http://opendatacommunities.org/id/county-council/surrey,Surrey,http://id.esd.org.uk/service/1465,Council expenditure,08/09/2016,IMT SUPPORT FOR FIRE & RESCUE,AMAZON UK MARKETPLACE,27.96,COMPUTER CONSUMABLES,BOOK STORES
09/01/2017,http://opendatacommunities.org/id/county-council/surrey,Surrey,http://id.esd.org.uk/service/1465,Council expenditure,08/09/2016,CORPORATE GROUP - LEGAL SERVICES,BHCC-PAYPHONEPARKING,5.3,EXPENSES,GOVERNMENT SERVICES-NOT ELSEWHERE CLASSIFIED
09/01/2017,http://opendatacommunities.org/id/county-council/surrey,Surrey,http://id.esd.org.uk/service/1465,Council expenditure,08/09/2016,TARGETED INTERVENTION,TESCO STORE 2047,61.44,STATIONERY,"GROCERY STORES, SUPERMARKETS"
09/01/2017,http://opendatacommunities.org/id/county-council/surrey,Surrey,http://id.esd.org.uk/service/1465,Council expenditure,08/09/2016,RUTH HOUSE,AMAZON UK MARKETPLACE,25.24,EDUC VISITS/HOLS/CAMPS/TOYS,BOOK STORES
09/01/2017,http://opendatacommunities.org/id/county-council/surrey,Surrey,http://id.esd.org.uk/service/1465,Council expenditure,08/09/2016,ACL CENTRAL EXPENDITURE,TESCO STORE 3220,122.95,REFRESHMENT COSTS,"GROCERY STORES, SUPERMARKETS"
09/01/2017,http://opendatacommunities.org/id/county-council/surrey,Surrey,http://id.esd.org.uk/service/1465,Council expenditure,08/09/2016,FAIRCROFT COMMUNITY HOME,TESCO STORE 2160,75.7,PURCHASE OF FOOD (RAW MATERIALS),"GROCERY STORES, SUPERMARKETS"
09/01/2017,http://opendatacommunities.org/id/county-council/surrey,Surrey,http://id.esd.org.uk/service/1465,Council expenditure,08/09/2016,CHEYNE WALK COMMUNITY HOME,AMAZON UK MARKETPLACE,31.01,EQUIPMENT,BOOK STORES
09/01/2017,http://opendatacommunities.org/id/county-council/surrey,Surrey,http://id.esd.org.uk/service/1465,Council expenditure,08/09/2016,STANWELL YOUTH CLUB,AMAZON UK MARKETPLACE,-23.88,EQUIPMENT,MISCELLANEOUS AND SPECIALTY RETAIL STORES
09/01/2017,http://opendatacommunities.org/id/county-council/surrey,Surrey,http://id.esd.org.uk/service/1465,Council expenditure,08/09/2016,LEAVING CARE PACKAGES,ARGOS RETAIL GROUP,228.94,EQUIPMENT,DISCOUNT STORES
09/01/2017,http://opendatacommunities.org/id/county-council/surrey,Surrey,http://id.esd.org.uk/service/1465,Council expenditure,08/09/2016,SW TEACHERS,AMAZON EU,14.15,BOOKS,DIRECT MARKETING-OTHER DIRECT MARKETERS/NOT ELSEW.
09/01/2017,http://opendatacommunities.org/id/county-council/surrey,Surrey,http://id.esd.org.uk/service/1465,Council expenditure,08/09/2016,COUNTY HALL,AMAZON UK MARKETPLACE,72.1,DAY TO DAY MAINTENANCE,BOOK STORES
09/01/2017,http://opendatacommunities.org/id/county-council/surrey,Surrey,http://id.esd.org.uk/service/1465,Council expenditure,08/09/2016,BUSINESS AND COMPLIANCE TEAM            ,AMAZON UK MARKETPLACE,-13.98,EQUIPMENT,MISCELLANEOUS AND SPECIALTY RETAIL STORES
09/01/2017,http://opendatacommunities.org/id/county-council/surrey,Surrey,http://id.esd.org.uk/service/1465,Council expenditure,09/09/2016,ASYLUM SEEKERS 18+,TVLICENSING.CO.UK,145.5,CHILDREN ACT SEC 24 PAYMENTS,"CONSULTING, MANAGEMENT, AND PUBLIC RELATIONS SVCS"
09/01/2017,http://opendatacommunities.org/id/county-council/surrey,Surrey,http://id.esd.org.uk/service/1465,Council expenditure,09/09/2016,PHOENIX YC,AMAZON UK MARKETPLACE,238.9,EQUIPMENT,BOOK STORES
09/01/2017,http://opendatacommunities.org/id/county-council/surrey,Surrey,http://id.esd.org.uk/service/1465,Council expenditure,09/09/2016,WOODLANDS COMMUNITY HOME,THE ATRIUM CAMBERLEY,1.5,EDUC VISITS/HOLS/CAMPS/TOYS,PROFESSIONAL SERVICES-NOT ELSEWHERE CLASSIFIED
09/01/2017,http://opendatacommunities.org/id/county-council/surrey,Surrey,http://id.esd.org.uk/service/1465,Council expenditure,09/09/2016,WOODLANDS COMMUNITY HOME,THE ATRIUM CAMBERLEY,1.5,EDUC VISITS/HOLS/CAMPS/TOYS,PROFESSIONAL SERVICES-NOT ELSEWHERE CLASSIFIED
09/01/2017,http://opendatacommunities.org/id/county-council/surrey,Surrey,http://id.esd.org.uk/service/1465,Council expenditure,09/09/2016,LIBERTAS COMMUNITY HOME,TESCO-STORES 2590,14.01,PURCHASE OF FOOD (RAW MATERIALS),"GROCERY STORES, SUPERMARKETS"
09/01/2017,http://opendatacommunities.org/id/county-council/surrey,Surrey,http://id.esd.org.uk/service/1465,Council expenditure,09/09/2016,FAIRCROFT COMMUNITY HOME,VUE BSL LTD,45.93,EDUC VISITS/HOLS/CAMPS/TOYS,MOTION PICTURE THEATERS
09/01/2017,http://opendatacommunities.org/id/county-council/surrey,Surrey,http://id.esd.org.uk/service/1465,Council expenditure,09/09/2016,WOODLANDS COMMUNITY HOME,CREAMS CAFE,17.8,REFRESHMENT COSTS,"EATING PLACES, RESTAURANTS"
09/01/2017,http://opendatacommunities.org/id/county-council/surrey,Surrey,http://id.esd.org.uk/service/1465,Council expenditure,09/09/2016,BANSTEAD YC,AMAZON UK MARKETPLACE,1.69,EQUIPMENT,BOOK STORES
09/01/2017,http://opendatacommunities.org/id/county-council/surrey,Surrey,http://id.esd.org.uk/service/1465,Council expenditure,09/09/2016,PHOENIX YC,AMAZON UK MARKETPLACE,7.98,EQUIPMENT,BOOK STORES
09/01/2017,http://opendatacommunities.org/id/county-council/surrey,Surrey,http://id.esd.org.uk/service/1465,Council expenditure,09/09/2016,BANSTEAD YC,AMAZON UK MARKETPLACE,15.98,EQUIPMENT,BOOK STORES
09/01/2017,http://opendatacommunities.org/id/county-council/surrey,Surrey,http://id.esd.org.uk/service/1465,Council expenditure,09/09/2016,BANSTEAD YC,AMAZON UK MARKETPLACE,28.99,EQUIPMENT,BOOK STORES
09/01/2017,http://opendatacommunities.org/id/county-council/surrey,Surrey,http://id.esd.org.uk/service/1465,Council expenditure,09/09/2016,BANSTEAD YC,AMAZON UK MARKETPLACE,24.95,EQUIPMENT,BOOK STORES
09/01/2017,http://opendatacommunities.org/id/county-council/surrey,Surrey,http://id.esd.org.uk/service/1465,Council expenditure,09/09/2016,KARIBU COMMUNITY HOME,SAINSBURYS 0683,105.81,EQUIPMENT,"GROCERY STORES, SUPERMARKETS"
09/01/2017,http://opendatacommunities.org/id/county-council/surrey,Surrey,http://id.esd.org.uk/service/1465,Council expenditure,09/09/2016,FAIRCROFT COMMUNITY HOME,WAITROSE 181,7.14,REFRESHMENT COSTS,"GROCERY STORES, SUPERMARKETS"
09/01/2017,http://opendatacommunities.org/id/county-council/surrey,Surrey,http://id.esd.org.uk/service/1465,Council expenditure,09/09/2016,WOODLANDS COMMUNITY HOME,TENPIN,6.98,REFRESHMENT COSTS,"CLUBS-CNTRY,MBRSHIP(ATHLET,REC,SPRTS,PRIVATE GOLF"
09/01/2017,http://opendatacommunities.org/id/county-council/surrey,Surrey,http://id.esd.org.uk/service/1465,Council expenditure,09/09/2016,WOODLANDS COMMUNITY HOME,TENPIN,48,EDUC VISITS/HOLS/CAMPS/TOYS,"CLUBS-CNTRY,MBRSHIP(ATHLET,REC,SPRTS,PRIVATE GOLF"
09/01/2017,http://opendatacommunities.org/id/county-council/surrey,Surrey,http://id.esd.org.uk/service/1465,Council expenditure,09/09/2016,LIBERTAS COMMUNITY HOME,O2 UK PAY & GO,10,TELECOMMUNICATION CHARGES,TELECOM INCL PREPAID/RECURRING PHONE SVCS
09/01/2017,http://opendatacommunities.org/id/county-council/surrey,Surrey,http://id.esd.org.uk/service/1465,Council expenditure,09/09/2016,ACL CENTRAL EXPENDITURE,TESCO DIRECT,18,EQUIPMENT,MISCELLANEOUS AND SPECIALTY RETAIL STORES
09/01/2017,http://opendatacommunities.org/id/county-council/surrey,Surrey,http://id.esd.org.uk/service/1465,Council expenditure,09/09/2016,SE SECTION 17 CARE,FLEXISTAY LTD,"1,173.00",INDEPENDENT LIVING PLACEMENTS,"LODGING-HOTELS,MOTELS,RESORTS-NOT CLASSIFIED"
09/01/2017,http://opendatacommunities.org/id/county-council/surrey,Surrey,http://id.esd.org.uk/service/1465,Council expenditure,09/09/2016,CHEYNE WALK COMMUNITY HOME,SAINSBURYS SACAT 2501,33.45,PURCHASE OF FOOD (RAW MATERIALS),"GROCERY STORES, SUPERMARKETS"
09/01/2017,http://opendatacommunities.org/id/county-council/surrey,Surrey,http://id.esd.org.uk/service/1465,Council expenditure,09/09/2016,SW CARE - LAC,LOK 'N' STORE CRAWLEY,267.65,REMOVAL EXPENSES,"PUBLIC WAREHOUSING-FARM, REFRIG GOODS, HHG STORAGE"
09/01/2017,http://opendatacommunities.org/id/county-council/surrey,Surrey,http://id.esd.org.uk/service/1465,Council expenditure,09/09/2016,COMMUNICATIONS TEAM,RESOLUTION GB LTD,627.6,STATIONERY,ELECTRICAL AND SMALL APPLIANCE REPAIR SHOPS
09/01/2017,http://opendatacommunities.org/id/county-council/surrey,Surrey,http://id.esd.org.uk/service/1465,Council expenditure,09/09/2016,REIGATE & BANSTEAD LOCAL CARE PD,TRAVELODGE,397,OTHER COMMUNITY CARE PRIV,TRAVELODGE
09/01/2017,http://opendatacommunities.org/id/county-council/surrey,Surrey,http://id.esd.org.uk/service/1465,Council expenditure,09/09/2016,CHILDREN'S RIGHTS TEAM,WAITROSE 181,8.67,REFRESHMENT COSTS,"GROCERY STORES, SUPERMARKETS"
09/01/2017,http://opendatacommunities.org/id/county-council/surrey,Surrey,http://id.esd.org.uk/service/1465,Council expenditure,09/09/2016,MEMBERS EXPENSES (INCL ALLOWANCES),COMPANIES HOUSE,13,TRAINING EXPENSES EXTERNAL GENERAL,GOVERNMENT SERVICES-NOT ELSEWHERE CLASSIFIED
09/01/2017,http://opendatacommunities.org/id/county-council/surrey,Surrey,http://id.esd.org.uk/service/1465,Council expenditure,09/09/2016,SW CARE - LAC,LOK 'N' STORE CRAWLEY,25,REMOVAL EXPENSES,"PUBLIC WAREHOUSING-FARM, REFRIG GOODS, HHG STORAGE"
09/01/2017,http://opendatacommunities.org/id/county-council/surrey,Surrey,http://id.esd.org.uk/service/1465,Council expenditure,09/09/2016,ARUNDEL,TESCO STORES 5999,129.06,REFRESHMENT COSTS,"GROCERY STORES, SUPERMARKETS"
09/01/2017,http://opendatacommunities.org/id/county-council/surrey,Surrey,http://id.esd.org.uk/service/1465,Council expenditure,09/09/2016,ARUNDEL,TESCO STORES 5999,5.18,REFRESHMENT COSTS,"GROCERY STORES, SUPERMARKETS"
09/01/2017,http://opendatacommunities.org/id/county-council/surrey,Surrey,http://id.esd.org.uk/service/1465,Council expenditure,09/09/2016,NE CARE - LAC,VIRGINTRAINS.CO.UK,110.5,EXPENSES,PASSENGER RAILWAYS
09/01/2017,http://opendatacommunities.org/id/county-council/surrey,Surrey,http://id.esd.org.uk/service/1465,Council expenditure,09/09/2016,TRANSPORT,THE EDGE (SYSTEMS) LIM,23.64,STATIONERY,BUSINESS SERVICES-NOT ELSEWHERE CLASSIFIED
09/01/2017,http://opendatacommunities.org/id/county-council/surrey,Surrey,http://id.esd.org.uk/service/1465,Council expenditure,09/09/2016,ACL CENTRAL EXPENDITURE,TESCO DIRECT,192,EQUIPMENT,MISCELLANEOUS AND SPECIALTY RETAIL STORES
09/01/2017,http://opendatacommunities.org/id/county-council/surrey,Surrey,http://id.esd.org.uk/service/1465,Council expenditure,09/09/2016,ASHTEAD YC,DISCOUNT CARSPARES LTD,5.98,EQUIPMENT,"AUTOMOTIVE PARTS, ACCESSORIES STORES"
09/01/2017,http://opendatacommunities.org/id/county-council/surrey,Surrey,http://id.esd.org.uk/service/1465,Council expenditure,09/09/2016,ASSET PLANNING - OPERATIONS,POST OFFICE COUNTER,16.4,POSTAGE AND COURIER CHARGES,POSTAL SERVICES-GOVERNMENT ONLY
09/01/2017,http://opendatacommunities.org/id/county-council/surrey,Surrey,http://id.esd.org.uk/service/1465,Council expenditure,09/09/2016,TARGETED INTERVENTION,THE ATRIUM CAMBERLEY,1.5,EDUC VISITS/HOLS/CAMPS/TOYS,PROFESSIONAL SERVICES-NOT ELSEWHERE CLASSIFIED
09/01/2017,http://opendatacommunities.org/id/county-council/surrey,Surrey,http://id.esd.org.uk/service/1465,Council expenditure,09/09/2016,PROGRAMME TEAM,WWW.DOMINOS.CO.UK,51.96,REFRESHMENT COSTS,"EATING PLACES, RESTAURANTS"
09/01/2017,http://opendatacommunities.org/id/county-council/surrey,Surrey,http://id.esd.org.uk/service/1465,Council expenditure,09/09/2016,CHEYNE WALK COMMUNITY HOME,WAITROSE 233,11.75,PURCHASE OF FOOD (RAW MATERIALS),"GROCERY STORES, SUPERMARKETS"
09/01/2017,http://opendatacommunities.org/id/county-council/surrey,Surrey,http://id.esd.org.uk/service/1465,Council expenditure,09/09/2016,BURBANK COMMUNITY HOME,HOMEBASE LTD 050,18.99,DAY TO DAY MAINTENANCE,"BUILDING MATERIALS, LUMBER STORES"
09/01/2017,http://opendatacommunities.org/id/county-council/surrey,Surrey,http://id.esd.org.uk/service/1465,Council expenditure,09/09/2016,TARGETED INTERVENTION,TENPIN,18.5,EDUC VISITS/HOLS/CAMPS/TOYS,"CLUBS-CNTRY,MBRSHIP(ATHLET,REC,SPRTS,PRIVATE GOLF"
09/01/2017,http://opendatacommunities.org/id/county-council/surrey,Surrey,http://id.esd.org.uk/service/1465,Council expenditure,09/09/2016,BURBANK COMMUNITY HOME,B & Q 1029,25,DAY TO DAY MAINTENANCE,"BUILDING MATERIALS, LUMBER STORES"
09/01/2017,http://opendatacommunities.org/id/county-council/surrey,Surrey,http://id.esd.org.uk/service/1465,Council expenditure,09/09/2016,NE CARE - LAC,HM PASSPORT,103,FEES,GOVERNMENT SERVICES-NOT ELSEWHERE CLASSIFIED
09/01/2017,http://opendatacommunities.org/id/county-council/surrey,Surrey,http://id.esd.org.uk/service/1465,Council expenditure,09/09/2016,TARGETED INTERVENTION,TESCO STORES 3149,4.99,EDUC VISITS/HOLS/CAMPS/TOYS,"GROCERY STORES, SUPERMARKETS"
09/01/2017,http://opendatacommunities.org/id/county-council/surrey,Surrey,http://id.esd.org.uk/service/1465,Council expenditure,09/09/2016,LIBERTAS COMMUNITY HOME,ARGOS RETAIL GROUP,4.99,EQUIPMENT,DISCOUNT STORES
09/01/2017,http://opendatacommunities.org/id/county-council/surrey,Surrey,http://id.esd.org.uk/service/1465,Council expenditure,09/09/2016,CHILDREN'S RIGHTS TEAM,WWW.DOMINOS.CO.UK,74.93,REFRESHMENT COSTS,"EATING PLACES, RESTAURANTS"
09/01/2017,http://opendatacommunities.org/id/county-council/surrey,Surrey,http://id.esd.org.uk/service/1465,Council expenditure,09/09/2016,ACL CENTRAL EXPENDITURE,AMAZON UK MARKETPLACE,19.45,CURRICULUM EQUIPMENT AND FURNITURE,BOOK STORES
09/01/2017,http://opendatacommunities.org/id/county-council/surrey,Surrey,http://id.esd.org.uk/service/1465,Council expenditure,09/09/2016,LIBERTAS COMMUNITY HOME,ARGOS RETAIL GROUP,39.98,FURNITURE,DISCOUNT STORES
09/01/2017,http://opendatacommunities.org/id/county-council/surrey,Surrey,http://id.esd.org.uk/service/1465,Council expenditure,09/09/2016,TARGETED INTERVENTION,CO-OP GROUP 070711,7,EDUC VISITS/HOLS/CAMPS/TOYS,"GROCERY STORES, SUPERMARKETS"
09/01/2017,http://opendatacommunities.org/id/county-council/surrey,Surrey,http://id.esd.org.uk/service/1465,Council expenditure,09/09/2016,HENLEY FORT OUTDOOR EDUC CENTRE,CCP CLEANING SUPPLIES,12.6,DAY TO DAY MAINTENANCE,PROFESSIONAL SERVICES-NOT ELSEWHERE CLASSIFIED
09/01/2017,http://opendatacommunities.org/id/county-council/surrey,Surrey,http://id.esd.org.uk/service/1465,Council expenditure,09/09/2016,TARGETED INTERVENTION,HARRIS & HOOLE,9.75,EDUC VISITS/HOLS/CAMPS/TOYS,"EATING PLACES, RESTAURANTS"
09/01/2017,http://opendatacommunities.org/id/county-council/surrey,Surrey,http://id.esd.org.uk/service/1465,Council expenditure,09/09/2016,HENLEY FORT OUTDOOR EDUC CENTRE,B & Q 1029,152.22,DAY TO DAY MAINTENANCE,"BUILDING MATERIALS, LUMBER STORES"
09/01/2017,http://opendatacommunities.org/id/county-council/surrey,Surrey,http://id.esd.org.uk/service/1465,Council expenditure,09/09/2016,SOUTH EAST AREA TEAM,TRAVIS PERKINS,4.99,CURRICULUM CONSUMABLES,"BUILDING MATERIALS, LUMBER STORES"
09/01/2017,http://opendatacommunities.org/id/county-council/surrey,Surrey,http://id.esd.org.uk/service/1465,Council expenditure,09/09/2016,IMT SUPPORT FOR FIRE & RESCUE,VIRGINTRAINS.CO.UK,77.7,MISCELLANEOUS STAFF TRAVEL,PASSENGER RAILWAYS
09/01/2017,http://opendatacommunities.org/id/county-council/surrey,Surrey,http://id.esd.org.uk/service/1465,Council expenditure,09/09/2016,ISPSB - ADAPTATIONS & IMPROVEMENTS,AMAZON UK MARKETPLACE,109.99,EQUIPMENT,BOOK STORES
09/01/2017,http://opendatacommunities.org/id/county-council/surrey,Surrey,http://id.esd.org.uk/service/1465,Council expenditure,09/09/2016,PROPERTY OPERATIONS TEAM,SCREWFIX GUILDFORD,14.78,PURCHASE OF BUILDING MATERIALS,"BUILDING MATERIALS, LUMBER STORES"
09/01/2017,http://opendatacommunities.org/id/county-council/surrey,Surrey,http://id.esd.org.uk/service/1465,Council expenditure,09/09/2016,SOUTH EAST AREA TEAM,TRAVIS PERKINS,10.84,CURRICULUM CONSUMABLES,"BUILDING MATERIALS, LUMBER STORES"
09/01/2017,http://opendatacommunities.org/id/county-council/surrey,Surrey,http://id.esd.org.uk/service/1465,Council expenditure,09/09/2016,EQUIPMENT SCC BUDGET,LAKELAND LIMITED,31.43,EQUIPMENT,HOUSEHOLD APPLIANCE STORES
09/01/2017,http://opendatacommunities.org/id/county-council/surrey,Surrey,http://id.esd.org.uk/service/1465,Council expenditure,09/09/2016,ASHFORD YC,TESCO STORES-2047,8.92,REFRESHMENT COSTS,"GROCERY STORES, SUPERMARKETS"
09/01/2017,http://opendatacommunities.org/id/county-council/surrey,Surrey,http://id.esd.org.uk/service/1465,Council expenditure,09/09/2016,CHEYNE WALK COMMUNITY HOME,SURREY CC CARD PAY,25,NON-STAFF RELATED TRANSPORT COSTS,COMPUTER NETWORK/INFORMATION SERVICES
09/01/2017,http://opendatacommunities.org/id/county-council/surrey,Surrey,http://id.esd.org.uk/service/1465,Council expenditure,09/09/2016,ACCESS 2 EDUCATION NW NON-MEDICAL,AMAZON UK MARKETPLACE,69.99,EQUIPMENT,BOOK STORES
09/01/2017,http://opendatacommunities.org/id/county-council/surrey,Surrey,http://id.esd.org.uk/service/1465,Council expenditure,09/09/2016,PHOENIX YC,AMAZON UK MARKETPLACE,61.17,EQUIPMENT,BOOK STORES
09/01/2017,http://opendatacommunities.org/id/county-council/surrey,Surrey,http://id.esd.org.uk/service/1465,Council expenditure,09/09/2016,CHEYNE WALK COMMUNITY HOME,TESCO PFS 2004,20.22,VEHICLE RUNNING COSTS,SERVICE STATIONS WITH OR WITHOUT ANCILLARY SERVICE
09/01/2017,http://opendatacommunities.org/id/county-council/surrey,Surrey,http://id.esd.org.uk/service/1465,Council expenditure,09/09/2016,CHEYNE WALK COMMUNITY HOME,AMAZON UK MARKETPLACE,37.47,EQUIPMENT,BOOK STORES
09/01/2017,http://opendatacommunities.org/id/county-council/surrey,Surrey,http://id.esd.org.uk/service/1465,Council expenditure,09/09/2016,CHEYNE WALK COMMUNITY HOME,AMAZON UK MARKETPLACE,6.59,EQUIPMENT,BOOK STORES
09/01/2017,http://opendatacommunities.org/id/county-council/surrey,Surrey,http://id.esd.org.uk/service/1465,Council expenditure,09/09/2016,HENLEY FORT OUTDOOR EDUC CENTRE,CCP CLEANING SUPPLIES,25.98,DAY TO DAY MAINTENANCE,PROFESSIONAL SERVICES-NOT ELSEWHERE CLASSIFIED
09/01/2017,http://opendatacommunities.org/id/county-council/surrey,Surrey,http://id.esd.org.uk/service/1465,Council expenditure,09/09/2016,HENLEY FORT OUTDOOR EDUC CENTRE,B & Q 1029,184.58,DAY TO DAY MAINTENANCE,"BUILDING MATERIALS, LUMBER STORES"
09/01/2017,http://opendatacommunities.org/id/county-council/surrey,Surrey,http://id.esd.org.uk/service/1465,Council expenditure,09/09/2016,WEB OPERATIONS TEAM,BT BILL PAYMENT 2,114.65,TELECOMMUNICATION CHARGES,TELECOMMUNICATION EQUIPMENT INCL TELEPHONE SALES
09/01/2017,http://opendatacommunities.org/id/county-council/surrey,Surrey,http://id.esd.org.uk/service/1465,Council expenditure,09/09/2016,SURREY GROWTH STRATEGY,REEDMIDEM.COM,"1,320.00",MEDICAL EXPENSES,"CONSULTING, MANAGEMENT, AND PUBLIC RELATIONS SVCS"
09/01/2017,http://opendatacommunities.org/id/county-council/surrey,Surrey,http://id.esd.org.uk/service/1465,Council expenditure,09/09/2016,CORPORATE GROUP - LEGAL SERVICES,BHCC-PAYPHONEPARKING,5.3,EXPENSES,GOVERNMENT SERVICES-NOT ELSEWHERE CLASSIFIED
09/01/2017,http://opendatacommunities.org/id/county-council/surrey,Surrey,http://id.esd.org.uk/service/1465,Council expenditure,09/09/2016,FOSTERING SERVICE CENTRAL COSTS,TESCO STORE 2560,107.8,REFRESHMENT COSTS,"GROCERY STORES, SUPERMARKETS"
09/01/2017,http://opendatacommunities.org/id/county-council/surrey,Surrey,http://id.esd.org.uk/service/1465,Council expenditure,09/09/2016,HERITAGE PUBLIC SERVICE,W M MORRISONS,23.67,REFRESHMENT COSTS,"GROCERY STORES, SUPERMARKETS"
09/01/2017,http://opendatacommunities.org/id/county-council/surrey,Surrey,http://id.esd.org.uk/service/1465,Council expenditure,09/09/2016,LIBERTAS COMMUNITY HOME,SAINSBURYS TO YOU 0652,122.6,PURCHASE OF FOOD (RAW MATERIALS),"GROCERY STORES, SUPERMARKETS"
09/01/2017,http://opendatacommunities.org/id/county-council/surrey,Surrey,http://id.esd.org.uk/service/1465,Council expenditure,09/09/2016,RUTH HOUSE,SAINSBURYS TO YOU 0686,61.5,PURCHASE OF FOOD (RAW MATERIALS),"GROCERY STORES, SUPERMARKETS"
09/01/2017,http://opendatacommunities.org/id/county-council/surrey,Surrey,http://id.esd.org.uk/service/1465,Council expenditure,09/09/2016,RUTH HOUSE,SAINSBURYS TO YOU 0686,305.25,PURCHASE OF FOOD (RAW MATERIALS),"GROCERY STORES, SUPERMARKETS"
09/01/2017,http://opendatacommunities.org/id/county-council/surrey,Surrey,http://id.esd.org.uk/service/1465,Council expenditure,09/09/2016,FOSTERING SERVICE CENTRAL COSTS,ASDA HOME SHOPPING,88.6,REFRESHMENT COSTS,"GROCERY STORES, SUPERMARKETS"
09/01/2017,http://opendatacommunities.org/id/county-council/surrey,Surrey,http://id.esd.org.uk/service/1465,Council expenditure,09/09/2016,HOLLAND CLOSE RESIDENTIAL HOME,NETFLIX.COM,7.49,SUBSCRIPTIONS,DIRECT MARKETING-CONTINUITY/SUBSCRIPTION MERCHANTS
09/01/2017,http://opendatacommunities.org/id/county-council/surrey,Surrey,http://id.esd.org.uk/service/1465,Council expenditure,09/09/2016,ACCESS 2 EDUCATION NW NON-MEDICAL,WWW.COOPERSOFSTORTFORD,19.98,FURNITURE,DEPARTMENT STORES
09/01/2017,http://opendatacommunities.org/id/county-council/surrey,Surrey,http://id.esd.org.uk/service/1465,Council expenditure,09/09/2016,ORBIS TRAINING PROPERTY,RICS COM GBP CYBS,-361.8,TRAINING EXPENSES EXTERNAL GENERAL,"ORGANIZATIONS, MEMBERSHIP-NOT ELSEWHERE CLASSIFIED"
09/01/2017,http://opendatacommunities.org/id/county-council/surrey,Surrey,http://id.esd.org.uk/service/1465,Council expenditure,09/09/2016,LIBERTAS COMMUNITY HOME,SAINSBURYS TO YOU 0652,-1.75,PURCHASE OF FOOD (RAW MATERIALS),"GROCERY STORES, SUPERMARKETS"
09/01/2017,http://opendatacommunities.org/id/county-council/surrey,Surrey,http://id.esd.org.uk/service/1465,Council expenditure,09/09/2016,TARGETED INTERVENTION,AMAZON EU,26.5,EDUC VISITS/HOLS/CAMPS/TOYS,DIRECT MARKETING-OTHER DIRECT MARKETERS/NOT ELSEW.
09/01/2017,http://opendatacommunities.org/id/county-council/surrey,Surrey,http://id.esd.org.uk/service/1465,Council expenditure,10/09/2016,BANSTEAD YC,AMAZON UK MARKETPLACE,15,EQUIPMENT,BOOK STORES
09/01/2017,http://opendatacommunities.org/id/county-council/surrey,Surrey,http://id.esd.org.uk/service/1465,Council expenditure,10/09/2016,IMT CRITICAL ENVIRONMENTS,AMAZON UK RETAIL AMAZO,13.49,COMPUTER HARDWARE,MISCELLANEOUS AND SPECIALTY RETAIL STORES
09/01/2017,http://opendatacommunities.org/id/county-council/surrey,Surrey,http://id.esd.org.uk/service/1465,Council expenditure,10/09/2016,CHEYNE WALK COMMUNITY HOME,TESCO PFS 3874,4,PURCHASE OF FOOD (RAW MATERIALS),SERVICE STATIONS WITH OR WITHOUT ANCILLARY SERVICE
09/01/2017,http://opendatacommunities.org/id/county-council/surrey,Surrey,http://id.esd.org.uk/service/1465,Council expenditure,10/09/2016,CHEYNE WALK COMMUNITY HOME,TESCO STORES 2560,44.64,PURCHASE OF FOOD (RAW MATERIALS),"GROCERY STORES, SUPERMARKETS"
09/01/2017,http://opendatacommunities.org/id/county-council/surrey,Surrey,http://id.esd.org.uk/service/1465,Council expenditure,10/09/2016,CHEYNE WALK COMMUNITY HOME,COUNTY MALL CAR PARK,2.5,NON-STAFF RELATED TRANSPORT COSTS,AUTOMOBILE PARKING LOTS AND GARAGES
09/01/2017,http://opendatacommunities.org/id/county-council/surrey,Surrey,http://id.esd.org.uk/service/1465,Council expenditure,10/09/2016,CHEYNE WALK COMMUNITY HOME,EDS EASY DINER,18.2,EDUC VISITS/HOLS/CAMPS/TOYS,"EATING PLACES, RESTAURANTS"
09/01/2017,http://opendatacommunities.org/id/county-council/surrey,Surrey,http://id.esd.org.uk/service/1465,Council expenditure,10/09/2016,CHEYNE WALK COMMUNITY HOME,CEX,6.5,LIBRARY RESOURCES,ELECTRICAL PARTS AND EQUIPMENT
09/01/2017,http://opendatacommunities.org/id/county-council/surrey,Surrey,http://id.esd.org.uk/service/1465,Council expenditure,10/09/2016,ASH YC,PRIMARK STORES 655,20,EQUIPMENT,FAMILY CLOTHING STORES
09/01/2017,http://opendatacommunities.org/id/county-council/surrey,Surrey,http://id.esd.org.uk/service/1465,Council expenditure,10/09/2016,KARIBU COMMUNITY HOME,TOY BARNHAUS,24.48,EDUC VISITS/HOLS/CAMPS/TOYS,"GAME, TOY, AND HOBBY SHOPS"
09/01/2017,http://opendatacommunities.org/id/county-council/surrey,Surrey,http://id.esd.org.uk/service/1465,Council expenditure,10/09/2016,WOODLANDS COMMUNITY HOME,CURRYS SUPERSTORE 2324,69.98,COMPUTER HARDWARE,ELECTRONIC SALES
09/01/2017,http://opendatacommunities.org/id/county-council/surrey,Surrey,http://id.esd.org.uk/service/1465,Council expenditure,10/09/2016,KARIBU COMMUNITY HOME,CHILDRENS TRUST,9.5,EDUC VISITS/HOLS/CAMPS/TOYS,"ORGANIZATIONS, CHARITABLE AND SOCIAL SERVICES"
09/01/2017,http://opendatacommunities.org/id/county-council/surrey,Surrey,http://id.esd.org.uk/service/1465,Council expenditure,10/09/2016,KARIBU COMMUNITY HOME,MCDONALDS,20.21,PURCHASE OF FOOD (RAW MATERIALS),"EATING PLACES, RESTAURANTS"
09/01/2017,http://opendatacommunities.org/id/county-council/surrey,Surrey,http://id.esd.org.uk/service/1465,Council expenditure,10/09/2016,KARIBU COMMUNITY HOME,WILKO RETAIL LIMIT,68.55,EQUIPMENT,HOUSEHOLD APPLIANCE STORES
09/01/2017,http://opendatacommunities.org/id/county-council/surrey,Surrey,http://id.esd.org.uk/service/1465,Council expenditure,10/09/2016,KARIBU COMMUNITY HOME,CLAIRE'S ACCESSORIES,8,EDUC VISITS/HOLS/CAMPS/TOYS,ACCESSORY AND APPAREL STORES-MISCELLANEOUS
09/01/2017,http://opendatacommunities.org/id/county-council/surrey,Surrey,http://id.esd.org.uk/service/1465,Council expenditure,10/09/2016,ROW MAINTENANCE,BLACKS,41.25,EQUIPMENT,SPORTING GOODS STORES
09/01/2017,http://opendatacommunities.org/id/county-council/surrey,Surrey,http://id.esd.org.uk/service/1465,Council expenditure,10/09/2016,KARIBU COMMUNITY HOME,SUPERDRUG STORES PLC,8.35,EQUIPMENT,"DRUG STORES, PHARMACIES"
09/01/2017,http://opendatacommunities.org/id/county-council/surrey,Surrey,http://id.esd.org.uk/service/1465,Council expenditure,10/09/2016,SUNBURY YC,WILKO RETAIL LIMIT,4.9,EQUIPMENT,HOUSEHOLD APPLIANCE STORES
09/01/2017,http://opendatacommunities.org/id/county-council/surrey,Surrey,http://id.esd.org.uk/service/1465,Council expenditure,10/09/2016,FAIRCROFT COMMUNITY HOME,ODEON,19.5,EDUC VISITS/HOLS/CAMPS/TOYS,MOTION PICTURE THEATERS
09/01/2017,http://opendatacommunities.org/id/county-council/surrey,Surrey,http://id.esd.org.uk/service/1465,Council expenditure,10/09/2016,HILLSIDE,SAINSBURYS 0686,72.32,PURCHASE OF FOOD (RAW MATERIALS),"GROCERY STORES, SUPERMARKETS"
09/01/2017,http://opendatacommunities.org/id/county-council/surrey,Surrey,http://id.esd.org.uk/service/1465,Council expenditure,10/09/2016,FAIRCROFT COMMUNITY HOME,RODBORO,9.49,REFRESHMENT COSTS,"EATING PLACES, RESTAURANTS"
09/01/2017,http://opendatacommunities.org/id/county-council/surrey,Surrey,http://id.esd.org.uk/service/1465,Council expenditure,10/09/2016,HOLLAND CLOSE RESIDENTIAL HOME,TESCO-STORES 6647,163.21,PURCHASE OF FOOD (RAW MATERIALS),"GROCERY STORES, SUPERMARKETS"
09/01/2017,http://opendatacommunities.org/id/county-council/surrey,Surrey,http://id.esd.org.uk/service/1465,Council expenditure,11/09/2016,BURBANK COMMUNITY HOME,WOKING BOROUGH COUNCIL,2.6,MISCELLANEOUS STAFF TRAVEL,AUTOMOBILE PARKING LOTS AND GARAGES
09/01/2017,http://opendatacommunities.org/id/county-council/surrey,Surrey,http://id.esd.org.uk/service/1465,Council expenditure,11/09/2016,BURBANK COMMUNITY HOME,PRIMARK,27.5,"CLOTHING, UNIFORM AND LAUNDRY",FAMILY CLOTHING STORES
09/01/2017,http://opendatacommunities.org/id/county-council/surrey,Surrey,http://id.esd.org.uk/service/1465,Council expenditure,11/09/2016,BURBANK COMMUNITY HOME,LOTUS LOUNGE BAR,43.34,REFRESHMENT COSTS,"EATING PLACES, RESTAURANTS"
09/01/2017,http://opendatacommunities.org/id/county-council/surrey,Surrey,http://id.esd.org.uk/service/1465,Council expenditure,11/09/2016,ACL CENTRAL EXPENDITURE,FACEBK RUJSR9NCB2,1.75,PUBLICITY,ADVERTISING SERVICES
09/01/2017,http://opendatacommunities.org/id/county-council/surrey,Surrey,http://id.esd.org.uk/service/1465,Council expenditure,11/09/2016,ACL CENTRAL EXPENDITURE,FACEBK QUJSR9NCB2,398.31,PUBLICITY,ADVERTISING SERVICES
09/01/2017,http://opendatacommunities.org/id/county-council/surrey,Surrey,http://id.esd.org.uk/service/1465,Council expenditure,11/09/2016,FAIRCROFT COMMUNITY HOME,ODEON,38.1,EDUC VISITS/HOLS/CAMPS/TOYS,MOTION PICTURE THEATERS
09/01/2017,http://opendatacommunities.org/id/county-council/surrey,Surrey,http://id.esd.org.uk/service/1465,Council expenditure,11/09/2016,FAIRCROFT COMMUNITY HOME,SAINSBURYS SACAT 0687,2.67,PURCHASE OF FOOD (RAW MATERIALS),"GROCERY STORES, SUPERMARKETS"
09/01/2017,http://opendatacommunities.org/id/county-council/surrey,Surrey,http://id.esd.org.uk/service/1465,Council expenditure,11/09/2016,FAIRCROFT COMMUNITY HOME,SAINSBURYS SACAT 0687,11,PURCHASE OF FOOD (RAW MATERIALS),"GROCERY STORES, SUPERMARKETS"
09/01/2017,http://opendatacommunities.org/id/county-council/surrey,Surrey,http://id.esd.org.uk/service/1465,Council expenditure,11/09/2016,BURBANK COMMUNITY HOME,BOOTS OPTICIANS 3384,20,MEDICAL EXPENSES,"OPTICIANS,OPTICAL GOODS & EYEGLASSES"
09/01/2017,http://opendatacommunities.org/id/county-council/surrey,Surrey,http://id.esd.org.uk/service/1465,Council expenditure,11/09/2016,CHEYNE WALK COMMUNITY HOME,TESCO STORES 2560,6.85,PURCHASE OF FOOD (RAW MATERIALS),"GROCERY STORES, SUPERMARKETS"
09/01/2017,http://opendatacommunities.org/id/county-council/surrey,Surrey,http://id.esd.org.uk/service/1465,Council expenditure,11/09/2016,"SE REF, ASS & INT SERVICE - HUB 1",TRAVELODGE,62.35,OTHER COMMUNITY CARE PRIV,TRAVELODGE
09/01/2017,http://opendatacommunities.org/id/county-council/surrey,Surrey,http://id.esd.org.uk/service/1465,Council expenditure,11/09/2016,BURBANK COMMUNITY HOME,ASDA STORES 4823,21.6,"CLOTHING, UNIFORM AND LAUNDRY","GROCERY STORES, SUPERMARKETS"
09/01/2017,http://opendatacommunities.org/id/county-council/surrey,Surrey,http://id.esd.org.uk/service/1465,Council expenditure,11/09/2016,ACL CENTRAL EXPENDITURE,AMAZON UK MARKETPLACE,85.5,EQUIPMENT,BOOK STORES
09/01/2017,http://opendatacommunities.org/id/county-council/surrey,Surrey,http://id.esd.org.uk/service/1465,Council expenditure,11/09/2016,FAIRCROFT COMMUNITY HOME,TICKETOFFICESALE,6.5,NON-STAFF RELATED TRANSPORT COSTS,PASSENGER RAILWAYS
09/01/2017,http://opendatacommunities.org/id/county-council/surrey,Surrey,http://id.esd.org.uk/service/1465,Council expenditure,11/09/2016,LIBERTAS COMMUNITY HOME,SAINSBURYS TO YOU 0652,79.66,PURCHASE OF FOOD (RAW MATERIALS),"GROCERY STORES, SUPERMARKETS"
09/01/2017,http://opendatacommunities.org/id/county-council/surrey,Surrey,http://id.esd.org.uk/service/1465,Council expenditure,11/09/2016,HILLSIDE,SAINSBURYS TO YOU 0675,142.6,PURCHASE OF FOOD (RAW MATERIALS),"GROCERY STORES, SUPERMARKETS"
09/01/2017,http://opendatacommunities.org/id/county-council/surrey,Surrey,http://id.esd.org.uk/service/1465,Council expenditure,11/09/2016,CONTAMINATION,GOOGLE  ADWS2060179426,500,PUBLICITY,DIRECT MARKETING-CONTINUITY/SUBSCRIPTION MERCHANTS
09/01/2017,http://opendatacommunities.org/id/county-council/surrey,Surrey,http://id.esd.org.uk/service/1465,Council expenditure,12/09/2016,DIRECT COSTS CONCESSIONARY FARES,SURREY CC CARD PAY,-25,VEHICLE RUNNING COSTS,COMPUTER NETWORK/INFORMATION SERVICES
09/01/2017,http://opendatacommunities.org/id/county-council/surrey,Surrey,http://id.esd.org.uk/service/1465,Council expenditure,12/09/2016,THE STREET YC,WM MORRISONS,2.72,PURCHASE OF FOOD (RAW MATERIALS),"GROCERY STORES, SUPERMARKETS"
09/01/2017,http://opendatacommunities.org/id/county-council/surrey,Surrey,http://id.esd.org.uk/service/1465,Council expenditure,12/09/2016,WOODLANDS COMMUNITY HOME,SAINSBURYS SACAT 0686,3.85,REFRESHMENT COSTS,"GROCERY STORES, SUPERMARKETS"
09/01/2017,http://opendatacommunities.org/id/county-council/surrey,Surrey,http://id.esd.org.uk/service/1465,Council expenditure,12/09/2016,ASH YC,TESCO STORE 2590,12,EQUIPMENT,"GROCERY STORES, SUPERMARKETS"
09/01/2017,http://opendatacommunities.org/id/county-council/surrey,Surrey,http://id.esd.org.uk/service/1465,Council expenditure,12/09/2016,THE STREET YC,SAINSBURYS LOC4137,6.5,PURCHASE OF FOOD (RAW MATERIALS),"GROCERY STORES, SUPERMARKETS"
09/01/2017,http://opendatacommunities.org/id/county-council/surrey,Surrey,http://id.esd.org.uk/service/1465,Council expenditure,12/09/2016,THE STREET YC,WAITROSE 838,4.5,PURCHASE OF FOOD (RAW MATERIALS),"GROCERY STORES, SUPERMARKETS"
09/01/2017,http://opendatacommunities.org/id/county-council/surrey,Surrey,http://id.esd.org.uk/service/1465,Council expenditure,12/09/2016,HARRY'S YC,WAITROSE 838,4.99,PURCHASE OF FOOD (RAW MATERIALS),"GROCERY STORES, SUPERMARKETS"
09/01/2017,http://opendatacommunities.org/id/county-council/surrey,Surrey,http://id.esd.org.uk/service/1465,Council expenditure,12/09/2016,CHEYNE WALK COMMUNITY HOME,SPICE BOYS INDIAN,17,PURCHASE OF FOOD (RAW MATERIALS),FAST FOOD RESTAURANTS
09/01/2017,http://opendatacommunities.org/id/county-council/surrey,Surrey,http://id.esd.org.uk/service/1465,Council expenditure,12/09/2016,BURBANK COMMUNITY HOME,JAYLING LTD,13.5,PURCHASE OF FOOD (RAW MATERIALS),FAST FOOD RESTAURANTS
09/01/2017,http://opendatacommunities.org/id/county-council/surrey,Surrey,http://id.esd.org.uk/service/1465,Council expenditure,12/09/2016,HILLSIDE,SAINSBURYS SACAT 0784,2.45,PURCHASE OF FOOD (RAW MATERIALS),"GROCERY STORES, SUPERMARKETS"
09/01/2017,http://opendatacommunities.org/id/county-council/surrey,Surrey,http://id.esd.org.uk/service/1465,Council expenditure,12/09/2016,WOKING YC,ASDA  STORES 4775,1.6,REFRESHMENT COSTS,"GROCERY STORES, SUPERMARKETS"
09/01/2017,http://opendatacommunities.org/id/county-council/surrey,Surrey,http://id.esd.org.uk/service/1465,Council expenditure,12/09/2016,DOWNLANDS COUNTRYSIDE PROJECT,ALDI,59.96,UPKEEP OF GROUNDS,"GROCERY STORES, SUPERMARKETS"
09/01/2017,http://opendatacommunities.org/id/county-council/surrey,Surrey,http://id.esd.org.uk/service/1465,Council expenditure,12/09/2016,WOKING YC,ASDA STORES 4823,11.21,REFRESHMENT COSTS,"GROCERY STORES, SUPERMARKETS"
09/01/2017,http://opendatacommunities.org/id/county-council/surrey,Surrey,http://id.esd.org.uk/service/1465,Council expenditure,12/09/2016,CHEYNE WALK COMMUNITY HOME,SAINSBURYS SACAT 0026,21.16,PURCHASE OF FOOD (RAW MATERIALS),"GROCERY STORES, SUPERMARKETS"
09/01/2017,http://opendatacommunities.org/id/county-council/surrey,Surrey,http://id.esd.org.uk/service/1465,Council expenditure,12/09/2016,SW TEACHERS,WWW.ELKLAN.CO.UK,50,SUBSCRIPTIONS,SCHOOLS & EDUCATIONAL SVC-NOT ELSEWHERE CLASSIFIED
09/01/2017,http://opendatacommunities.org/id/county-council/surrey,Surrey,http://id.esd.org.uk/service/1465,Council expenditure,12/09/2016,ENSEMBLES & TOURS,YORK MUSEUMS & GALLERY,127,EDUC VISITS/HOLS/CAMPS/TOYS,"ORGANIZATIONS, CHARITABLE AND SOCIAL SERVICES"
09/01/2017,http://opendatacommunities.org/id/county-council/surrey,Surrey,http://id.esd.org.uk/service/1465,Council expenditure,12/09/2016,HI EQUIPMENT                            ,CONNEVANS LTD,501.54,EQUIPMENT,MISCELLANEOUS AND SPECIALTY RETAIL STORES
09/01/2017,http://opendatacommunities.org/id/county-council/surrey,Surrey,http://id.esd.org.uk/service/1465,Council expenditure,12/09/2016,DIRECT COSTS CONCESSIONARY FARES,SURREY CC CARD PAY,25,NON-STAFF RELATED TRANSPORT COSTS,COMPUTER NETWORK/INFORMATION SERVICES
09/01/2017,http://opendatacommunities.org/id/county-council/surrey,Surrey,http://id.esd.org.uk/service/1465,Council expenditure,12/09/2016,TRAINING COM P'SH,EB  SURREY COUNTY COUN,45.1,TRAINING EXPENSES EXTERNAL GENERAL,BUSINESS SERVICES-NOT ELSEWHERE CLASSIFIED
09/01/2017,http://opendatacommunities.org/id/county-council/surrey,Surrey,http://id.esd.org.uk/service/1465,Council expenditure,12/09/2016,CHEYNE WALK COMMUNITY HOME,COUNTY MALL CAR PARK,2.5,NON-STAFF RELATED TRANSPORT COSTS,AUTOMOBILE PARKING LOTS AND GARAGES
09/01/2017,http://opendatacommunities.org/id/county-council/surrey,Surrey,http://id.esd.org.uk/service/1465,Council expenditure,12/09/2016,RUTH HOUSE,PETS AT HOME LTD,31.49,EDUC VISITS/HOLS/CAMPS/TOYS,PET SHOPS - PET FOODS AND SUPPLIES
09/01/2017,http://opendatacommunities.org/id/county-council/surrey,Surrey,http://id.esd.org.uk/service/1465,Council expenditure,12/09/2016,GUILDFORD YC,CO-OP GROUP FOOD,3.1,PURCHASE OF FOOD (RAW MATERIALS),"GROCERY STORES, SUPERMARKETS"
09/01/2017,http://opendatacommunities.org/id/county-council/surrey,Surrey,http://id.esd.org.uk/service/1465,Council expenditure,12/09/2016,TRANSPORT,AMAZON UK MARKETPLACE,45.44,COMPUTER HARDWARE,BOOK STORES
09/01/2017,http://opendatacommunities.org/id/county-council/surrey,Surrey,http://id.esd.org.uk/service/1465,Council expenditure,12/09/2016,NW CARE - NON-LAC CP & COURT,WWW.SURREYHEATH.GOV.UK,24.24,INDEPENDENT LIVING PLACEMENTS,"THEATRICAL PRODUCERS(EXCL MOTION PIX),TICKET AGNCY"
09/01/2017,http://opendatacommunities.org/id/county-council/surrey,Surrey,http://id.esd.org.uk/service/1465,Council expenditure,12/09/2016,CHEYNE WALK COMMUNITY HOME,DEBENHAMS,30.05,"CLOTHING, UNIFORM AND LAUNDRY",DEPARTMENT STORES
09/01/2017,http://opendatacommunities.org/id/county-council/surrey,Surrey,http://id.esd.org.uk/service/1465,Council expenditure,12/09/2016,ACL CENTRAL EXPENDITURE,W M MORRISONS,62.77,EQUIPMENT,"GROCERY STORES, SUPERMARKETS"
09/01/2017,http://opendatacommunities.org/id/county-council/surrey,Surrey,http://id.esd.org.uk/service/1465,Council expenditure,12/09/2016,ASHTEAD YC,E RUSSUM & SONS LTD,154.8,EQUIPMENT,MISCELLANEOUS GENERAL MERCHANDISE
09/01/2017,http://opendatacommunities.org/id/county-council/surrey,Surrey,http://id.esd.org.uk/service/1465,Council expenditure,12/09/2016,ARUNDEL,TESCO STORES 2191,5.95,REFRESHMENT COSTS,"GROCERY STORES, SUPERMARKETS"
09/01/2017,http://opendatacommunities.org/id/county-council/surrey,Surrey,http://id.esd.org.uk/service/1465,Council expenditure,12/09/2016,HILLSIDE,WILKO RETAIL LIMIT,3,DAY TO DAY MAINTENANCE,HOUSEHOLD APPLIANCE STORES
09/01/2017,http://opendatacommunities.org/id/county-council/surrey,Surrey,http://id.esd.org.uk/service/1465,Council expenditure,12/09/2016,TARGETED INTERVENTION,HARRIS & HOOLE,7.5,EDUC VISITS/HOLS/CAMPS/TOYS,"EATING PLACES, RESTAURANTS"
09/01/2017,http://opendatacommunities.org/id/county-council/surrey,Surrey,http://id.esd.org.uk/service/1465,Council expenditure,12/09/2016,TARGETED INTERVENTION,TESCO STORES-2017,2.25,EDUC VISITS/HOLS/CAMPS/TOYS,"GROCERY STORES, SUPERMARKETS"
09/01/2017,http://opendatacommunities.org/id/county-council/surrey,Surrey,http://id.esd.org.uk/service/1465,Council expenditure,12/09/2016,MALLOW CRESCENT,SAINSBURYS TO YOU 0686,10,PURCHASE OF FOOD (RAW MATERIALS),"GROCERY STORES, SUPERMARKETS"
09/01/2017,http://opendatacommunities.org/id/county-council/surrey,Surrey,http://id.esd.org.uk/service/1465,Council expenditure,12/09/2016,MALLOW CRESCENT,SAINSBURYS TO YOU 0686,95.3,PURCHASE OF FOOD (RAW MATERIALS),"GROCERY STORES, SUPERMARKETS"
09/01/2017,http://opendatacommunities.org/id/county-council/surrey,Surrey,http://id.esd.org.uk/service/1465,Council expenditure,12/09/2016,MALLOW CRESCENT,SAINSBURYS TO YOU 0686,8.9,PURCHASE OF FOOD (RAW MATERIALS),"GROCERY STORES, SUPERMARKETS"
09/01/2017,http://opendatacommunities.org/id/county-council/surrey,Surrey,http://id.esd.org.uk/service/1465,Council expenditure,12/09/2016,MALLOW CRESCENT,SAINSBURYS TO YOU 0686,98.62,PURCHASE OF FOOD (RAW MATERIALS),"GROCERY STORES, SUPERMARKETS"
09/01/2017,http://opendatacommunities.org/id/county-council/surrey,Surrey,http://id.esd.org.uk/service/1465,Council expenditure,12/09/2016,SURREY HILLS AONB,D3 MANUFACTURING LIMIT,78,EQUIPMENT,PLUMBING AND HEATING EQUIPMENT
09/01/2017,http://opendatacommunities.org/id/county-council/surrey,Surrey,http://id.esd.org.uk/service/1465,Council expenditure,12/09/2016,TRANSPORT,SCREWFIX DIRECT LT,2.51,DAY TO DAY MAINTENANCE,"BUILDING MATERIALS, LUMBER STORES"
09/01/2017,http://opendatacommunities.org/id/county-council/surrey,Surrey,http://id.esd.org.uk/service/1465,Council expenditure,12/09/2016,TARGETED INTERVENTION,CURRYS S/S,119.98,EQUIPMENT,ELECTRONIC SALES
09/01/2017,http://opendatacommunities.org/id/county-council/surrey,Surrey,http://id.esd.org.uk/service/1465,Council expenditure,12/09/2016,TARGETED INTERVENTION,SQUIRES GARDEN CENTRE,4.6,EDUC VISITS/HOLS/CAMPS/TOYS,LAWN AND GARDEN SUPPLY STORES
09/01/2017,http://opendatacommunities.org/id/county-council/surrey,Surrey,http://id.esd.org.uk/service/1465,Council expenditure,12/09/2016,FRIMLEY YC,SAINSBURYS SACAT 0675,26,REFRESHMENT COSTS,"GROCERY STORES, SUPERMARKETS"
09/01/2017,http://opendatacommunities.org/id/county-council/surrey,Surrey,http://id.esd.org.uk/service/1465,Council expenditure,12/09/2016,FRIMLEY YC,SAINSBURYS SACAT 0675,6.15,PURCHASE OF FOOD (RAW MATERIALS),"GROCERY STORES, SUPERMARKETS"
09/01/2017,http://opendatacommunities.org/id/county-council/surrey,Surrey,http://id.esd.org.uk/service/1465,Council expenditure,12/09/2016,ACL CENTRAL EXPENDITURE,AMAZON UK MARKETPLACE,23.18,EQUIPMENT,BOOK STORES
09/01/2017,http://opendatacommunities.org/id/county-council/surrey,Surrey,http://id.esd.org.uk/service/1465,Council expenditure,12/09/2016,TARGETED INTERVENTION,TESCO STORE 3220,94,EQUIPMENT,"GROCERY STORES, SUPERMARKETS"
09/01/2017,http://opendatacommunities.org/id/county-council/surrey,Surrey,http://id.esd.org.uk/service/1465,Council expenditure,12/09/2016,DEMOCRATIC SERVICES TEAM,AMAZON EU,42.5,WATER CHARGES,DIRECT MARKETING-OTHER DIRECT MARKETERS/NOT ELSEW.
09/01/2017,http://opendatacommunities.org/id/county-council/surrey,Surrey,http://id.esd.org.uk/service/1465,Council expenditure,12/09/2016,AEO MANAGEMENT TEAM (SW),SURREY CC CARD PAY,50,TRAINING EXPENSES EXTERNAL GENERAL,COMPUTER NETWORK/INFORMATION SERVICES
09/01/2017,http://opendatacommunities.org/id/county-council/surrey,Surrey,http://id.esd.org.uk/service/1465,Council expenditure,12/09/2016,CHEYNE WALK COMMUNITY HOME,AMAZON UK RETAIL AMAZO,92.79,EQUIPMENT,MISCELLANEOUS AND SPECIALTY RETAIL STORES
09/01/2017,http://opendatacommunities.org/id/county-council/surrey,Surrey,http://id.esd.org.uk/service/1465,Council expenditure,12/09/2016,PE/CDT MAINTENANCE OVERHEADS,BISHOP SPORTS & LEISU,111.6,EQUIPMENT,SPORTING GOODS STORES
09/01/2017,http://opendatacommunities.org/id/county-council/surrey,Surrey,http://id.esd.org.uk/service/1465,Council expenditure,12/09/2016,PROPERTY OPERATIONS TEAM,B & Q 1029,27.85,PURCHASE OF BUILDING MATERIALS,"BUILDING MATERIALS, LUMBER STORES"
09/01/2017,http://opendatacommunities.org/id/county-council/surrey,Surrey,http://id.esd.org.uk/service/1465,Council expenditure,12/09/2016,LIBERTAS COMMUNITY HOME,SAINSBURYS 0652,21.95,PURCHASE OF FOOD (RAW MATERIALS),"GROCERY STORES, SUPERMARKETS"
09/01/2017,http://opendatacommunities.org/id/county-council/surrey,Surrey,http://id.esd.org.uk/service/1465,Council expenditure,12/09/2016,LIBERTAS COMMUNITY HOME,SAINSBURYS 0652,135.37,PURCHASE OF FOOD (RAW MATERIALS),"GROCERY STORES, SUPERMARKETS"
09/01/2017,http://opendatacommunities.org/id/county-council/surrey,Surrey,http://id.esd.org.uk/service/1465,Council expenditure,12/09/2016,LIBERTAS COMMUNITY HOME,SAINSBURYS 0652,5.75,EQUIPMENT,"GROCERY STORES, SUPERMARKETS"
09/01/2017,http://opendatacommunities.org/id/county-council/surrey,Surrey,http://id.esd.org.uk/service/1465,Council expenditure,12/09/2016,LEAVING CARE PACKAGES,TRAVELODGE,"1,629.60",3RD PARTY PAYMENTS PRIVATE INDIV,TRAVELODGE
09/01/2017,http://opendatacommunities.org/id/county-council/surrey,Surrey,http://id.esd.org.uk/service/1465,Council expenditure,12/09/2016,HOPE SERVICE - EAST,SAINSBURYS 0683,99.92,PURCHASE OF FOOD (RAW MATERIALS),"GROCERY STORES, SUPERMARKETS"
09/01/2017,http://opendatacommunities.org/id/county-council/surrey,Surrey,http://id.esd.org.uk/service/1465,Council expenditure,12/09/2016,ACT,CO-OP GROUP FOOD,2,REFRESHMENT COSTS,"GROCERY STORES, SUPERMARKETS"
09/01/2017,http://opendatacommunities.org/id/county-council/surrey,Surrey,http://id.esd.org.uk/service/1465,Council expenditure,12/09/2016,HILLSIDE,LIDL UK,0.99,PURCHASE OF FOOD (RAW MATERIALS),"GROCERY STORES, SUPERMARKETS"
09/01/2017,http://opendatacommunities.org/id/county-council/surrey,Surrey,http://id.esd.org.uk/service/1465,Council expenditure,12/09/2016,HILLSIDE,LIDL UK,20.84,PURCHASE OF FOOD (RAW MATERIALS),"GROCERY STORES, SUPERMARKETS"
09/01/2017,http://opendatacommunities.org/id/county-council/surrey,Surrey,http://id.esd.org.uk/service/1465,Council expenditure,12/09/2016,LIBERTAS COMMUNITY HOME,AUTOGLASS,131.7,VEHICLE REPAIRS AND MAINTENANCE,"AUTOMOTIVE PARTS, ACCESSORIES STORES"
09/01/2017,http://opendatacommunities.org/id/county-council/surrey,Surrey,http://id.esd.org.uk/service/1465,Council expenditure,12/09/2016,JOINT EMERGENCY CONTROL CENTRE-GT FUNDED,MEDIA & COMMUNICATIONS,46.8,COMPUTER HARDWARE,TELECOMMUNICATION EQUIPMENT INCL TELEPHONE SALES
